{"text_format":"1","workbook":"xlsx","n_sheets":1,"sheets":["حصر الغياب"],"not_rendered":{"charts":0,"images":0,"macros":1,"external_links":0,"defined_names":6,"comments":0,"pivot_tables":0},"unopened":[],"bounds":{"document_bytes":16777216,"sheet_cells":100000,"rows_first":2000,"rows_last":500,"rows_between":2000,"halvings":0,"cell_chars":16384,"cell_head_chars":4096},"cells_cut":0,"cells_raw":0,"read":"whole","date_system":"1900"}

{"sheet":"حصر الغياب","index":0,"n_rows":191,"n_cols":292,"rows_kept":191,"cut":false,"hidden":false,"merged":[]}
[null,null,null,null,null,null,null,null,null,null,null,null,null,null,null,null,null,null,null,null,null,null,null,null,null,null,null,null,null,null,null,null,null,null,null,null,null,null,null,null,null,null,null,null,null,null,null,null,null,null,null,null,1,2,3,4,5,6,7,8,9,10,11,12,13,14,15,16,17,18,19,20,21]
["السنة","الشهر","الاجازة",null,null,null,null,null,null,null,null,null,null,null,null,null,null,null,null,null,null,null,null,null,null,null,null,null,null,null,null,null,null,null,null,null,null,null,null,null,null,null,null,null,null,null,null,null,null,null,null,null,null,null,null,null,null,null,null,null,null,null,null,null,null,null,null,null,null,null,null,null,null,null,null,null,null,null,null,null,null,null,null,null,null,null,null,null,null,null,null,null,null,null,null,null,null,null,null,null,null,null,null,null,null,null,null,null,null,null,null,null,null,null,null,null,null,null,null,null,null,null,null,null,null,null,null,null,null,null,null,null,"السنة","الشهر"]
[2025,9,"السبت","الجمعة",null,null,null,null,null,null,null,null,null,null,null,null,null,null,null,null,null,null,null,null,null,null,null,null,null,null,null,null,null,null,null,null,{"$f":"B3+1","v":10},null,null,null,null,null,null,null,null,null,null,null,null,null,null,null,null,null,null,null,null,null,null,null,null,null,null,null,null,null,null,null,{"$f":"AK3+1","v":11},null,null,null,null,null,null,null,null,null,null,null,null,null,null,null,null,null,null,null,null,null,null,null,null,null,null,null,null,null,null,null,{"$f":"BQ3+1","v":12},null,null,null,null,null,null,null,null,null,null,null,null,null,null,null,null,null,null,null,null,null,null,null,null,null,null,null,null,null,null,null,{"$f":"A3+1","v":2026},1,null,null,null,null,null,null,null,null,null,null,null,null,null,null,null,null,null,null,null,null,null,null,null,null,null,null,null,null,null,null,{"$f":"ED3+1","v":2},null,null,null,null,null,null,null,null,null,null,null,null,null,null,null,null,null,null,null,null,null,null,null,null,null,null,null,null,null,null,null,{"$f":"FI3+1","v":3},null,null,null,null,null,null,null,null,null,null,null,null,null,null,null,null,null,null,null,null,null,null,null,null,null,null,null,null,null,null,null,{"$f":"GO3+1","v":4},null,null,null,null,null,null,null,null,null,null,null,null,null,null,null,null,null,null,null,null,null,null,null,null,null,null,null,null,null,null,null,{"$f":"HU3+1","v":5}]
[]
[null,null,null,"غ"]
[null,null,null,null,{"$f":"E7","v":"2025-09-01"},{"$f":"F7","v":"2025-09-02"},"2025-09-03","2025-09-04","2025-09-05","2025-09-06","2025-09-07","2025-09-08","2025-09-09","2025-09-10","2025-09-11","2025-09-12","2025-09-13","2025-09-14","2025-09-15","2025-09-16","2025-09-17","2025-09-18","2025-09-19","2025-09-20","2025-09-21","2025-09-22","2025-09-23","2025-09-24","2025-09-25","2025-09-26","2025-09-27","2025-09-28","2025-09-29","2025-09-30","",null,{"$f":"AK7","v":"2025-10-01"},{"$f":"AL7","v":"2025-10-02"},"2025-10-03","2025-10-04","2025-10-05","2025-10-06","2025-10-07","2025-10-08","2025-10-09","2025-10-10","2025-10-11","2025-10-12","2025-10-13","2025-10-14","2025-10-15","2025-10-16","2025-10-17","2025-10-18","2025-10-19","2025-10-20","2025-10-21","2025-10-22","2025-10-23","2025-10-24","2025-10-25","2025-10-26","2025-10-27","2025-10-28","2025-10-29","2025-10-30","2025-10-31",null,{"$f":"BQ7","v":"2025-11-01"},{"$f":"BR7","v":"2025-11-02"},"2025-11-03","2025-11-04","2025-11-05","2025-11-06","2025-11-07","2025-11-08","2025-11-09","2025-11-10","2025-11-11","2025-11-12","2025-11-13","2025-11-14","2025-11-15","2025-11-16","2025-11-17","2025-11-18","2025-11-19","2025-11-20","2025-11-21","2025-11-22","2025-11-23","2025-11-24","2025-11-25","2025-11-26","2025-11-27","2025-11-28","2025-11-29","2025-11-30","",null,{"$f":"CW7","v":"2025-12-01"},{"$f":"CX7","v":"2025-12-02"},"2025-12-03","2025-12-04","2025-12-05","2025-12-06","2025-12-07","2025-12-08","2025-12-09","2025-12-10","2025-12-11","2025-12-12","2025-12-13","2025-12-14","2025-12-15","2025-12-16","2025-12-17","2025-12-18","2025-12-19","2025-12-20","2025-12-21","2025-12-22","2025-12-23","2025-12-24","2025-12-25","2025-12-26","2025-12-27","2025-12-28","2025-12-29","2025-12-30","2025-12-31",null,{"$f":"EC7","v":"2026-01-01"},{"$f":"ED7","v":"2026-01-02"},"2026-01-03","2026-01-04","2026-01-05","2026-01-06","2026-01-07","2026-01-08","2026-01-09","2026-01-10","2026-01-11","2026-01-12","2026-01-13","2026-01-14","2026-01-15","2026-01-16","2026-01-17","2026-01-18","2026-01-19","2026-01-20","2026-01-21","2026-01-22","2026-01-23","2026-01-24","2026-01-25","2026-01-26","2026-01-27","2026-01-28","2026-01-29","2026-01-30","2026-01-31",null,{"$f":"FI7","v":"2026-02-01"},{"$f":"FJ7","v":"2026-02-02"},"2026-02-03","2026-02-04","2026-02-05","2026-02-06","2026-02-07","2026-02-08","2026-02-09","2026-02-10","2026-02-11","2026-02-12","2026-02-13","2026-02-14","2026-02-15","2026-02-16","2026-02-17","2026-02-18","2026-02-19","2026-02-20","2026-02-21","2026-02-22","2026-02-23","2026-02-24","2026-02-25","2026-02-26","2026-02-27","2026-02-28","","","",null,{"$f":"GO7","v":"2026-03-01"},{"$f":"GP7","v":"2026-03-02"},"2026-03-03","2026-03-04","2026-03-05","2026-03-06","2026-03-07","2026-03-08","2026-03-09","2026-03-10","2026-03-11","2026-03-12","2026-03-13","2026-03-14","2026-03-15","2026-03-16","2026-03-17","2026-03-18","2026-03-19","2026-03-20","2026-03-21","2026-03-22","2026-03-23","2026-03-24","2026-03-25","2026-03-26","2026-03-27","2026-03-28","2026-03-29","2026-03-30","2026-03-31",null,{"$f":"HU7","v":"2026-04-01"},{"$f":"HV7","v":"2026-04-02"},"2026-04-03","2026-04-04","2026-04-05","2026-04-06","2026-04-07","2026-04-08","2026-04-09","2026-04-10","2026-04-11","2026-04-12","2026-04-13","2026-04-14","2026-04-15","2026-04-16","2026-04-17","2026-04-18","2026-04-19","2026-04-20","2026-04-21","2026-04-22","2026-04-23","2026-04-24","2026-04-25","2026-04-26","2026-04-27","2026-04-28","2026-04-29","2026-04-30","",null,{"$f":"JA7","v":"2026-05-01"},{"$f":"JB7","v":"2026-05-02"},"2026-05-03","2026-05-04","2026-05-05","2026-05-06","2026-05-07","2026-05-08","2026-05-09","2026-05-10","2026-05-11","2026-05-12","2026-05-13","2026-05-14","2026-05-15","2026-05-16","2026-05-17","2026-05-18","2026-05-19","2026-05-20","2026-05-21","2026-05-22","2026-05-23","2026-05-24","2026-05-25","2026-05-26","2026-05-27","2026-05-28","2026-05-29","2026-05-30","2026-05-31"]
["رقم الجلوس","الاسم","الفصل","الكود",{"$f":"IF(MONTH(DATE($A$3,$B$3,COLUMNS($E$1:E1)))<>$B$3,\"\",DATE($A$3,$B$3,COLUMNS($E$1:E1)))","v":"2025-09-01"},{"$f":"IF(MONTH(DATE($A$3,$B$3,COLUMNS($E$1:F1)))<>$B$3,\"\",DATE($A$3,$B$3,COLUMNS($E$1:F1)))","v":"2025-09-02"},{"$f":"IF(MONTH(DATE($A$3,$B$3,COLUMNS($E$1:G1)))<>$B$3,\"\",DATE($A$3,$B$3,COLUMNS($E$1:G1)))","v":"2025-09-03"},{"$f":"IF(MONTH(DATE($A$3,$B$3,COLUMNS($E$1:H1)))<>$B$3,\"\",DATE($A$3,$B$3,COLUMNS($E$1:H1)))","v":"2025-09-04"},{"$f":"IF(MONTH(DATE($A$3,$B$3,COLUMNS($E$1:I1)))<>$B$3,\"\",DATE($A$3,$B$3,COLUMNS($E$1:I1)))","v":"2025-09-05"},{"$f":"IF(MONTH(DATE($A$3,$B$3,COLUMNS($E$1:J1)))<>$B$3,\"\",DATE($A$3,$B$3,COLUMNS($E$1:J1)))","v":"2025-09-06"},{"$f":"IF(MONTH(DATE($A$3,$B$3,COLUMNS($E$1:K1)))<>$B$3,\"\",DATE($A$3,$B$3,COLUMNS($E$1:K1)))","v":"2025-09-07"},{"$f":"IF(MONTH(DATE($A$3,$B$3,COLUMNS($E$1:L1)))<>$B$3,\"\",DATE($A$3,$B$3,COLUMNS($E$1:L1)))","v":"2025-09-08"},{"$f":"IF(MONTH(DATE($A$3,$B$3,COLUMNS($E$1:M1)))<>$B$3,\"\",DATE($A$3,$B$3,COLUMNS($E$1:M1)))","v":"2025-09-09"},{"$f":"IF(MONTH(DATE($A$3,$B$3,COLUMNS($E$1:N1)))<>$B$3,\"\",DATE($A$3,$B$3,COLUMNS($E$1:N1)))","v":"2025-09-10"},{"$f":"IF(MONTH(DATE($A$3,$B$3,COLUMNS($E$1:O1)))<>$B$3,\"\",DATE($A$3,$B$3,COLUMNS($E$1:O1)))","v":"2025-09-11"},{"$f":"IF(MONTH(DATE($A$3,$B$3,COLUMNS($E$1:P1)))<>$B$3,\"\",DATE($A$3,$B$3,COLUMNS($E$1:P1)))","v":"2025-09-12"},{"$f":"IF(MONTH(DATE($A$3,$B$3,COLUMNS($E$1:Q1)))<>$B$3,\"\",DATE($A$3,$B$3,COLUMNS($E$1:Q1)))","v":"2025-09-13"},{"$f":"IF(MONTH(DATE($A$3,$B$3,COLUMNS($E$1:R1)))<>$B$3,\"\",DATE($A$3,$B$3,COLUMNS($E$1:R1)))","v":"2025-09-14"},{"$f":"IF(MONTH(DATE($A$3,$B$3,COLUMNS($E$1:S1)))<>$B$3,\"\",DATE($A$3,$B$3,COLUMNS($E$1:S1)))","v":"2025-09-15"},{"$f":"IF(MONTH(DATE($A$3,$B$3,COLUMNS($E$1:T1)))<>$B$3,\"\",DATE($A$3,$B$3,COLUMNS($E$1:T1)))","v":"2025-09-16"},{"$f":"IF(MONTH(DATE($A$3,$B$3,COLUMNS($E$1:U1)))<>$B$3,\"\",DATE($A$3,$B$3,COLUMNS($E$1:U1)))","v":"2025-09-17"},{"$f":"IF(MONTH(DATE($A$3,$B$3,COLUMNS($E$1:V1)))<>$B$3,\"\",DATE($A$3,$B$3,COLUMNS($E$1:V1)))","v":"2025-09-18"},{"$f":"IF(MONTH(DATE($A$3,$B$3,COLUMNS($E$1:W1)))<>$B$3,\"\",DATE($A$3,$B$3,COLUMNS($E$1:W1)))","v":"2025-09-19"},{"$f":"IF(MONTH(DATE($A$3,$B$3,COLUMNS($E$1:X1)))<>$B$3,\"\",DATE($A$3,$B$3,COLUMNS($E$1:X1)))","v":"2025-09-20"},{"$f":"IF(MONTH(DATE($A$3,$B$3,COLUMNS($E$1:Y1)))<>$B$3,\"\",DATE($A$3,$B$3,COLUMNS($E$1:Y1)))","v":"2025-09-21"},{"$f":"IF(MONTH(DATE($A$3,$B$3,COLUMNS($E$1:Z1)))<>$B$3,\"\",DATE($A$3,$B$3,COLUMNS($E$1:Z1)))","v":"2025-09-22"},{"$f":"IF(MONTH(DATE($A$3,$B$3,COLUMNS($E$1:AA1)))<>$B$3,\"\",DATE($A$3,$B$3,COLUMNS($E$1:AA1)))","v":"2025-09-23"},{"$f":"IF(MONTH(DATE($A$3,$B$3,COLUMNS($E$1:AB1)))<>$B$3,\"\",DATE($A$3,$B$3,COLUMNS($E$1:AB1)))","v":"2025-09-24"},{"$f":"IF(MONTH(DATE($A$3,$B$3,COLUMNS($E$1:AC1)))<>$B$3,\"\",DATE($A$3,$B$3,COLUMNS($E$1:AC1)))","v":"2025-09-25"},{"$f":"IF(MONTH(DATE($A$3,$B$3,COLUMNS($E$1:AD1)))<>$B$3,\"\",DATE($A$3,$B$3,COLUMNS($E$1:AD1)))","v":"2025-09-26"},{"$f":"IF(MONTH(DATE($A$3,$B$3,COLUMNS($E$1:AE1)))<>$B$3,\"\",DATE($A$3,$B$3,COLUMNS($E$1:AE1)))","v":"2025-09-27"},{"$f":"IF(MONTH(DATE($A$3,$B$3,COLUMNS($E$1:AF1)))<>$B$3,\"\",DATE($A$3,$B$3,COLUMNS($E$1:AF1)))","v":"2025-09-28"},{"$f":"IF(MONTH(DATE($A$3,$B$3,COLUMNS($E$1:AG1)))<>$B$3,\"\",DATE($A$3,$B$3,COLUMNS($E$1:AG1)))","v":"2025-09-29"},{"$f":"IF(MONTH(DATE($A$3,$B$3,COLUMNS($E$1:AH1)))<>$B$3,\"\",DATE($A$3,$B$3,COLUMNS($E$1:AH1)))","v":"2025-09-30"},{"$f":"IF(MONTH(DATE($A$3,$B$3,COLUMNS($E$1:AI1)))<>$B$3,\"\",DATE($A$3,$B$3,COLUMNS($E$1:AI1)))","v":""},"مجموع الغياب",{"$f":"IF(MONTH(DATE($A$3,$AK$3,COLUMNS($AK$1:AK1)))<>$AK$3,\"\",DATE($A$3,$AK$3,COLUMNS($AK$1:AK1)))","v":"2025-10-01"},{"$f":"IF(MONTH(DATE($A$3,$AK$3,COLUMNS($AK$1:AL1)))<>$AK$3,\"\",DATE($A$3,$AK$3,COLUMNS($AK$1:AL1)))","v":"2025-10-02"},{"$f":"IF(MONTH(DATE($A$3,$AK$3,COLUMNS($AK$1:AM1)))<>$AK$3,\"\",DATE($A$3,$AK$3,COLUMNS($AK$1:AM1)))","v":"2025-10-03"},{"$f":"IF(MONTH(DATE($A$3,$AK$3,COLUMNS($AK$1:AN1)))<>$AK$3,\"\",DATE($A$3,$AK$3,COLUMNS($AK$1:AN1)))","v":"2025-10-04"},{"$f":"IF(MONTH(DATE($A$3,$AK$3,COLUMNS($AK$1:AO1)))<>$AK$3,\"\",DATE($A$3,$AK$3,COLUMNS($AK$1:AO1)))","v":"2025-10-05"},{"$f":"IF(MONTH(DATE($A$3,$AK$3,COLUMNS($AK$1:AP1)))<>$AK$3,\"\",DATE($A$3,$AK$3,COLUMNS($AK$1:AP1)))","v":"2025-10-06"},{"$f":"IF(MONTH(DATE($A$3,$AK$3,COLUMNS($AK$1:AQ1)))<>$AK$3,\"\",DATE($A$3,$AK$3,COLUMNS($AK$1:AQ1)))","v":"2025-10-07"},{"$f":"IF(MONTH(DATE($A$3,$AK$3,COLUMNS($AK$1:AR1)))<>$AK$3,\"\",DATE($A$3,$AK$3,COLUMNS($AK$1:AR1)))","v":"2025-10-08"},{"$f":"IF(MONTH(DATE($A$3,$AK$3,COLUMNS($AK$1:AS1)))<>$AK$3,\"\",DATE($A$3,$AK$3,COLUMNS($AK$1:AS1)))","v":"2025-10-09"},{"$f":"IF(MONTH(DATE($A$3,$AK$3,COLUMNS($AK$1:AT1)))<>$AK$3,\"\",DATE($A$3,$AK$3,COLUMNS($AK$1:AT1)))","v":"2025-10-10"},{"$f":"IF(MONTH(DATE($A$3,$AK$3,COLUMNS($AK$1:AU1)))<>$AK$3,\"\",DATE($A$3,$AK$3,COLUMNS($AK$1:AU1)))","v":"2025-10-11"},{"$f":"IF(MONTH(DATE($A$3,$AK$3,COLUMNS($AK$1:AV1)))<>$AK$3,\"\",DATE($A$3,$AK$3,COLUMNS($AK$1:AV1)))","v":"2025-10-12"},{"$f":"IF(MONTH(DATE($A$3,$AK$3,COLUMNS($AK$1:AW1)))<>$AK$3,\"\",DATE($A$3,$AK$3,COLUMNS($AK$1:AW1)))","v":"2025-10-13"},{"$f":"IF(MONTH(DATE($A$3,$AK$3,COLUMNS($AK$1:AX1)))<>$AK$3,\"\",DATE($A$3,$AK$3,COLUMNS($AK$1:AX1)))","v":"2025-10-14"},{"$f":"IF(MONTH(DATE($A$3,$AK$3,COLUMNS($AK$1:AY1)))<>$AK$3,\"\",DATE($A$3,$AK$3,COLUMNS($AK$1:AY1)))","v":"2025-10-15"},{"$f":"IF(MONTH(DATE($A$3,$AK$3,COLUMNS($AK$1:AZ1)))<>$AK$3,\"\",DATE($A$3,$AK$3,COLUMNS($AK$1:AZ1)))","v":"2025-10-16"},{"$f":"IF(MONTH(DATE($A$3,$AK$3,COLUMNS($AK$1:BA1)))<>$AK$3,\"\",DATE($A$3,$AK$3,COLUMNS($AK$1:BA1)))","v":"2025-10-17"},{"$f":"IF(MONTH(DATE($A$3,$AK$3,COLUMNS($AK$1:BB1)))<>$AK$3,\"\",DATE($A$3,$AK$3,COLUMNS($AK$1:BB1)))","v":"2025-10-18"},{"$f":"IF(MONTH(DATE($A$3,$AK$3,COLUMNS($AK$1:BC1)))<>$AK$3,\"\",DATE($A$3,$AK$3,COLUMNS($AK$1:BC1)))","v":"2025-10-19"},{"$f":"IF(MONTH(DATE($A$3,$AK$3,COLUMNS($AK$1:BD1)))<>$AK$3,\"\",DATE($A$3,$AK$3,COLUMNS($AK$1:BD1)))","v":"2025-10-20"},{"$f":"IF(MONTH(DATE($A$3,$AK$3,COLUMNS($AK$1:BE1)))<>$AK$3,\"\",DATE($A$3,$AK$3,COLUMNS($AK$1:BE1)))","v":"2025-10-21"},{"$f":"IF(MONTH(DATE($A$3,$AK$3,COLUMNS($AK$1:BF1)))<>$AK$3,\"\",DATE($A$3,$AK$3,COLUMNS($AK$1:BF1)))","v":"2025-10-22"},{"$f":"IF(MONTH(DATE($A$3,$AK$3,COLUMNS($AK$1:BG1)))<>$AK$3,\"\",DATE($A$3,$AK$3,COLUMNS($AK$1:BG1)))","v":"2025-10-23"},{"$f":"IF(MONTH(DATE($A$3,$AK$3,COLUMNS($AK$1:BH1)))<>$AK$3,\"\",DATE($A$3,$AK$3,COLUMNS($AK$1:BH1)))","v":"2025-10-24"},{"$f":"IF(MONTH(DATE($A$3,$AK$3,COLUMNS($AK$1:BI1)))<>$AK$3,\"\",DATE($A$3,$AK$3,COLUMNS($AK$1:BI1)))","v":"2025-10-25"},{"$f":"IF(MONTH(DATE($A$3,$AK$3,COLUMNS($AK$1:BJ1)))<>$AK$3,\"\",DATE($A$3,$AK$3,COLUMNS($AK$1:BJ1)))","v":"2025-10-26"},{"$f":"IF(MONTH(DATE($A$3,$AK$3,COLUMNS($AK$1:BK1)))<>$AK$3,\"\",DATE($A$3,$AK$3,COLUMNS($AK$1:BK1)))","v":"2025-10-27"},{"$f":"IF(MONTH(DATE($A$3,$AK$3,COLUMNS($AK$1:BL1)))<>$AK$3,\"\",DATE($A$3,$AK$3,COLUMNS($AK$1:BL1)))","v":"2025-10-28"},{"$f":"IF(MONTH(DATE($A$3,$AK$3,COLUMNS($AK$1:BM1)))<>$AK$3,\"\",DATE($A$3,$AK$3,COLUMNS($AK$1:BM1)))","v":"2025-10-29"},{"$f":"IF(MONTH(DATE($A$3,$AK$3,COLUMNS($AK$1:BN1)))<>$AK$3,\"\",DATE($A$3,$AK$3,COLUMNS($AK$1:BN1)))","v":"2025-10-30"},{"$f":"IF(MONTH(DATE($A$3,$AK$3,COLUMNS($AK$1:BO1)))<>$AK$3,\"\",DATE($A$3,$AK$3,COLUMNS($AK$1:BO1)))","v":"2025-10-31"},"مجموع الغياب",{"$f":"IF(MONTH(DATE($A$3,$BQ$3,COLUMNS($BQ$1:BQ1)))<>$BQ$3,\"\",DATE($A$3,$BQ$3,COLUMNS($BQ$1:BQ1)))","v":"2025-11-01"},{"$f":"IF(MONTH(DATE($A$3,$BQ$3,COLUMNS($BQ$1:BR1)))<>$BQ$3,\"\",DATE($A$3,$BQ$3,COLUMNS($BQ$1:BR1)))","v":"2025-11-02"},{"$f":"IF(MONTH(DATE($A$3,$BQ$3,COLUMNS($BQ$1:BS1)))<>$BQ$3,\"\",DATE($A$3,$BQ$3,COLUMNS($BQ$1:BS1)))","v":"2025-11-03"},{"$f":"IF(MONTH(DATE($A$3,$BQ$3,COLUMNS($BQ$1:BT1)))<>$BQ$3,\"\",DATE($A$3,$BQ$3,COLUMNS($BQ$1:BT1)))","v":"2025-11-04"},{"$f":"IF(MONTH(DATE($A$3,$BQ$3,COLUMNS($BQ$1:BU1)))<>$BQ$3,\"\",DATE($A$3,$BQ$3,COLUMNS($BQ$1:BU1)))","v":"2025-11-05"},{"$f":"IF(MONTH(DATE($A$3,$BQ$3,COLUMNS($BQ$1:BV1)))<>$BQ$3,\"\",DATE($A$3,$BQ$3,COLUMNS($BQ$1:BV1)))","v":"2025-11-06"},{"$f":"IF(MONTH(DATE($A$3,$BQ$3,COLUMNS($BQ$1:BW1)))<>$BQ$3,\"\",DATE($A$3,$BQ$3,COLUMNS($BQ$1:BW1)))","v":"2025-11-07"},{"$f":"IF(MONTH(DATE($A$3,$BQ$3,COLUMNS($BQ$1:BX1)))<>$BQ$3,\"\",DATE($A$3,$BQ$3,COLUMNS($BQ$1:BX1)))","v":"2025-11-08"},{"$f":"IF(MONTH(DATE($A$3,$BQ$3,COLUMNS($BQ$1:BY1)))<>$BQ$3,\"\",DATE($A$3,$BQ$3,COLUMNS($BQ$1:BY1)))","v":"2025-11-09"},{"$f":"IF(MONTH(DATE($A$3,$BQ$3,COLUMNS($BQ$1:BZ1)))<>$BQ$3,\"\",DATE($A$3,$BQ$3,COLUMNS($BQ$1:BZ1)))","v":"2025-11-10"},{"$f":"IF(MONTH(DATE($A$3,$BQ$3,COLUMNS($BQ$1:CA1)))<>$BQ$3,\"\",DATE($A$3,$BQ$3,COLUMNS($BQ$1:CA1)))","v":"2025-11-11"},{"$f":"IF(MONTH(DATE($A$3,$BQ$3,COLUMNS($BQ$1:CB1)))<>$BQ$3,\"\",DATE($A$3,$BQ$3,COLUMNS($BQ$1:CB1)))","v":"2025-11-12"},{"$f":"IF(MONTH(DATE($A$3,$BQ$3,COLUMNS($BQ$1:CC1)))<>$BQ$3,\"\",DATE($A$3,$BQ$3,COLUMNS($BQ$1:CC1)))","v":"2025-11-13"},{"$f":"IF(MONTH(DATE($A$3,$BQ$3,COLUMNS($BQ$1:CD1)))<>$BQ$3,\"\",DATE($A$3,$BQ$3,COLUMNS($BQ$1:CD1)))","v":"2025-11-14"},{"$f":"IF(MONTH(DATE($A$3,$BQ$3,COLUMNS($BQ$1:CE1)))<>$BQ$3,\"\",DATE($A$3,$BQ$3,COLUMNS($BQ$1:CE1)))","v":"2025-11-15"},{"$f":"IF(MONTH(DATE($A$3,$BQ$3,COLUMNS($BQ$1:CF1)))<>$BQ$3,\"\",DATE($A$3,$BQ$3,COLUMNS($BQ$1:CF1)))","v":"2025-11-16"},{"$f":"IF(MONTH(DATE($A$3,$BQ$3,COLUMNS($BQ$1:CG1)))<>$BQ$3,\"\",DATE($A$3,$BQ$3,COLUMNS($BQ$1:CG1)))","v":"2025-11-17"},{"$f":"IF(MONTH(DATE($A$3,$BQ$3,COLUMNS($BQ$1:CH1)))<>$BQ$3,\"\",DATE($A$3,$BQ$3,COLUMNS($BQ$1:CH1)))","v":"2025-11-18"},{"$f":"IF(MONTH(DATE($A$3,$BQ$3,COLUMNS($BQ$1:CI1)))<>$BQ$3,\"\",DATE($A$3,$BQ$3,COLUMNS($BQ$1:CI1)))","v":"2025-11-19"},{"$f":"IF(MONTH(DATE($A$3,$BQ$3,COLUMNS($BQ$1:CJ1)))<>$BQ$3,\"\",DATE($A$3,$BQ$3,COLUMNS($BQ$1:CJ1)))","v":"2025-11-20"},{"$f":"IF(MONTH(DATE($A$3,$BQ$3,COLUMNS($BQ$1:CK1)))<>$BQ$3,\"\",DATE($A$3,$BQ$3,COLUMNS($BQ$1:CK1)))","v":"2025-11-21"},{"$f":"IF(MONTH(DATE($A$3,$BQ$3,COLUMNS($BQ$1:CL1)))<>$BQ$3,\"\",DATE($A$3,$BQ$3,COLUMNS($BQ$1:CL1)))","v":"2025-11-22"},{"$f":"IF(MONTH(DATE($A$3,$BQ$3,COLUMNS($BQ$1:CM1)))<>$BQ$3,\"\",DATE($A$3,$BQ$3,COLUMNS($BQ$1:CM1)))","v":"2025-11-23"},{"$f":"IF(MONTH(DATE($A$3,$BQ$3,COLUMNS($BQ$1:CN1)))<>$BQ$3,\"\",DATE($A$3,$BQ$3,COLUMNS($BQ$1:CN1)))","v":"2025-11-24"},{"$f":"IF(MONTH(DATE($A$3,$BQ$3,COLUMNS($BQ$1:CO1)))<>$BQ$3,\"\",DATE($A$3,$BQ$3,COLUMNS($BQ$1:CO1)))","v":"2025-11-25"},{"$f":"IF(MONTH(DATE($A$3,$BQ$3,COLUMNS($BQ$1:CP1)))<>$BQ$3,\"\",DATE($A$3,$BQ$3,COLUMNS($BQ$1:CP1)))","v":"2025-11-26"},{"$f":"IF(MONTH(DATE($A$3,$BQ$3,COLUMNS($BQ$1:CQ1)))<>$BQ$3,\"\",DATE($A$3,$BQ$3,COLUMNS($BQ$1:CQ1)))","v":"2025-11-27"},{"$f":"IF(MONTH(DATE($A$3,$BQ$3,COLUMNS($BQ$1:CR1)))<>$BQ$3,\"\",DATE($A$3,$BQ$3,COLUMNS($BQ$1:CR1)))","v":"2025-11-28"},{"$f":"IF(MONTH(DATE($A$3,$BQ$3,COLUMNS($BQ$1:CS1)))<>$BQ$3,\"\",DATE($A$3,$BQ$3,COLUMNS($BQ$1:CS1)))","v":"2025-11-29"},{"$f":"IF(MONTH(DATE($A$3,$BQ$3,COLUMNS($BQ$1:CT1)))<>$BQ$3,\"\",DATE($A$3,$BQ$3,COLUMNS($BQ$1:CT1)))","v":"2025-11-30"},{"$f":"IF(MONTH(DATE($A$3,$BQ$3,COLUMNS($BQ$1:CU1)))<>$BQ$3,\"\",DATE($A$3,$BQ$3,COLUMNS($BQ$1:CU1)))","v":""},"مجموع الغياب",{"$f":"IF(MONTH(DATE($A$3,$CW$3,COLUMNS($CW$1:CW1)))<>$CW$3,\"\",DATE($A$3,$CW$3,COLUMNS($CW$1:CW1)))","v":"2025-12-01"},{"$f":"IF(MONTH(DATE($A$3,$CW$3,COLUMNS($CW$1:CX1)))<>$CW$3,\"\",DATE($A$3,$CW$3,COLUMNS($CW$1:CX1)))","v":"2025-12-02"},{"$f":"IF(MONTH(DATE($A$3,$CW$3,COLUMNS($CW$1:CY1)))<>$CW$3,\"\",DATE($A$3,$CW$3,COLUMNS($CW$1:CY1)))","v":"2025-12-03"},{"$f":"IF(MONTH(DATE($A$3,$CW$3,COLUMNS($CW$1:CZ1)))<>$CW$3,\"\",DATE($A$3,$CW$3,COLUMNS($CW$1:CZ1)))","v":"2025-12-04"},{"$f":"IF(MONTH(DATE($A$3,$CW$3,COLUMNS($CW$1:DA1)))<>$CW$3,\"\",DATE($A$3,$CW$3,COLUMNS($CW$1:DA1)))","v":"2025-12-05"},{"$f":"IF(MONTH(DATE($A$3,$CW$3,COLUMNS($CW$1:DB1)))<>$CW$3,\"\",DATE($A$3,$CW$3,COLUMNS($CW$1:DB1)))","v":"2025-12-06"},{"$f":"IF(MONTH(DATE($A$3,$CW$3,COLUMNS($CW$1:DC1)))<>$CW$3,\"\",DATE($A$3,$CW$3,COLUMNS($CW$1:DC1)))","v":"2025-12-07"},{"$f":"IF(MONTH(DATE($A$3,$CW$3,COLUMNS($CW$1:DD1)))<>$CW$3,\"\",DATE($A$3,$CW$3,COLUMNS($CW$1:DD1)))","v":"2025-12-08"},{"$f":"IF(MONTH(DATE($A$3,$CW$3,COLUMNS($CW$1:DE1)))<>$CW$3,\"\",DATE($A$3,$CW$3,COLUMNS($CW$1:DE1)))","v":"2025-12-09"},{"$f":"IF(MONTH(DATE($A$3,$CW$3,COLUMNS($CW$1:DF1)))<>$CW$3,\"\",DATE($A$3,$CW$3,COLUMNS($CW$1:DF1)))","v":"2025-12-10"},{"$f":"IF(MONTH(DATE($A$3,$CW$3,COLUMNS($CW$1:DG1)))<>$CW$3,\"\",DATE($A$3,$CW$3,COLUMNS($CW$1:DG1)))","v":"2025-12-11"},{"$f":"IF(MONTH(DATE($A$3,$CW$3,COLUMNS($CW$1:DH1)))<>$CW$3,\"\",DATE($A$3,$CW$3,COLUMNS($CW$1:DH1)))","v":"2025-12-12"},{"$f":"IF(MONTH(DATE($A$3,$CW$3,COLUMNS($CW$1:DI1)))<>$CW$3,\"\",DATE($A$3,$CW$3,COLUMNS($CW$1:DI1)))","v":"2025-12-13"},{"$f":"IF(MONTH(DATE($A$3,$CW$3,COLUMNS($CW$1:DJ1)))<>$CW$3,\"\",DATE($A$3,$CW$3,COLUMNS($CW$1:DJ1)))","v":"2025-12-14"},{"$f":"IF(MONTH(DATE($A$3,$CW$3,COLUMNS($CW$1:DK1)))<>$CW$3,\"\",DATE($A$3,$CW$3,COLUMNS($CW$1:DK1)))","v":"2025-12-15"},{"$f":"IF(MONTH(DATE($A$3,$CW$3,COLUMNS($CW$1:DL1)))<>$CW$3,\"\",DATE($A$3,$CW$3,COLUMNS($CW$1:DL1)))","v":"2025-12-16"},{"$f":"IF(MONTH(DATE($A$3,$CW$3,COLUMNS($CW$1:DM1)))<>$CW$3,\"\",DATE($A$3,$CW$3,COLUMNS($CW$1:DM1)))","v":"2025-12-17"},{"$f":"IF(MONTH(DATE($A$3,$CW$3,COLUMNS($CW$1:DN1)))<>$CW$3,\"\",DATE($A$3,$CW$3,COLUMNS($CW$1:DN1)))","v":"2025-12-18"},{"$f":"IF(MONTH(DATE($A$3,$CW$3,COLUMNS($CW$1:DO1)))<>$CW$3,\"\",DATE($A$3,$CW$3,COLUMNS($CW$1:DO1)))","v":"2025-12-19"},{"$f":"IF(MONTH(DATE($A$3,$CW$3,COLUMNS($CW$1:DP1)))<>$CW$3,\"\",DATE($A$3,$CW$3,COLUMNS($CW$1:DP1)))","v":"2025-12-20"},{"$f":"IF(MONTH(DATE($A$3,$CW$3,COLUMNS($CW$1:DQ1)))<>$CW$3,\"\",DATE($A$3,$CW$3,COLUMNS($CW$1:DQ1)))","v":"2025-12-21"},{"$f":"IF(MONTH(DATE($A$3,$CW$3,COLUMNS($CW$1:DR1)))<>$CW$3,\"\",DATE($A$3,$CW$3,COLUMNS($CW$1:DR1)))","v":"2025-12-22"},{"$f":"IF(MONTH(DATE($A$3,$CW$3,COLUMNS($CW$1:DS1)))<>$CW$3,\"\",DATE($A$3,$CW$3,COLUMNS($CW$1:DS1)))","v":"2025-12-23"},{"$f":"IF(MONTH(DATE($A$3,$CW$3,COLUMNS($CW$1:DT1)))<>$CW$3,\"\",DATE($A$3,$CW$3,COLUMNS($CW$1:DT1)))","v":"2025-12-24"},{"$f":"IF(MONTH(DATE($A$3,$CW$3,COLUMNS($CW$1:DU1)))<>$CW$3,\"\",DATE($A$3,$CW$3,COLUMNS($CW$1:DU1)))","v":"2025-12-25"},{"$f":"IF(MONTH(DATE($A$3,$CW$3,COLUMNS($CW$1:DV1)))<>$CW$3,\"\",DATE($A$3,$CW$3,COLUMNS($CW$1:DV1)))","v":"2025-12-26"},{"$f":"IF(MONTH(DATE($A$3,$CW$3,COLUMNS($CW$1:DW1)))<>$CW$3,\"\",DATE($A$3,$CW$3,COLUMNS($CW$1:DW1)))","v":"2025-12-27"},{"$f":"IF(MONTH(DATE($A$3,$CW$3,COLUMNS($CW$1:DX1)))<>$CW$3,\"\",DATE($A$3,$CW$3,COLUMNS($CW$1:DX1)))","v":"2025-12-28"},{"$f":"IF(MONTH(DATE($A$3,$CW$3,COLUMNS($CW$1:DY1)))<>$CW$3,\"\",DATE($A$3,$CW$3,COLUMNS($CW$1:DY1)))","v":"2025-12-29"},{"$f":"IF(MONTH(DATE($A$3,$CW$3,COLUMNS($CW$1:DZ1)))<>$CW$3,\"\",DATE($A$3,$CW$3,COLUMNS($CW$1:DZ1)))","v":"2025-12-30"},{"$f":"IF(MONTH(DATE($A$3,$CW$3,COLUMNS($CW$1:EA1)))<>$CW$3,\"\",DATE($A$3,$CW$3,COLUMNS($CW$1:EA1)))","v":"2025-12-31"},"مجموع الغياب",{"$f":"IF(MONTH(DATE($EC$3,$ED$3,COLUMNS($EC$1:EC1)))<>$ED$3,\"\",DATE($EC$3,$ED$3,COLUMNS($EC$1:EC1)))","v":"2026-01-01"},{"$f":"IF(MONTH(DATE($EC$3,$ED$3,COLUMNS($EC$1:ED1)))<>$ED$3,\"\",DATE($EC$3,$ED$3,COLUMNS($EC$1:ED1)))","v":"2026-01-02"},{"$f":"IF(MONTH(DATE($EC$3,$ED$3,COLUMNS($EC$1:EE1)))<>$ED$3,\"\",DATE($EC$3,$ED$3,COLUMNS($EC$1:EE1)))","v":"2026-01-03"},{"$f":"IF(MONTH(DATE($EC$3,$ED$3,COLUMNS($EC$1:EF1)))<>$ED$3,\"\",DATE($EC$3,$ED$3,COLUMNS($EC$1:EF1)))","v":"2026-01-04"},{"$f":"IF(MONTH(DATE($EC$3,$ED$3,COLUMNS($EC$1:EG1)))<>$ED$3,\"\",DATE($EC$3,$ED$3,COLUMNS($EC$1:EG1)))","v":"2026-01-05"},{"$f":"IF(MONTH(DATE($EC$3,$ED$3,COLUMNS($EC$1:EH1)))<>$ED$3,\"\",DATE($EC$3,$ED$3,COLUMNS($EC$1:EH1)))","v":"2026-01-06"},{"$f":"IF(MONTH(DATE($EC$3,$ED$3,COLUMNS($EC$1:EI1)))<>$ED$3,\"\",DATE($EC$3,$ED$3,COLUMNS($EC$1:EI1)))","v":"2026-01-07"},{"$f":"IF(MONTH(DATE($EC$3,$ED$3,COLUMNS($EC$1:EJ1)))<>$ED$3,\"\",DATE($EC$3,$ED$3,COLUMNS($EC$1:EJ1)))","v":"2026-01-08"},{"$f":"IF(MONTH(DATE($EC$3,$ED$3,COLUMNS($EC$1:EK1)))<>$ED$3,\"\",DATE($EC$3,$ED$3,COLUMNS($EC$1:EK1)))","v":"2026-01-09"},{"$f":"IF(MONTH(DATE($EC$3,$ED$3,COLUMNS($EC$1:EL1)))<>$ED$3,\"\",DATE($EC$3,$ED$3,COLUMNS($EC$1:EL1)))","v":"2026-01-10"},{"$f":"IF(MONTH(DATE($EC$3,$ED$3,COLUMNS($EC$1:EM1)))<>$ED$3,\"\",DATE($EC$3,$ED$3,COLUMNS($EC$1:EM1)))","v":"2026-01-11"},{"$f":"IF(MONTH(DATE($EC$3,$ED$3,COLUMNS($EC$1:EN1)))<>$ED$3,\"\",DATE($EC$3,$ED$3,COLUMNS($EC$1:EN1)))","v":"2026-01-12"},{"$f":"IF(MONTH(DATE($EC$3,$ED$3,COLUMNS($EC$1:EO1)))<>$ED$3,\"\",DATE($EC$3,$ED$3,COLUMNS($EC$1:EO1)))","v":"2026-01-13"},{"$f":"IF(MONTH(DATE($EC$3,$ED$3,COLUMNS($EC$1:EP1)))<>$ED$3,\"\",DATE($EC$3,$ED$3,COLUMNS($EC$1:EP1)))","v":"2026-01-14"},{"$f":"IF(MONTH(DATE($EC$3,$ED$3,COLUMNS($EC$1:EQ1)))<>$ED$3,\"\",DATE($EC$3,$ED$3,COLUMNS($EC$1:EQ1)))","v":"2026-01-15"},{"$f":"IF(MONTH(DATE($EC$3,$ED$3,COLUMNS($EC$1:ER1)))<>$ED$3,\"\",DATE($EC$3,$ED$3,COLUMNS($EC$1:ER1)))","v":"2026-01-16"},{"$f":"IF(MONTH(DATE($EC$3,$ED$3,COLUMNS($EC$1:ES1)))<>$ED$3,\"\",DATE($EC$3,$ED$3,COLUMNS($EC$1:ES1)))","v":"2026-01-17"},{"$f":"IF(MONTH(DATE($EC$3,$ED$3,COLUMNS($EC$1:ET1)))<>$ED$3,\"\",DATE($EC$3,$ED$3,COLUMNS($EC$1:ET1)))","v":"2026-01-18"},{"$f":"IF(MONTH(DATE($EC$3,$ED$3,COLUMNS($EC$1:EU1)))<>$ED$3,\"\",DATE($EC$3,$ED$3,COLUMNS($EC$1:EU1)))","v":"2026-01-19"},{"$f":"IF(MONTH(DATE($EC$3,$ED$3,COLUMNS($EC$1:EV1)))<>$ED$3,\"\",DATE($EC$3,$ED$3,COLUMNS($EC$1:EV1)))","v":"2026-01-20"},{"$f":"IF(MONTH(DATE($EC$3,$ED$3,COLUMNS($EC$1:EW1)))<>$ED$3,\"\",DATE($EC$3,$ED$3,COLUMNS($EC$1:EW1)))","v":"2026-01-21"},{"$f":"IF(MONTH(DATE($EC$3,$ED$3,COLUMNS($EC$1:EX1)))<>$ED$3,\"\",DATE($EC$3,$ED$3,COLUMNS($EC$1:EX1)))","v":"2026-01-22"},{"$f":"IF(MONTH(DATE($EC$3,$ED$3,COLUMNS($EC$1:EY1)))<>$ED$3,\"\",DATE($EC$3,$ED$3,COLUMNS($EC$1:EY1)))","v":"2026-01-23"},{"$f":"IF(MONTH(DATE($EC$3,$ED$3,COLUMNS($EC$1:EZ1)))<>$ED$3,\"\",DATE($EC$3,$ED$3,COLUMNS($EC$1:EZ1)))","v":"2026-01-24"},{"$f":"IF(MONTH(DATE($EC$3,$ED$3,COLUMNS($EC$1:FA1)))<>$ED$3,\"\",DATE($EC$3,$ED$3,COLUMNS($EC$1:FA1)))","v":"2026-01-25"},{"$f":"IF(MONTH(DATE($EC$3,$ED$3,COLUMNS($EC$1:FB1)))<>$ED$3,\"\",DATE($EC$3,$ED$3,COLUMNS($EC$1:FB1)))","v":"2026-01-26"},{"$f":"IF(MONTH(DATE($EC$3,$ED$3,COLUMNS($EC$1:FC1)))<>$ED$3,\"\",DATE($EC$3,$ED$3,COLUMNS($EC$1:FC1)))","v":"2026-01-27"},{"$f":"IF(MONTH(DATE($EC$3,$ED$3,COLUMNS($EC$1:FD1)))<>$ED$3,\"\",DATE($EC$3,$ED$3,COLUMNS($EC$1:FD1)))","v":"2026-01-28"},{"$f":"IF(MONTH(DATE($EC$3,$ED$3,COLUMNS($EC$1:FE1)))<>$ED$3,\"\",DATE($EC$3,$ED$3,COLUMNS($EC$1:FE1)))","v":"2026-01-29"},{"$f":"IF(MONTH(DATE($EC$3,$ED$3,COLUMNS($EC$1:FF1)))<>$ED$3,\"\",DATE($EC$3,$ED$3,COLUMNS($EC$1:FF1)))","v":"2026-01-30"},{"$f":"IF(MONTH(DATE($EC$3,$ED$3,COLUMNS($EC$1:FG1)))<>$ED$3,\"\",DATE($EC$3,$ED$3,COLUMNS($EC$1:FG1)))","v":"2026-01-31"},"مجموع الغياب",{"$f":"IF(MONTH(DATE($EC$3,$FI$3,COLUMNS($FI$1:FI1)))<>$FI$3,\"\",DATE($EC$3,$FI$3,COLUMNS($FI$1:FI1)))","v":"2026-02-01"},{"$f":"IF(MONTH(DATE($EC$3,$FI$3,COLUMNS($FI$1:FJ1)))<>$FI$3,\"\",DATE($EC$3,$FI$3,COLUMNS($FI$1:FJ1)))","v":"2026-02-02"},{"$f":"IF(MONTH(DATE($EC$3,$FI$3,COLUMNS($FI$1:FK1)))<>$FI$3,\"\",DATE($EC$3,$FI$3,COLUMNS($FI$1:FK1)))","v":"2026-02-03"},{"$f":"IF(MONTH(DATE($EC$3,$FI$3,COLUMNS($FI$1:FL1)))<>$FI$3,\"\",DATE($EC$3,$FI$3,COLUMNS($FI$1:FL1)))","v":"2026-02-04"},{"$f":"IF(MONTH(DATE($EC$3,$FI$3,COLUMNS($FI$1:FM1)))<>$FI$3,\"\",DATE($EC$3,$FI$3,COLUMNS($FI$1:FM1)))","v":"2026-02-05"},{"$f":"IF(MONTH(DATE($EC$3,$FI$3,COLUMNS($FI$1:FN1)))<>$FI$3,\"\",DATE($EC$3,$FI$3,COLUMNS($FI$1:FN1)))","v":"2026-02-06"},{"$f":"IF(MONTH(DATE($EC$3,$FI$3,COLUMNS($FI$1:FO1)))<>$FI$3,\"\",DATE($EC$3,$FI$3,COLUMNS($FI$1:FO1)))","v":"2026-02-07"},{"$f":"IF(MONTH(DATE($EC$3,$FI$3,COLUMNS($FI$1:FP1)))<>$FI$3,\"\",DATE($EC$3,$FI$3,COLUMNS($FI$1:FP1)))","v":"2026-02-08"},{"$f":"IF(MONTH(DATE($EC$3,$FI$3,COLUMNS($FI$1:FQ1)))<>$FI$3,\"\",DATE($EC$3,$FI$3,COLUMNS($FI$1:FQ1)))","v":"2026-02-09"},{"$f":"IF(MONTH(DATE($EC$3,$FI$3,COLUMNS($FI$1:FR1)))<>$FI$3,\"\",DATE($EC$3,$FI$3,COLUMNS($FI$1:FR1)))","v":"2026-02-10"},{"$f":"IF(MONTH(DATE($EC$3,$FI$3,COLUMNS($FI$1:FS1)))<>$FI$3,\"\",DATE($EC$3,$FI$3,COLUMNS($FI$1:FS1)))","v":"2026-02-11"},{"$f":"IF(MONTH(DATE($EC$3,$FI$3,COLUMNS($FI$1:FT1)))<>$FI$3,\"\",DATE($EC$3,$FI$3,COLUMNS($FI$1:FT1)))","v":"2026-02-12"},{"$f":"IF(MONTH(DATE($EC$3,$FI$3,COLUMNS($FI$1:FU1)))<>$FI$3,\"\",DATE($EC$3,$FI$3,COLUMNS($FI$1:FU1)))","v":"2026-02-13"},{"$f":"IF(MONTH(DATE($EC$3,$FI$3,COLUMNS($FI$1:FV1)))<>$FI$3,\"\",DATE($EC$3,$FI$3,COLUMNS($FI$1:FV1)))","v":"2026-02-14"},{"$f":"IF(MONTH(DATE($EC$3,$FI$3,COLUMNS($FI$1:FW1)))<>$FI$3,\"\",DATE($EC$3,$FI$3,COLUMNS($FI$1:FW1)))","v":"2026-02-15"},{"$f":"IF(MONTH(DATE($EC$3,$FI$3,COLUMNS($FI$1:FX1)))<>$FI$3,\"\",DATE($EC$3,$FI$3,COLUMNS($FI$1:FX1)))","v":"2026-02-16"},{"$f":"IF(MONTH(DATE($EC$3,$FI$3,COLUMNS($FI$1:FY1)))<>$FI$3,\"\",DATE($EC$3,$FI$3,COLUMNS($FI$1:FY1)))","v":"2026-02-17"},{"$f":"IF(MONTH(DATE($EC$3,$FI$3,COLUMNS($FI$1:FZ1)))<>$FI$3,\"\",DATE($EC$3,$FI$3,COLUMNS($FI$1:FZ1)))","v":"2026-02-18"},{"$f":"IF(MONTH(DATE($EC$3,$FI$3,COLUMNS($FI$1:GA1)))<>$FI$3,\"\",DATE($EC$3,$FI$3,COLUMNS($FI$1:GA1)))","v":"2026-02-19"},{"$f":"IF(MONTH(DATE($EC$3,$FI$3,COLUMNS($FI$1:GB1)))<>$FI$3,\"\",DATE($EC$3,$FI$3,COLUMNS($FI$1:GB1)))","v":"2026-02-20"},{"$f":"IF(MONTH(DATE($EC$3,$FI$3,COLUMNS($FI$1:GC1)))<>$FI$3,\"\",DATE($EC$3,$FI$3,COLUMNS($FI$1:GC1)))","v":"2026-02-21"},{"$f":"IF(MONTH(DATE($EC$3,$FI$3,COLUMNS($FI$1:GD1)))<>$FI$3,\"\",DATE($EC$3,$FI$3,COLUMNS($FI$1:GD1)))","v":"2026-02-22"},{"$f":"IF(MONTH(DATE($EC$3,$FI$3,COLUMNS($FI$1:GE1)))<>$FI$3,\"\",DATE($EC$3,$FI$3,COLUMNS($FI$1:GE1)))","v":"2026-02-23"},{"$f":"IF(MONTH(DATE($EC$3,$FI$3,COLUMNS($FI$1:GF1)))<>$FI$3,\"\",DATE($EC$3,$FI$3,COLUMNS($FI$1:GF1)))","v":"2026-02-24"},{"$f":"IF(MONTH(DATE($EC$3,$FI$3,COLUMNS($FI$1:GG1)))<>$FI$3,\"\",DATE($EC$3,$FI$3,COLUMNS($FI$1:GG1)))","v":"2026-02-25"},{"$f":"IF(MONTH(DATE($EC$3,$FI$3,COLUMNS($FI$1:GH1)))<>$FI$3,\"\",DATE($EC$3,$FI$3,COLUMNS($FI$1:GH1)))","v":"2026-02-26"},{"$f":"IF(MONTH(DATE($EC$3,$FI$3,COLUMNS($FI$1:GI1)))<>$FI$3,\"\",DATE($EC$3,$FI$3,COLUMNS($FI$1:GI1)))","v":"2026-02-27"},{"$f":"IF(MONTH(DATE($EC$3,$FI$3,COLUMNS($FI$1:GJ1)))<>$FI$3,\"\",DATE($EC$3,$FI$3,COLUMNS($FI$1:GJ1)))","v":"2026-02-28"},{"$f":"IF(MONTH(DATE($EC$3,$FI$3,COLUMNS($FI$1:GK1)))<>$FI$3,\"\",DATE($EC$3,$FI$3,COLUMNS($FI$1:GK1)))","v":""},{"$f":"IF(MONTH(DATE($EC$3,$FI$3,COLUMNS($FI$1:GL1)))<>$FI$3,\"\",DATE($EC$3,$FI$3,COLUMNS($FI$1:GL1)))","v":""},{"$f":"IF(MONTH(DATE($EC$3,$FI$3,COLUMNS($FI$1:GM1)))<>$FI$3,\"\",DATE($EC$3,$FI$3,COLUMNS($FI$1:GM1)))","v":""},"مجموع الغياب",{"$f":"IF(MONTH(DATE($EC$3,$GO$3,COLUMNS($GO$1:GO1)))<>$GO$3,\"\",DATE($EC$3,$GO$3,COLUMNS($GO$1:GO1)))","v":"2026-03-01"},{"$f":"IF(MONTH(DATE($EC$3,$GO$3,COLUMNS($GO$1:GP1)))<>$GO$3,\"\",DATE($EC$3,$GO$3,COLUMNS($GO$1:GP1)))","v":"2026-03-02"},{"$f":"IF(MONTH(DATE($EC$3,$GO$3,COLUMNS($GO$1:GQ1)))<>$GO$3,\"\",DATE($EC$3,$GO$3,COLUMNS($GO$1:GQ1)))","v":"2026-03-03"},{"$f":"IF(MONTH(DATE($EC$3,$GO$3,COLUMNS($GO$1:GR1)))<>$GO$3,\"\",DATE($EC$3,$GO$3,COLUMNS($GO$1:GR1)))","v":"2026-03-04"},{"$f":"IF(MONTH(DATE($EC$3,$GO$3,COLUMNS($GO$1:GS1)))<>$GO$3,\"\",DATE($EC$3,$GO$3,COLUMNS($GO$1:GS1)))","v":"2026-03-05"},{"$f":"IF(MONTH(DATE($EC$3,$GO$3,COLUMNS($GO$1:GT1)))<>$GO$3,\"\",DATE($EC$3,$GO$3,COLUMNS($GO$1:GT1)))","v":"2026-03-06"},{"$f":"IF(MONTH(DATE($EC$3,$GO$3,COLUMNS($GO$1:GU1)))<>$GO$3,\"\",DATE($EC$3,$GO$3,COLUMNS($GO$1:GU1)))","v":"2026-03-07"},{"$f":"IF(MONTH(DATE($EC$3,$GO$3,COLUMNS($GO$1:GV1)))<>$GO$3,\"\",DATE($EC$3,$GO$3,COLUMNS($GO$1:GV1)))","v":"2026-03-08"},{"$f":"IF(MONTH(DATE($EC$3,$GO$3,COLUMNS($GO$1:GW1)))<>$GO$3,\"\",DATE($EC$3,$GO$3,COLUMNS($GO$1:GW1)))","v":"2026-03-09"},{"$f":"IF(MONTH(DATE($EC$3,$GO$3,COLUMNS($GO$1:GX1)))<>$GO$3,\"\",DATE($EC$3,$GO$3,COLUMNS($GO$1:GX1)))","v":"2026-03-10"},{"$f":"IF(MONTH(DATE($EC$3,$GO$3,COLUMNS($GO$1:GY1)))<>$GO$3,\"\",DATE($EC$3,$GO$3,COLUMNS($GO$1:GY1)))","v":"2026-03-11"},{"$f":"IF(MONTH(DATE($EC$3,$GO$3,COLUMNS($GO$1:GZ1)))<>$GO$3,\"\",DATE($EC$3,$GO$3,COLUMNS($GO$1:GZ1)))","v":"2026-03-12"},{"$f":"IF(MONTH(DATE($EC$3,$GO$3,COLUMNS($GO$1:HA1)))<>$GO$3,\"\",DATE($EC$3,$GO$3,COLUMNS($GO$1:HA1)))","v":"2026-03-13"},{"$f":"IF(MONTH(DATE($EC$3,$GO$3,COLUMNS($GO$1:HB1)))<>$GO$3,\"\",DATE($EC$3,$GO$3,COLUMNS($GO$1:HB1)))","v":"2026-03-14"},{"$f":"IF(MONTH(DATE($EC$3,$GO$3,COLUMNS($GO$1:HC1)))<>$GO$3,\"\",DATE($EC$3,$GO$3,COLUMNS($GO$1:HC1)))","v":"2026-03-15"},{"$f":"IF(MONTH(DATE($EC$3,$GO$3,COLUMNS($GO$1:HD1)))<>$GO$3,\"\",DATE($EC$3,$GO$3,COLUMNS($GO$1:HD1)))","v":"2026-03-16"},{"$f":"IF(MONTH(DATE($EC$3,$GO$3,COLUMNS($GO$1:HE1)))<>$GO$3,\"\",DATE($EC$3,$GO$3,COLUMNS($GO$1:HE1)))","v":"2026-03-17"},{"$f":"IF(MONTH(DATE($EC$3,$GO$3,COLUMNS($GO$1:HF1)))<>$GO$3,\"\",DATE($EC$3,$GO$3,COLUMNS($GO$1:HF1)))","v":"2026-03-18"},{"$f":"IF(MONTH(DATE($EC$3,$GO$3,COLUMNS($GO$1:HG1)))<>$GO$3,\"\",DATE($EC$3,$GO$3,COLUMNS($GO$1:HG1)))","v":"2026-03-19"},{"$f":"IF(MONTH(DATE($EC$3,$GO$3,COLUMNS($GO$1:HH1)))<>$GO$3,\"\",DATE($EC$3,$GO$3,COLUMNS($GO$1:HH1)))","v":"2026-03-20"},{"$f":"IF(MONTH(DATE($EC$3,$GO$3,COLUMNS($GO$1:HI1)))<>$GO$3,\"\",DATE($EC$3,$GO$3,COLUMNS($GO$1:HI1)))","v":"2026-03-21"},{"$f":"IF(MONTH(DATE($EC$3,$GO$3,COLUMNS($GO$1:HJ1)))<>$GO$3,\"\",DATE($EC$3,$GO$3,COLUMNS($GO$1:HJ1)))","v":"2026-03-22"},{"$f":"IF(MONTH(DATE($EC$3,$GO$3,COLUMNS($GO$1:HK1)))<>$GO$3,\"\",DATE($EC$3,$GO$3,COLUMNS($GO$1:HK1)))","v":"2026-03-23"},{"$f":"IF(MONTH(DATE($EC$3,$GO$3,COLUMNS($GO$1:HL1)))<>$GO$3,\"\",DATE($EC$3,$GO$3,COLUMNS($GO$1:HL1)))","v":"2026-03-24"},{"$f":"IF(MONTH(DATE($EC$3,$GO$3,COLUMNS($GO$1:HM1)))<>$GO$3,\"\",DATE($EC$3,$GO$3,COLUMNS($GO$1:HM1)))","v":"2026-03-25"},{"$f":"IF(MONTH(DATE($EC$3,$GO$3,COLUMNS($GO$1:HN1)))<>$GO$3,\"\",DATE($EC$3,$GO$3,COLUMNS($GO$1:HN1)))","v":"2026-03-26"},{"$f":"IF(MONTH(DATE($EC$3,$GO$3,COLUMNS($GO$1:HO1)))<>$GO$3,\"\",DATE($EC$3,$GO$3,COLUMNS($GO$1:HO1)))","v":"2026-03-27"},{"$f":"IF(MONTH(DATE($EC$3,$GO$3,COLUMNS($GO$1:HP1)))<>$GO$3,\"\",DATE($EC$3,$GO$3,COLUMNS($GO$1:HP1)))","v":"2026-03-28"},{"$f":"IF(MONTH(DATE($EC$3,$GO$3,COLUMNS($GO$1:HQ1)))<>$GO$3,\"\",DATE($EC$3,$GO$3,COLUMNS($GO$1:HQ1)))","v":"2026-03-29"},{"$f":"IF(MONTH(DATE($EC$3,$GO$3,COLUMNS($GO$1:HR1)))<>$GO$3,\"\",DATE($EC$3,$GO$3,COLUMNS($GO$1:HR1)))","v":"2026-03-30"},{"$f":"IF(MONTH(DATE($EC$3,$GO$3,COLUMNS($GO$1:HS1)))<>$GO$3,\"\",DATE($EC$3,$GO$3,COLUMNS($GO$1:HS1)))","v":"2026-03-31"},"مجموع الغياب",{"$f":"IF(MONTH(DATE($EC$3,$HU$3,COLUMNS($HU$1:HU1)))<>$HU$3,\"\",DATE($EC$3,$HU$3,COLUMNS($HU$1:HU1)))","v":"2026-04-01"},{"$f":"IF(MONTH(DATE($EC$3,$HU$3,COLUMNS($HU$1:HV1)))<>$HU$3,\"\",DATE($EC$3,$HU$3,COLUMNS($HU$1:HV1)))","v":"2026-04-02"},{"$f":"IF(MONTH(DATE($EC$3,$HU$3,COLUMNS($HU$1:HW1)))<>$HU$3,\"\",DATE($EC$3,$HU$3,COLUMNS($HU$1:HW1)))","v":"2026-04-03"},{"$f":"IF(MONTH(DATE($EC$3,$HU$3,COLUMNS($HU$1:HX1)))<>$HU$3,\"\",DATE($EC$3,$HU$3,COLUMNS($HU$1:HX1)))","v":"2026-04-04"},{"$f":"IF(MONTH(DATE($EC$3,$HU$3,COLUMNS($HU$1:HY1)))<>$HU$3,\"\",DATE($EC$3,$HU$3,COLUMNS($HU$1:HY1)))","v":"2026-04-05"},{"$f":"IF(MONTH(DATE($EC$3,$HU$3,COLUMNS($HU$1:HZ1)))<>$HU$3,\"\",DATE($EC$3,$HU$3,COLUMNS($HU$1:HZ1)))","v":"2026-04-06"},{"$f":"IF(MONTH(DATE($EC$3,$HU$3,COLUMNS($HU$1:IA1)))<>$HU$3,\"\",DATE($EC$3,$HU$3,COLUMNS($HU$1:IA1)))","v":"2026-04-07"},{"$f":"IF(MONTH(DATE($EC$3,$HU$3,COLUMNS($HU$1:IB1)))<>$HU$3,\"\",DATE($EC$3,$HU$3,COLUMNS($HU$1:IB1)))","v":"2026-04-08"},{"$f":"IF(MONTH(DATE($EC$3,$HU$3,COLUMNS($HU$1:IC1)))<>$HU$3,\"\",DATE($EC$3,$HU$3,COLUMNS($HU$1:IC1)))","v":"2026-04-09"},{"$f":"IF(MONTH(DATE($EC$3,$HU$3,COLUMNS($HU$1:ID1)))<>$HU$3,\"\",DATE($EC$3,$HU$3,COLUMNS($HU$1:ID1)))","v":"2026-04-10"},{"$f":"IF(MONTH(DATE($EC$3,$HU$3,COLUMNS($HU$1:IE1)))<>$HU$3,\"\",DATE($EC$3,$HU$3,COLUMNS($HU$1:IE1)))","v":"2026-04-11"},{"$f":"IF(MONTH(DATE($EC$3,$HU$3,COLUMNS($HU$1:IF1)))<>$HU$3,\"\",DATE($EC$3,$HU$3,COLUMNS($HU$1:IF1)))","v":"2026-04-12"},{"$f":"IF(MONTH(DATE($EC$3,$HU$3,COLUMNS($HU$1:IG1)))<>$HU$3,\"\",DATE($EC$3,$HU$3,COLUMNS($HU$1:IG1)))","v":"2026-04-13"},{"$f":"IF(MONTH(DATE($EC$3,$HU$3,COLUMNS($HU$1:IH1)))<>$HU$3,\"\",DATE($EC$3,$HU$3,COLUMNS($HU$1:IH1)))","v":"2026-04-14"},{"$f":"IF(MONTH(DATE($EC$3,$HU$3,COLUMNS($HU$1:II1)))<>$HU$3,\"\",DATE($EC$3,$HU$3,COLUMNS($HU$1:II1)))","v":"2026-04-15"},{"$f":"IF(MONTH(DATE($EC$3,$HU$3,COLUMNS($HU$1:IJ1)))<>$HU$3,\"\",DATE($EC$3,$HU$3,COLUMNS($HU$1:IJ1)))","v":"2026-04-16"},{"$f":"IF(MONTH(DATE($EC$3,$HU$3,COLUMNS($HU$1:IK1)))<>$HU$3,\"\",DATE($EC$3,$HU$3,COLUMNS($HU$1:IK1)))","v":"2026-04-17"},{"$f":"IF(MONTH(DATE($EC$3,$HU$3,COLUMNS($HU$1:IL1)))<>$HU$3,\"\",DATE($EC$3,$HU$3,COLUMNS($HU$1:IL1)))","v":"2026-04-18"},{"$f":"IF(MONTH(DATE($EC$3,$HU$3,COLUMNS($HU$1:IM1)))<>$HU$3,\"\",DATE($EC$3,$HU$3,COLUMNS($HU$1:IM1)))","v":"2026-04-19"},{"$f":"IF(MONTH(DATE($EC$3,$HU$3,COLUMNS($HU$1:IN1)))<>$HU$3,\"\",DATE($EC$3,$HU$3,COLUMNS($HU$1:IN1)))","v":"2026-04-20"},{"$f":"IF(MONTH(DATE($EC$3,$HU$3,COLUMNS($HU$1:IO1)))<>$HU$3,\"\",DATE($EC$3,$HU$3,COLUMNS($HU$1:IO1)))","v":"2026-04-21"},{"$f":"IF(MONTH(DATE($EC$3,$HU$3,COLUMNS($HU$1:IP1)))<>$HU$3,\"\",DATE($EC$3,$HU$3,COLUMNS($HU$1:IP1)))","v":"2026-04-22"},{"$f":"IF(MONTH(DATE($EC$3,$HU$3,COLUMNS($HU$1:IQ1)))<>$HU$3,\"\",DATE($EC$3,$HU$3,COLUMNS($HU$1:IQ1)))","v":"2026-04-23"},{"$f":"IF(MONTH(DATE($EC$3,$HU$3,COLUMNS($HU$1:IR1)))<>$HU$3,\"\",DATE($EC$3,$HU$3,COLUMNS($HU$1:IR1)))","v":"2026-04-24"},{"$f":"IF(MONTH(DATE($EC$3,$HU$3,COLUMNS($HU$1:IS1)))<>$HU$3,\"\",DATE($EC$3,$HU$3,COLUMNS($HU$1:IS1)))","v":"2026-04-25"},{"$f":"IF(MONTH(DATE($EC$3,$HU$3,COLUMNS($HU$1:IT1)))<>$HU$3,\"\",DATE($EC$3,$HU$3,COLUMNS($HU$1:IT1)))","v":"2026-04-26"},{"$f":"IF(MONTH(DATE($EC$3,$HU$3,COLUMNS($HU$1:IU1)))<>$HU$3,\"\",DATE($EC$3,$HU$3,COLUMNS($HU$1:IU1)))","v":"2026-04-27"},{"$f":"IF(MONTH(DATE($EC$3,$HU$3,COLUMNS($HU$1:IV1)))<>$HU$3,\"\",DATE($EC$3,$HU$3,COLUMNS($HU$1:IV1)))","v":"2026-04-28"},{"$f":"IF(MONTH(DATE($EC$3,$HU$3,COLUMNS($HU$1:IW1)))<>$HU$3,\"\",DATE($EC$3,$HU$3,COLUMNS($HU$1:IW1)))","v":"2026-04-29"},{"$f":"IF(MONTH(DATE($EC$3,$HU$3,COLUMNS($HU$1:IX1)))<>$HU$3,\"\",DATE($EC$3,$HU$3,COLUMNS($HU$1:IX1)))","v":"2026-04-30"},{"$f":"IF(MONTH(DATE($EC$3,$HU$3,COLUMNS($HU$1:IY1)))<>$HU$3,\"\",DATE($EC$3,$HU$3,COLUMNS($HU$1:IY1)))","v":""},"مجموع الغياب",{"$f":"IF(MONTH(DATE($EC$3,$JA$3,COLUMNS($JA$1:JA1)))<>$JA$3,\"\",DATE($EC$3,$JA$3,COLUMNS($JA$1:JA1)))","v":"2026-05-01"},{"$f":"IF(MONTH(DATE($EC$3,$JA$3,COLUMNS($JA$1:JB1)))<>$JA$3,\"\",DATE($EC$3,$JA$3,COLUMNS($JA$1:JB1)))","v":"2026-05-02"},{"$f":"IF(MONTH(DATE($EC$3,$JA$3,COLUMNS($JA$1:JC1)))<>$JA$3,\"\",DATE($EC$3,$JA$3,COLUMNS($JA$1:JC1)))","v":"2026-05-03"},{"$f":"IF(MONTH(DATE($EC$3,$JA$3,COLUMNS($JA$1:JD1)))<>$JA$3,\"\",DATE($EC$3,$JA$3,COLUMNS($JA$1:JD1)))","v":"2026-05-04"},{"$f":"IF(MONTH(DATE($EC$3,$JA$3,COLUMNS($JA$1:JE1)))<>$JA$3,\"\",DATE($EC$3,$JA$3,COLUMNS($JA$1:JE1)))","v":"2026-05-05"},{"$f":"IF(MONTH(DATE($EC$3,$JA$3,COLUMNS($JA$1:JF1)))<>$JA$3,\"\",DATE($EC$3,$JA$3,COLUMNS($JA$1:JF1)))","v":"2026-05-06"},{"$f":"IF(MONTH(DATE($EC$3,$JA$3,COLUMNS($JA$1:JG1)))<>$JA$3,\"\",DATE($EC$3,$JA$3,COLUMNS($JA$1:JG1)))","v":"2026-05-07"},{"$f":"IF(MONTH(DATE($EC$3,$JA$3,COLUMNS($JA$1:JH1)))<>$JA$3,\"\",DATE($EC$3,$JA$3,COLUMNS($JA$1:JH1)))","v":"2026-05-08"},{"$f":"IF(MONTH(DATE($EC$3,$JA$3,COLUMNS($JA$1:JI1)))<>$JA$3,\"\",DATE($EC$3,$JA$3,COLUMNS($JA$1:JI1)))","v":"2026-05-09"},{"$f":"IF(MONTH(DATE($EC$3,$JA$3,COLUMNS($JA$1:JJ1)))<>$JA$3,\"\",DATE($EC$3,$JA$3,COLUMNS($JA$1:JJ1)))","v":"2026-05-10"},{"$f":"IF(MONTH(DATE($EC$3,$JA$3,COLUMNS($JA$1:JK1)))<>$JA$3,\"\",DATE($EC$3,$JA$3,COLUMNS($JA$1:JK1)))","v":"2026-05-11"},{"$f":"IF(MONTH(DATE($EC$3,$JA$3,COLUMNS($JA$1:JL1)))<>$JA$3,\"\",DATE($EC$3,$JA$3,COLUMNS($JA$1:JL1)))","v":"2026-05-12"},{"$f":"IF(MONTH(DATE($EC$3,$JA$3,COLUMNS($JA$1:JM1)))<>$JA$3,\"\",DATE($EC$3,$JA$3,COLUMNS($JA$1:JM1)))","v":"2026-05-13"},{"$f":"IF(MONTH(DATE($EC$3,$JA$3,COLUMNS($JA$1:JN1)))<>$JA$3,\"\",DATE($EC$3,$JA$3,COLUMNS($JA$1:JN1)))","v":"2026-05-14"},{"$f":"IF(MONTH(DATE($EC$3,$JA$3,COLUMNS($JA$1:JO1)))<>$JA$3,\"\",DATE($EC$3,$JA$3,COLUMNS($JA$1:JO1)))","v":"2026-05-15"},{"$f":"IF(MONTH(DATE($EC$3,$JA$3,COLUMNS($JA$1:JP1)))<>$JA$3,\"\",DATE($EC$3,$JA$3,COLUMNS($JA$1:JP1)))","v":"2026-05-16"},{"$f":"IF(MONTH(DATE($EC$3,$JA$3,COLUMNS($JA$1:JQ1)))<>$JA$3,\"\",DATE($EC$3,$JA$3,COLUMNS($JA$1:JQ1)))","v":"2026-05-17"},{"$f":"IF(MONTH(DATE($EC$3,$JA$3,COLUMNS($JA$1:JR1)))<>$JA$3,\"\",DATE($EC$3,$JA$3,COLUMNS($JA$1:JR1)))","v":"2026-05-18"},{"$f":"IF(MONTH(DATE($EC$3,$JA$3,COLUMNS($JA$1:JS1)))<>$JA$3,\"\",DATE($EC$3,$JA$3,COLUMNS($JA$1:JS1)))","v":"2026-05-19"},{"$f":"IF(MONTH(DATE($EC$3,$JA$3,COLUMNS($JA$1:JT1)))<>$JA$3,\"\",DATE($EC$3,$JA$3,COLUMNS($JA$1:JT1)))","v":"2026-05-20"},{"$f":"IF(MONTH(DATE($EC$3,$JA$3,COLUMNS($JA$1:JU1)))<>$JA$3,\"\",DATE($EC$3,$JA$3,COLUMNS($JA$1:JU1)))","v":"2026-05-21"},{"$f":"IF(MONTH(DATE($EC$3,$JA$3,COLUMNS($JA$1:JV1)))<>$JA$3,\"\",DATE($EC$3,$JA$3,COLUMNS($JA$1:JV1)))","v":"2026-05-22"},{"$f":"IF(MONTH(DATE($EC$3,$JA$3,COLUMNS($JA$1:JW1)))<>$JA$3,\"\",DATE($EC$3,$JA$3,COLUMNS($JA$1:JW1)))","v":"2026-05-23"},{"$f":"IF(MONTH(DATE($EC$3,$JA$3,COLUMNS($JA$1:JX1)))<>$JA$3,\"\",DATE($EC$3,$JA$3,COLUMNS($JA$1:JX1)))","v":"2026-05-24"},{"$f":"IF(MONTH(DATE($EC$3,$JA$3,COLUMNS($JA$1:JY1)))<>$JA$3,\"\",DATE($EC$3,$JA$3,COLUMNS($JA$1:JY1)))","v":"2026-05-25"},{"$f":"IF(MONTH(DATE($EC$3,$JA$3,COLUMNS($JA$1:JZ1)))<>$JA$3,\"\",DATE($EC$3,$JA$3,COLUMNS($JA$1:JZ1)))","v":"2026-05-26"},{"$f":"IF(MONTH(DATE($EC$3,$JA$3,COLUMNS($JA$1:KA1)))<>$JA$3,\"\",DATE($EC$3,$JA$3,COLUMNS($JA$1:KA1)))","v":"2026-05-27"},{"$f":"IF(MONTH(DATE($EC$3,$JA$3,COLUMNS($JA$1:KB1)))<>$JA$3,\"\",DATE($EC$3,$JA$3,COLUMNS($JA$1:KB1)))","v":"2026-05-28"},{"$f":"IF(MONTH(DATE($EC$3,$JA$3,COLUMNS($JA$1:KC1)))<>$JA$3,\"\",DATE($EC$3,$JA$3,COLUMNS($JA$1:KC1)))","v":"2026-05-29"},{"$f":"IF(MONTH(DATE($EC$3,$JA$3,COLUMNS($JA$1:KD1)))<>$JA$3,\"\",DATE($EC$3,$JA$3,COLUMNS($JA$1:KD1)))","v":"2026-05-30"},{"$f":"IF(MONTH(DATE($EC$3,$JA$3,COLUMNS($JA$1:KE1)))<>$JA$3,\"\",DATE($EC$3,$JA$3,COLUMNS($JA$1:KE1)))","v":"2026-05-31"},"مجموع الغياب"]
[]
[1,"Galal1","1A",2024501,"غ",null,null,null,null,null,null,null,null,"غ",null,null,null,null,null,null,"غ",null,null,null,null,null,null,null,null,null,null,null,null,"غ",null,{"$f":"COUNTIF(E9:AI9,\"غ\")","v":4},null,null,"غ",null,null,null,null,null,"غ",null,null,null,null,null,null,null,"غ",null,null,null,null,null,null,null,null,null,null,null,null,null,null,{"$f":"COUNTIF(AK9:BO9,\"غ\")","v":3},null,null,null,null,null,null,null,null,null,null,null,null,null,null,null,null,null,null,null,null,null,null,null,null,null,null,null,null,null,null,null,{"$f":"COUNTIF(BQ9:CU9,\"غ\")","v":0},null,null,null,null,null,null,null,null,null,null,null,null,null,null,null,null,null,null,null,null,null,null,null,null,null,null,null,null,null,null,null,{"$f":"COUNTIF(CW9:EA9,\"غ\")","v":0},null,null,null,null,null,null,null,null,null,null,null,null,null,null,null,null,null,null,null,null,null,null,null,null,null,null,null,null,null,null,null,{"$f":"COUNTIF(EC9:FG9,\"غ\")","v":0},null,null,null,null,null,null,null,null,null,null,null,null,null,null,null,null,null,null,null,null,null,null,null,null,null,null,null,null,null,null,null,{"$f":"COUNTIF(FI9:GM9,\"غ\")","v":0},null,null,null,null,null,null,null,null,null,null,null,null,null,null,null,null,null,null,null,null,null,null,null,null,null,null,null,null,null,null,null,{"$f":"COUNTIF(GO9:HS9,\"غ\")","v":0},null,null,null,null,null,null,null,null,null,null,null,null,null,null,null,null,null,null,null,null,null,null,null,null,null,null,null,null,null,null,null,{"$f":"COUNTIF(HU9:IY9,\"غ\")","v":0},null,null,null,null,null,null,null,null,null,null,null,null,null,null,null,null,null,null,null,null,null,null,null,null,null,null,null,null,null,null,null,{"$f":"COUNTIF(JA9:KE9,\"غ\")","v":0}]
[2,"Galal2","1A",2024502,"ح",null,null,null,null,null,null,null,null,"ح",null,null,null,null,null,null,"ح",null,null,null,null,null,null,null,null,null,null,null,null,"ح",null,0,null,null,"ح",null,null,null,null,null,"ح",null,null,null,null,null,null,null,"ح",null,null,null,null,null,null,null,null,null,null,null,null,null,null,0,null,null,null,null,null,null,null,null,null,null,null,null,null,null,null,null,null,null,null,null,null,null,null,null,null,null,null,null,null,null,null,0,null,null,null,null,null,null,null,null,null,null,null,null,null,null,null,null,null,null,null,null,null,null,null,null,null,null,null,null,null,null,null,0,null,null,null,null,null,null,null,null,null,null,null,null,null,null,null,null,null,null,null,null,null,null,null,null,null,null,null,null,null,null,null,0,null,null,null,null,null,null,null,null,null,null,null,null,null,null,null,null,null,null,null,null,null,null,null,null,null,null,null,null,null,null,null,0,null,null,null,null,null,null,null,null,null,null,null,null,null,null,null,null,null,null,null,null,null,null,null,null,null,null,null,null,null,null,null,0,null,null,null,null,null,null,null,null,null,null,null,null,null,null,null,null,null,null,null,null,null,null,null,null,null,null,null,null,null,null,null,0,null,null,null,null,null,null,null,null,null,null,null,null,null,null,null,null,null,null,null,null,null,null,null,null,null,null,null,null,null,null,null,0]
[3,"Galal3","1A",2024503,"غ",null,null,null,null,null,null,null,null,"غ",null,null,null,null,null,null,"غ",null,null,null,null,null,null,null,null,null,null,null,null,"غ",null,4,null,null,"غ",null,null,null,null,null,"غ",null,null,null,null,null,null,null,"غ",null,null,null,null,null,null,null,null,null,null,null,null,null,null,3,null,null,null,null,null,null,null,null,null,null,null,null,null,null,null,null,null,null,null,null,null,null,null,null,null,null,null,null,null,null,null,0,null,null,null,null,null,null,null,null,null,null,null,null,null,null,null,null,null,null,null,null,null,null,null,null,null,null,null,null,null,null,null,0,null,null,null,null,null,null,null,null,null,null,null,null,null,null,null,null,null,null,null,null,null,null,null,null,null,null,null,null,null,null,null,0,null,null,null,null,null,null,null,null,null,null,null,null,null,null,null,null,null,null,null,null,null,null,null,null,null,null,null,null,null,null,null,0,null,null,null,null,null,null,null,null,null,null,null,null,null,null,null,null,null,null,null,null,null,null,null,null,null,null,null,null,null,null,null,0,null,null,null,null,null,null,null,null,null,null,null,null,null,null,null,null,null,null,null,null,null,null,null,null,null,null,null,null,null,null,null,0,null,null,null,null,null,null,null,null,null,null,null,null,null,null,null,null,null,null,null,null,null,null,null,null,null,null,null,null,null,null,null,0]
[4,"Galal4","1A",2024504,"غ",null,null,null,null,null,null,null,null,"غ",null,null,null,null,null,null,"غ",null,null,null,null,null,null,null,null,null,null,null,null,"غ",null,4,null,null,"غ",null,null,null,null,null,"غ",null,null,null,null,null,null,null,"غ",null,null,null,null,null,null,null,null,null,null,null,null,null,null,3,null,null,null,null,null,null,null,null,null,null,null,null,null,null,null,null,null,null,null,null,null,null,null,null,null,null,null,null,null,null,null,0,null,null,null,null,null,null,null,null,null,null,null,null,null,null,null,null,null,null,null,null,null,null,null,null,null,null,null,null,null,null,null,0,null,null,null,null,null,null,null,null,null,null,null,null,null,null,null,null,null,null,null,null,null,null,null,null,null,null,null,null,null,null,null,0,null,null,null,null,null,null,null,null,null,null,null,null,null,null,null,null,null,null,null,null,null,null,null,null,null,null,null,null,null,null,null,0,null,null,null,null,null,null,null,null,null,null,null,null,null,null,null,null,null,null,null,null,null,null,null,null,null,null,null,null,null,null,null,0,null,null,null,null,null,null,null,null,null,null,null,null,null,null,null,null,null,null,null,null,null,null,null,null,null,null,null,null,null,null,null,0,null,null,null,null,null,null,null,null,null,null,null,null,null,null,null,null,null,null,null,null,null,null,null,null,null,null,null,null,null,null,null,0]
[5,"Galal5","1A",2024505,"ح",null,null,null,null,null,null,null,null,"ح",null,null,null,null,null,null,"ح",null,null,null,null,null,null,null,null,null,null,null,null,"ح",null,0,null,null,"ح",null,null,null,null,null,"ح",null,null,null,null,null,null,null,"ح",null,null,null,null,null,null,null,null,null,null,null,null,null,null,0,null,null,null,null,null,null,null,null,null,null,null,null,null,null,null,null,null,null,null,null,null,null,null,null,null,null,null,null,null,null,null,0,null,null,null,null,null,null,null,null,null,null,null,null,null,null,null,null,null,null,null,null,null,null,null,null,null,null,null,null,null,null,null,0,null,null,null,null,null,null,null,null,null,null,null,null,null,null,null,null,null,null,null,null,null,null,null,null,null,null,null,null,null,null,null,0,null,null,null,null,null,null,null,null,null,null,null,null,null,null,null,null,null,null,null,null,null,null,null,null,null,null,null,null,null,null,null,0,null,null,null,null,null,null,null,null,null,null,null,null,null,null,null,null,null,null,null,null,null,null,null,null,null,null,null,null,null,null,null,0,null,null,null,null,null,null,null,null,null,null,null,null,null,null,null,null,null,null,null,null,null,null,null,null,null,null,null,null,null,null,null,0,null,null,null,null,null,null,null,null,null,null,null,null,null,null,null,null,null,null,null,null,null,null,null,null,null,null,null,null,null,null,null,0]
[6,"Galal6","1A",2024506,"غ",null,null,null,null,null,null,null,null,"غ",null,null,null,null,null,null,"غ",null,null,null,null,null,null,null,null,null,null,null,null,"غ",null,4,null,null,"غ",null,null,null,null,null,"غ",null,null,null,null,null,null,null,"غ",null,null,null,null,null,null,null,null,null,null,null,null,null,null,3,null,null,null,null,null,null,null,null,null,null,null,null,null,null,null,null,null,null,null,null,null,null,null,null,null,null,null,null,null,null,null,0,null,null,null,null,null,null,null,null,null,null,null,null,null,null,null,null,null,null,null,null,null,null,null,null,null,null,null,null,null,null,null,0,null,null,null,null,null,null,null,null,null,null,null,null,null,null,null,null,null,null,null,null,null,null,null,null,null,null,null,null,null,null,null,0,null,null,null,null,null,null,null,null,null,null,null,null,null,null,null,null,null,null,null,null,null,null,null,null,null,null,null,null,null,null,null,0,null,null,null,null,null,null,null,null,null,null,null,null,null,null,null,null,null,null,null,null,null,null,null,null,null,null,null,null,null,null,null,0,null,null,null,null,null,null,null,null,null,null,null,null,null,null,null,null,null,null,null,null,null,null,null,null,null,null,null,null,null,null,null,0,null,null,null,null,null,null,null,null,null,null,null,null,null,null,null,null,null,null,null,null,null,null,null,null,null,null,null,null,null,null,null,0]
[7,"Galal7","1A",2024538,"غ",null,null,null,null,null,null,null,null,"غ",null,null,null,null,null,null,"غ",null,null,null,null,null,null,null,null,null,null,null,null,"غ",null,4,null,null,"غ",null,null,null,null,null,"غ",null,null,null,null,null,null,null,"غ",null,null,null,null,null,null,null,null,null,null,null,null,null,null,3,null,null,null,null,null,null,null,null,null,null,null,null,null,null,null,null,null,null,null,null,null,null,null,null,null,null,null,null,null,null,null,0,null,null,null,null,null,null,null,null,null,null,null,null,null,null,null,null,null,null,null,null,null,null,null,null,null,null,null,null,null,null,null,0,null,null,null,null,null,null,null,null,null,null,null,null,null,null,null,null,null,null,null,null,null,null,null,null,null,null,null,null,null,null,null,0,null,null,null,null,null,null,null,null,null,null,null,null,null,null,null,null,null,null,null,null,null,null,null,null,null,null,null,null,null,null,null,0,null,null,null,null,null,null,null,null,null,null,null,null,null,null,null,null,null,null,null,null,null,null,null,null,null,null,null,null,null,null,null,0,null,null,null,null,null,null,null,null,null,null,null,null,null,null,null,null,null,null,null,null,null,null,null,null,null,null,null,null,null,null,null,0,null,null,null,null,null,null,null,null,null,null,null,null,null,null,null,null,null,null,null,null,null,null,null,null,null,null,null,null,null,null,null,0]
[8,"Galal8","1A",2024507,"ح",null,null,null,null,null,null,null,null,"ح",null,null,null,null,null,null,"ح",null,null,null,null,null,null,null,null,null,null,null,null,"ح",null,0,null,null,"ح",null,null,null,null,null,"ح",null,null,null,null,null,null,null,"ح",null,null,null,null,null,null,null,null,null,null,null,null,null,null,0,null,null,null,null,null,null,null,null,null,null,null,null,null,null,null,null,null,null,null,null,null,null,null,null,null,null,null,null,null,null,null,0,null,null,null,null,null,null,null,null,null,null,null,null,null,null,null,null,null,null,null,null,null,null,null,null,null,null,null,null,null,null,null,0,null,null,null,null,null,null,null,null,null,null,null,null,null,null,null,null,null,null,null,null,null,null,null,null,null,null,null,null,null,null,null,0,null,null,null,null,null,null,null,null,null,null,null,null,null,null,null,null,null,null,null,null,null,null,null,null,null,null,null,null,null,null,null,0,null,null,null,null,null,null,null,null,null,null,null,null,null,null,null,null,null,null,null,null,null,null,null,null,null,null,null,null,null,null,null,0,null,null,null,null,null,null,null,null,null,null,null,null,null,null,null,null,null,null,null,null,null,null,null,null,null,null,null,null,null,null,null,0,null,null,null,null,null,null,null,null,null,null,null,null,null,null,null,null,null,null,null,null,null,null,null,null,null,null,null,null,null,null,null,0]
[9,"Galal9","1A",2024539,"ح",null,null,null,null,null,null,null,null,"ح",null,null,null,null,null,null,"ح",null,null,null,null,null,null,null,null,null,null,null,null,"ح",null,0,null,null,"ح",null,null,null,null,null,"ح",null,null,null,null,null,null,null,"ح",null,null,null,null,null,null,null,null,null,null,null,null,null,null,0,null,null,null,null,null,null,null,null,null,null,null,null,null,null,null,null,null,null,null,null,null,null,null,null,null,null,null,null,null,null,null,0,null,null,null,null,null,null,null,null,null,null,null,null,null,null,null,null,null,null,null,null,null,null,null,null,null,null,null,null,null,null,null,0,null,null,null,null,null,null,null,null,null,null,null,null,null,null,null,null,null,null,null,null,null,null,null,null,null,null,null,null,null,null,null,0,null,null,null,null,null,null,null,null,null,null,null,null,null,null,null,null,null,null,null,null,null,null,null,null,null,null,null,null,null,null,null,0,null,null,null,null,null,null,null,null,null,null,null,null,null,null,null,null,null,null,null,null,null,null,null,null,null,null,null,null,null,null,null,0,null,null,null,null,null,null,null,null,null,null,null,null,null,null,null,null,null,null,null,null,null,null,null,null,null,null,null,null,null,null,null,0,null,null,null,null,null,null,null,null,null,null,null,null,null,null,null,null,null,null,null,null,null,null,null,null,null,null,null,null,null,null,null,0]
[10,"Galal10","1A",2024540,"غ",null,null,null,null,null,null,null,null,"غ",null,null,null,null,null,null,"غ",null,null,null,null,null,null,null,null,null,null,null,null,"غ",null,4,null,null,"غ",null,null,null,null,null,"غ",null,null,null,null,null,null,null,"غ",null,null,null,null,null,null,null,null,null,null,null,null,null,null,3,null,null,null,null,null,null,null,null,null,null,null,null,null,null,null,null,null,null,null,null,null,null,null,null,null,null,null,null,null,null,null,0,null,null,null,null,null,null,null,null,null,null,null,null,null,null,null,null,null,null,null,null,null,null,null,null,null,null,null,null,null,null,null,0,null,null,null,null,null,null,null,null,null,null,null,null,null,null,null,null,null,null,null,null,null,null,null,null,null,null,null,null,null,null,null,0,null,null,null,null,null,null,null,null,null,null,null,null,null,null,null,null,null,null,null,null,null,null,null,null,null,null,null,null,null,null,null,0,null,null,null,null,null,null,null,null,null,null,null,null,null,null,null,null,null,null,null,null,null,null,null,null,null,null,null,null,null,null,null,0,null,null,null,null,null,null,null,null,null,null,null,null,null,null,null,null,null,null,null,null,null,null,null,null,null,null,null,null,null,null,null,0,null,null,null,null,null,null,null,null,null,null,null,null,null,null,null,null,null,null,null,null,null,null,null,null,null,null,null,null,null,null,null,0]
[11,"Galal11","1A",2024508,"ح",null,null,null,null,null,null,null,null,"ح",null,null,null,null,null,null,"ح",null,null,null,null,null,null,null,null,null,null,null,null,"ح",null,0,null,null,"ح",null,null,null,null,null,"ح",null,null,null,null,null,null,null,"ح",null,null,null,null,null,null,null,null,null,null,null,null,null,null,0,null,null,null,null,null,null,null,null,null,null,null,null,null,null,null,null,null,null,null,null,null,null,null,null,null,null,null,null,null,null,null,0,null,null,null,null,null,null,null,null,null,null,null,null,null,null,null,null,null,null,null,null,null,null,null,null,null,null,null,null,null,null,null,0,null,null,null,null,null,null,null,null,null,null,null,null,null,null,null,null,null,null,null,null,null,null,null,null,null,null,null,null,null,null,null,0,null,null,null,null,null,null,null,null,null,null,null,null,null,null,null,null,null,null,null,null,null,null,null,null,null,null,null,null,null,null,null,0,null,null,null,null,null,null,null,null,null,null,null,null,null,null,null,null,null,null,null,null,null,null,null,null,null,null,null,null,null,null,null,0,null,null,null,null,null,null,null,null,null,null,null,null,null,null,null,null,null,null,null,null,null,null,null,null,null,null,null,null,null,null,null,0,null,null,null,null,null,null,null,null,null,null,null,null,null,null,null,null,null,null,null,null,null,null,null,null,null,null,null,null,null,null,null,0]
[12,"Galal12","1A",2024509,"ح",null,null,null,null,null,null,null,null,"ح",null,null,null,null,null,null,"ح",null,null,null,null,null,null,null,null,null,null,null,null,"ح",null,0,null,null,"ح",null,null,null,null,null,"ح",null,null,null,null,null,null,null,"ح",null,null,null,null,null,null,null,null,null,null,null,null,null,null,0,null,null,null,null,null,null,null,null,null,null,null,null,null,null,null,null,null,null,null,null,null,null,null,null,null,null,null,null,null,null,null,0,null,null,null,null,null,null,null,null,null,null,null,null,null,null,null,null,null,null,null,null,null,null,null,null,null,null,null,null,null,null,null,0,null,null,null,null,null,null,null,null,null,null,null,null,null,null,null,null,null,null,null,null,null,null,null,null,null,null,null,null,null,null,null,0,null,null,null,null,null,null,null,null,null,null,null,null,null,null,null,null,null,null,null,null,null,null,null,null,null,null,null,null,null,null,null,0,null,null,null,null,null,null,null,null,null,null,null,null,null,null,null,null,null,null,null,null,null,null,null,null,null,null,null,null,null,null,null,0,null,null,null,null,null,null,null,null,null,null,null,null,null,null,null,null,null,null,null,null,null,null,null,null,null,null,null,null,null,null,null,0,null,null,null,null,null,null,null,null,null,null,null,null,null,null,null,null,null,null,null,null,null,null,null,null,null,null,null,null,null,null,null,0]
[13,"Galal13","1A",2024510,"ح",null,null,null,null,null,null,null,null,"ح",null,null,null,null,null,null,"ح",null,null,null,null,null,null,null,null,null,null,null,null,"ح",null,0,null,null,"ح",null,null,null,null,null,"ح",null,null,null,null,null,null,null,"ح",null,null,null,null,null,null,null,null,null,null,null,null,null,null,0,null,null,null,null,null,null,null,null,null,null,null,null,null,null,null,null,null,null,null,null,null,null,null,null,null,null,null,null,null,null,null,0,null,null,null,null,null,null,null,null,null,null,null,null,null,null,null,null,null,null,null,null,null,null,null,null,null,null,null,null,null,null,null,0,null,null,null,null,null,null,null,null,null,null,null,null,null,null,null,null,null,null,null,null,null,null,null,null,null,null,null,null,null,null,null,0,null,null,null,null,null,null,null,null,null,null,null,null,null,null,null,null,null,null,null,null,null,null,null,null,null,null,null,null,null,null,null,0,null,null,null,null,null,null,null,null,null,null,null,null,null,null,null,null,null,null,null,null,null,null,null,null,null,null,null,null,null,null,null,0,null,null,null,null,null,null,null,null,null,null,null,null,null,null,null,null,null,null,null,null,null,null,null,null,null,null,null,null,null,null,null,0,null,null,null,null,null,null,null,null,null,null,null,null,null,null,null,null,null,null,null,null,null,null,null,null,null,null,null,null,null,null,null,0]
[14,"Galal14","1A",2024542,"ح",null,null,null,null,null,null,null,null,"ح",null,null,null,null,null,null,"ح",null,null,null,null,null,null,null,null,null,null,null,null,"ح",null,0,null,null,"ح",null,null,null,null,null,"ح",null,null,null,null,null,null,null,"ح",null,null,null,null,null,null,null,null,null,null,null,null,null,null,0,null,null,null,null,null,null,null,null,null,null,null,null,null,null,null,null,null,null,null,null,null,null,null,null,null,null,null,null,null,null,null,0,null,null,null,null,null,null,null,null,null,null,null,null,null,null,null,null,null,null,null,null,null,null,null,null,null,null,null,null,null,null,null,0,null,null,null,null,null,null,null,null,null,null,null,null,null,null,null,null,null,null,null,null,null,null,null,null,null,null,null,null,null,null,null,0,null,null,null,null,null,null,null,null,null,null,null,null,null,null,null,null,null,null,null,null,null,null,null,null,null,null,null,null,null,null,null,0,null,null,null,null,null,null,null,null,null,null,null,null,null,null,null,null,null,null,null,null,null,null,null,null,null,null,null,null,null,null,null,0,null,null,null,null,null,null,null,null,null,null,null,null,null,null,null,null,null,null,null,null,null,null,null,null,null,null,null,null,null,null,null,0,null,null,null,null,null,null,null,null,null,null,null,null,null,null,null,null,null,null,null,null,null,null,null,null,null,null,null,null,null,null,null,0]
[15,"Galal15","1A",2024543,"ح",null,null,null,null,null,null,null,null,"ح",null,null,null,null,null,null,"ح",null,null,null,null,null,null,null,null,null,null,null,null,"ح",null,0,null,null,"ح",null,null,null,null,null,"ح",null,null,null,null,null,null,null,"ح",null,null,null,null,null,null,null,null,null,null,null,null,null,null,0,null,null,null,null,null,null,null,null,null,null,null,null,null,null,null,null,null,null,null,null,null,null,null,null,null,null,null,null,null,null,null,0,null,null,null,null,null,null,null,null,null,null,null,null,null,null,null,null,null,null,null,null,null,null,null,null,null,null,null,null,null,null,null,0,null,null,null,null,null,null,null,null,null,null,null,null,null,null,null,null,null,null,null,null,null,null,null,null,null,null,null,null,null,null,null,0,null,null,null,null,null,null,null,null,null,null,null,null,null,null,null,null,null,null,null,null,null,null,null,null,null,null,null,null,null,null,null,0,null,null,null,null,null,null,null,null,null,null,null,null,null,null,null,null,null,null,null,null,null,null,null,null,null,null,null,null,null,null,null,0,null,null,null,null,null,null,null,null,null,null,null,null,null,null,null,null,null,null,null,null,null,null,null,null,null,null,null,null,null,null,null,0,null,null,null,null,null,null,null,null,null,null,null,null,null,null,null,null,null,null,null,null,null,null,null,null,null,null,null,null,null,null,null,0]
[16,"Galal16","1A",2024511,"ح",null,null,null,null,null,null,null,null,"ح",null,null,null,null,null,null,"ح",null,null,null,null,null,null,null,null,null,null,null,null,"ح",null,0,null,null,"ح",null,null,null,null,null,"ح",null,null,null,null,null,null,null,"ح",null,null,null,null,null,null,null,null,null,null,null,null,null,null,0,null,null,null,null,null,null,null,null,null,null,null,null,null,null,null,null,null,null,null,null,null,null,null,null,null,null,null,null,null,null,null,0,null,null,null,null,null,null,null,null,null,null,null,null,null,null,null,null,null,null,null,null,null,null,null,null,null,null,null,null,null,null,null,0,null,null,null,null,null,null,null,null,null,null,null,null,null,null,null,null,null,null,null,null,null,null,null,null,null,null,null,null,null,null,null,0,null,null,null,null,null,null,null,null,null,null,null,null,null,null,null,null,null,null,null,null,null,null,null,null,null,null,null,null,null,null,null,0,null,null,null,null,null,null,null,null,null,null,null,null,null,null,null,null,null,null,null,null,null,null,null,null,null,null,null,null,null,null,null,0,null,null,null,null,null,null,null,null,null,null,null,null,null,null,null,null,null,null,null,null,null,null,null,null,null,null,null,null,null,null,null,0,null,null,null,null,null,null,null,null,null,null,null,null,null,null,null,null,null,null,null,null,null,null,null,null,null,null,null,null,null,null,null,0]
[17,"Galal17","1A",2024544,"ح",null,null,null,null,null,null,null,null,"ح",null,null,null,null,null,null,"ح",null,null,null,null,null,null,null,null,null,null,null,null,"ح",null,0,null,null,"ح",null,null,null,null,null,"ح",null,null,null,null,null,null,null,"ح",null,null,null,null,null,null,null,null,null,null,null,null,null,null,0,null,null,null,null,null,null,null,null,null,null,null,null,null,null,null,null,null,null,null,null,null,null,null,null,null,null,null,null,null,null,null,0,null,null,null,null,null,null,null,null,null,null,null,null,null,null,null,null,null,null,null,null,null,null,null,null,null,null,null,null,null,null,null,0,null,null,null,null,null,null,null,null,null,null,null,null,null,null,null,null,null,null,null,null,null,null,null,null,null,null,null,null,null,null,null,0,null,null,null,null,null,null,null,null,null,null,null,null,null,null,null,null,null,null,null,null,null,null,null,null,null,null,null,null,null,null,null,0,null,null,null,null,null,null,null,null,null,null,null,null,null,null,null,null,null,null,null,null,null,null,null,null,null,null,null,null,null,null,null,0,null,null,null,null,null,null,null,null,null,null,null,null,null,null,null,null,null,null,null,null,null,null,null,null,null,null,null,null,null,null,null,0,null,null,null,null,null,null,null,null,null,null,null,null,null,null,null,null,null,null,null,null,null,null,null,null,null,null,null,null,null,null,null,0]
[18,"Galal18","1A",2024512,"ح",null,null,null,null,null,null,null,null,"ح",null,null,null,null,null,null,"ح",null,null,null,null,null,null,null,null,null,null,null,null,"ح",null,0,null,null,"ح",null,null,null,null,null,"ح",null,null,null,null,null,null,null,"ح",null,null,null,null,null,null,null,null,null,null,null,null,null,null,0,null,null,null,null,null,null,null,null,null,null,null,null,null,null,null,null,null,null,null,null,null,null,null,null,null,null,null,null,null,null,null,0,null,null,null,null,null,null,null,null,null,null,null,null,null,null,null,null,null,null,null,null,null,null,null,null,null,null,null,null,null,null,null,0,null,null,null,null,null,null,null,null,null,null,null,null,null,null,null,null,null,null,null,null,null,null,null,null,null,null,null,null,null,null,null,0,null,null,null,null,null,null,null,null,null,null,null,null,null,null,null,null,null,null,null,null,null,null,null,null,null,null,null,null,null,null,null,0,null,null,null,null,null,null,null,null,null,null,null,null,null,null,null,null,null,null,null,null,null,null,null,null,null,null,null,null,null,null,null,0,null,null,null,null,null,null,null,null,null,null,null,null,null,null,null,null,null,null,null,null,null,null,null,null,null,null,null,null,null,null,null,0,null,null,null,null,null,null,null,null,null,null,null,null,null,null,null,null,null,null,null,null,null,null,null,null,null,null,null,null,null,null,null,0]
[19,"Galal19","1B",2024545,"ح",null,null,null,null,null,null,null,null,"ح",null,null,null,null,null,null,"ح",null,null,null,null,null,null,null,null,null,null,null,null,"ح",null,0,null,null,"ح",null,null,null,null,null,"ح",null,null,null,null,null,null,null,"ح",null,null,null,null,null,null,null,null,null,null,null,null,null,null,0,null,null,null,null,null,null,null,null,null,null,null,null,null,null,null,null,null,null,null,null,null,null,null,null,null,null,null,null,null,null,null,0,null,null,null,null,null,null,null,null,null,null,null,null,null,null,null,null,null,null,null,null,null,null,null,null,null,null,null,null,null,null,null,0,null,null,null,null,null,null,null,null,null,null,null,null,null,null,null,null,null,null,null,null,null,null,null,null,null,null,null,null,null,null,null,0,null,null,null,null,null,null,null,null,null,null,null,null,null,null,null,null,null,null,null,null,null,null,null,null,null,null,null,null,null,null,null,0,null,null,null,null,null,null,null,null,null,null,null,null,null,null,null,null,null,null,null,null,null,null,null,null,null,null,null,null,null,null,null,0,null,null,null,null,null,null,null,null,null,null,null,null,null,null,null,null,null,null,null,null,null,null,null,null,null,null,null,null,null,null,null,0,null,null,null,null,null,null,null,null,null,null,null,null,null,null,null,null,null,null,null,null,null,null,null,null,null,null,null,null,null,null,null,0]
[20,"Galal20","1A",2024513,"ح",null,null,null,null,null,null,null,null,"ح",null,null,null,null,null,null,"ح",null,null,null,null,null,null,null,null,null,null,null,null,"ح",null,0,null,null,"ح",null,null,null,null,null,"ح",null,null,null,null,null,null,null,"ح",null,null,null,null,null,null,null,null,null,null,null,null,null,null,0,null,null,null,null,null,null,null,null,null,null,null,null,null,null,null,null,null,null,null,null,null,null,null,null,null,null,null,null,null,null,null,0,null,null,null,null,null,null,null,null,null,null,null,null,null,null,null,null,null,null,null,null,null,null,null,null,null,null,null,null,null,null,null,0,null,null,null,null,null,null,null,null,null,null,null,null,null,null,null,null,null,null,null,null,null,null,null,null,null,null,null,null,null,null,null,0,null,null,null,null,null,null,null,null,null,null,null,null,null,null,null,null,null,null,null,null,null,null,null,null,null,null,null,null,null,null,null,0,null,null,null,null,null,null,null,null,null,null,null,null,null,null,null,null,null,null,null,null,null,null,null,null,null,null,null,null,null,null,null,0,null,null,null,null,null,null,null,null,null,null,null,null,null,null,null,null,null,null,null,null,null,null,null,null,null,null,null,null,null,null,null,0,null,null,null,null,null,null,null,null,null,null,null,null,null,null,null,null,null,null,null,null,null,null,null,null,null,null,null,null,null,null,null,0]
[21,"Galal21","1A",2024514,"ح",null,null,null,null,null,null,null,null,"ح",null,null,null,null,null,null,"ح",null,null,null,null,null,null,null,null,null,null,null,null,"ح",null,0,null,null,"ح",null,null,null,null,null,"ح",null,null,null,null,null,null,null,"ح",null,null,null,null,null,null,null,null,null,null,null,null,null,null,0,null,null,null,null,null,null,null,null,null,null,null,null,null,null,null,null,null,null,null,null,null,null,null,null,null,null,null,null,null,null,null,0,null,null,null,null,null,null,null,null,null,null,null,null,null,null,null,null,null,null,null,null,null,null,null,null,null,null,null,null,null,null,null,0,null,null,null,null,null,null,null,null,null,null,null,null,null,null,null,null,null,null,null,null,null,null,null,null,null,null,null,null,null,null,null,0,null,null,null,null,null,null,null,null,null,null,null,null,null,null,null,null,null,null,null,null,null,null,null,null,null,null,null,null,null,null,null,0,null,null,null,null,null,null,null,null,null,null,null,null,null,null,null,null,null,null,null,null,null,null,null,null,null,null,null,null,null,null,null,0,null,null,null,null,null,null,null,null,null,null,null,null,null,null,null,null,null,null,null,null,null,null,null,null,null,null,null,null,null,null,null,0,null,null,null,null,null,null,null,null,null,null,null,null,null,null,null,null,null,null,null,null,null,null,null,null,null,null,null,null,null,null,null,0]
[22,"Galal22","1B",2024546,"ح",null,null,null,null,null,null,null,null,"ح",null,null,null,null,null,null,"ح",null,null,null,null,null,null,null,null,null,null,null,null,"ح",null,0,null,null,"ح",null,null,null,null,null,"ح",null,null,null,null,null,null,null,"ح",null,null,null,null,null,null,null,null,null,null,null,null,null,null,0,null,null,null,null,null,null,null,null,null,null,null,null,null,null,null,null,null,null,null,null,null,null,null,null,null,null,null,null,null,null,null,0,null,null,null,null,null,null,null,null,null,null,null,null,null,null,null,null,null,null,null,null,null,null,null,null,null,null,null,null,null,null,null,0,null,null,null,null,null,null,null,null,null,null,null,null,null,null,null,null,null,null,null,null,null,null,null,null,null,null,null,null,null,null,null,0,null,null,null,null,null,null,null,null,null,null,null,null,null,null,null,null,null,null,null,null,null,null,null,null,null,null,null,null,null,null,null,0,null,null,null,null,null,null,null,null,null,null,null,null,null,null,null,null,null,null,null,null,null,null,null,null,null,null,null,null,null,null,null,0,null,null,null,null,null,null,null,null,null,null,null,null,null,null,null,null,null,null,null,null,null,null,null,null,null,null,null,null,null,null,null,0,null,null,null,null,null,null,null,null,null,null,null,null,null,null,null,null,null,null,null,null,null,null,null,null,null,null,null,null,null,null,null,0]
[23,"Galal23","1A",2024515,"ح",null,null,null,null,null,null,null,null,"ح",null,null,null,null,null,null,"ح",null,null,null,null,null,null,null,null,null,null,null,null,"ح",null,0,null,null,"ح",null,null,null,null,null,"ح",null,null,null,null,null,null,null,"ح",null,null,null,null,null,null,null,null,null,null,null,null,null,null,0,null,null,null,null,null,null,null,null,null,null,null,null,null,null,null,null,null,null,null,null,null,null,null,null,null,null,null,null,null,null,null,0,null,null,null,null,null,null,null,null,null,null,null,null,null,null,null,null,null,null,null,null,null,null,null,null,null,null,null,null,null,null,null,0,null,null,null,null,null,null,null,null,null,null,null,null,null,null,null,null,null,null,null,null,null,null,null,null,null,null,null,null,null,null,null,0,null,null,null,null,null,null,null,null,null,null,null,null,null,null,null,null,null,null,null,null,null,null,null,null,null,null,null,null,null,null,null,0,null,null,null,null,null,null,null,null,null,null,null,null,null,null,null,null,null,null,null,null,null,null,null,null,null,null,null,null,null,null,null,0,null,null,null,null,null,null,null,null,null,null,null,null,null,null,null,null,null,null,null,null,null,null,null,null,null,null,null,null,null,null,null,0,null,null,null,null,null,null,null,null,null,null,null,null,null,null,null,null,null,null,null,null,null,null,null,null,null,null,null,null,null,null,null,0]
[24,"Galal24","1A",2024516,"ح",null,null,null,null,null,null,null,null,"ح",null,null,null,null,null,null,"ح",null,null,null,null,null,null,null,null,null,null,null,null,"ح",null,0,null,null,"ح",null,null,null,null,null,"ح",null,null,null,null,null,null,null,"ح",null,null,null,null,null,null,null,null,null,null,null,null,null,null,0,null,null,null,null,null,null,null,null,null,null,null,null,null,null,null,null,null,null,null,null,null,null,null,null,null,null,null,null,null,null,null,0,null,null,null,null,null,null,null,null,null,null,null,null,null,null,null,null,null,null,null,null,null,null,null,null,null,null,null,null,null,null,null,0,null,null,null,null,null,null,null,null,null,null,null,null,null,null,null,null,null,null,null,null,null,null,null,null,null,null,null,null,null,null,null,0,null,null,null,null,null,null,null,null,null,null,null,null,null,null,null,null,null,null,null,null,null,null,null,null,null,null,null,null,null,null,null,0,null,null,null,null,null,null,null,null,null,null,null,null,null,null,null,null,null,null,null,null,null,null,null,null,null,null,null,null,null,null,null,0,null,null,null,null,null,null,null,null,null,null,null,null,null,null,null,null,null,null,null,null,null,null,null,null,null,null,null,null,null,null,null,0,null,null,null,null,null,null,null,null,null,null,null,null,null,null,null,null,null,null,null,null,null,null,null,null,null,null,null,null,null,null,null,0]
[25,"Galal25","1B",2024517,"ح",null,null,null,null,null,null,null,null,"ح",null,null,null,null,null,null,"ح",null,null,null,null,null,null,null,null,null,null,null,null,"ح",null,0,null,null,"ح",null,null,null,null,null,"ح",null,null,null,null,null,null,null,"ح",null,null,null,null,null,null,null,null,null,null,null,null,null,null,0,null,null,null,null,null,null,null,null,null,null,null,null,null,null,null,null,null,null,null,null,null,null,null,null,null,null,null,null,null,null,null,0,null,null,null,null,null,null,null,null,null,null,null,null,null,null,null,null,null,null,null,null,null,null,null,null,null,null,null,null,null,null,null,0,null,null,null,null,null,null,null,null,null,null,null,null,null,null,null,null,null,null,null,null,null,null,null,null,null,null,null,null,null,null,null,0,null,null,null,null,null,null,null,null,null,null,null,null,null,null,null,null,null,null,null,null,null,null,null,null,null,null,null,null,null,null,null,0,null,null,null,null,null,null,null,null,null,null,null,null,null,null,null,null,null,null,null,null,null,null,null,null,null,null,null,null,null,null,null,0,null,null,null,null,null,null,null,null,null,null,null,null,null,null,null,null,null,null,null,null,null,null,null,null,null,null,null,null,null,null,null,0,null,null,null,null,null,null,null,null,null,null,null,null,null,null,null,null,null,null,null,null,null,null,null,null,null,null,null,null,null,null,null,0]
[26,"Galal26","1A",2024518,"ح",null,null,null,null,null,null,null,null,"ح",null,null,null,null,null,null,"ح",null,null,null,null,null,null,null,null,null,null,null,null,"ح",null,0,null,null,"ح",null,null,null,null,null,"ح",null,null,null,null,null,null,null,"ح",null,null,null,null,null,null,null,null,null,null,null,null,null,null,0,null,null,null,null,null,null,null,null,null,null,null,null,null,null,null,null,null,null,null,null,null,null,null,null,null,null,null,null,null,null,null,0,null,null,null,null,null,null,null,null,null,null,null,null,null,null,null,null,null,null,null,null,null,null,null,null,null,null,null,null,null,null,null,0,null,null,null,null,null,null,null,null,null,null,null,null,null,null,null,null,null,null,null,null,null,null,null,null,null,null,null,null,null,null,null,0,null,null,null,null,null,null,null,null,null,null,null,null,null,null,null,null,null,null,null,null,null,null,null,null,null,null,null,null,null,null,null,0,null,null,null,null,null,null,null,null,null,null,null,null,null,null,null,null,null,null,null,null,null,null,null,null,null,null,null,null,null,null,null,0,null,null,null,null,null,null,null,null,null,null,null,null,null,null,null,null,null,null,null,null,null,null,null,null,null,null,null,null,null,null,null,0,null,null,null,null,null,null,null,null,null,null,null,null,null,null,null,null,null,null,null,null,null,null,null,null,null,null,null,null,null,null,null,0]
[27,"Galal27","1A",2024519,"ح",null,null,null,null,null,null,null,null,"ح",null,null,null,null,null,null,"ح",null,null,null,null,null,null,null,null,null,null,null,null,"ح",null,0,null,null,"ح",null,null,null,null,null,"ح",null,null,null,null,null,null,null,"ح",null,null,null,null,null,null,null,null,null,null,null,null,null,null,0,null,null,null,null,null,null,null,null,null,null,null,null,null,null,null,null,null,null,null,null,null,null,null,null,null,null,null,null,null,null,null,0,null,null,null,null,null,null,null,null,null,null,null,null,null,null,null,null,null,null,null,null,null,null,null,null,null,null,null,null,null,null,null,0,null,null,null,null,null,null,null,null,null,null,null,null,null,null,null,null,null,null,null,null,null,null,null,null,null,null,null,null,null,null,null,0,null,null,null,null,null,null,null,null,null,null,null,null,null,null,null,null,null,null,null,null,null,null,null,null,null,null,null,null,null,null,null,0,null,null,null,null,null,null,null,null,null,null,null,null,null,null,null,null,null,null,null,null,null,null,null,null,null,null,null,null,null,null,null,0,null,null,null,null,null,null,null,null,null,null,null,null,null,null,null,null,null,null,null,null,null,null,null,null,null,null,null,null,null,null,null,0,null,null,null,null,null,null,null,null,null,null,null,null,null,null,null,null,null,null,null,null,null,null,null,null,null,null,null,null,null,null,null,0]
[28,"Galal28","1B",2024547,"ح",null,null,null,null,null,null,null,null,"ح",null,null,null,null,null,null,"ح",null,null,null,null,null,null,null,null,null,null,null,null,"ح",null,0,null,null,"ح",null,null,null,null,null,"ح",null,null,null,null,null,null,null,"ح",null,null,null,null,null,null,null,null,null,null,null,null,null,null,0,null,null,null,null,null,null,null,null,null,null,null,null,null,null,null,null,null,null,null,null,null,null,null,null,null,null,null,null,null,null,null,0,null,null,null,null,null,null,null,null,null,null,null,null,null,null,null,null,null,null,null,null,null,null,null,null,null,null,null,null,null,null,null,0,null,null,null,null,null,null,null,null,null,null,null,null,null,null,null,null,null,null,null,null,null,null,null,null,null,null,null,null,null,null,null,0,null,null,null,null,null,null,null,null,null,null,null,null,null,null,null,null,null,null,null,null,null,null,null,null,null,null,null,null,null,null,null,0,null,null,null,null,null,null,null,null,null,null,null,null,null,null,null,null,null,null,null,null,null,null,null,null,null,null,null,null,null,null,null,0,null,null,null,null,null,null,null,null,null,null,null,null,null,null,null,null,null,null,null,null,null,null,null,null,null,null,null,null,null,null,null,0,null,null,null,null,null,null,null,null,null,null,null,null,null,null,null,null,null,null,null,null,null,null,null,null,null,null,null,null,null,null,null,0]
[29,"Galal29","1B",2024520,"ح",null,null,null,null,null,null,null,null,"ح",null,null,null,null,null,null,"ح",null,null,null,null,null,null,null,null,null,null,null,null,"ح",null,0,null,null,"ح",null,null,null,null,null,"ح",null,null,null,null,null,null,null,"ح",null,null,null,null,null,null,null,null,null,null,null,null,null,null,0,null,null,null,null,null,null,null,null,null,null,null,null,null,null,null,null,null,null,null,null,null,null,null,null,null,null,null,null,null,null,null,0,null,null,null,null,null,null,null,null,null,null,null,null,null,null,null,null,null,null,null,null,null,null,null,null,null,null,null,null,null,null,null,0,null,null,null,null,null,null,null,null,null,null,null,null,null,null,null,null,null,null,null,null,null,null,null,null,null,null,null,null,null,null,null,0,null,null,null,null,null,null,null,null,null,null,null,null,null,null,null,null,null,null,null,null,null,null,null,null,null,null,null,null,null,null,null,0,null,null,null,null,null,null,null,null,null,null,null,null,null,null,null,null,null,null,null,null,null,null,null,null,null,null,null,null,null,null,null,0,null,null,null,null,null,null,null,null,null,null,null,null,null,null,null,null,null,null,null,null,null,null,null,null,null,null,null,null,null,null,null,0,null,null,null,null,null,null,null,null,null,null,null,null,null,null,null,null,null,null,null,null,null,null,null,null,null,null,null,null,null,null,null,0]
[30,"Galal30","1B",2024521,"ح",null,null,null,null,null,null,null,null,"ح",null,null,null,null,null,null,"ح",null,null,null,null,null,null,null,null,null,null,null,null,"ح",null,0,null,null,"ح",null,null,null,null,null,"ح",null,null,null,null,null,null,null,"ح",null,null,null,null,null,null,null,null,null,null,null,null,null,null,0,null,null,null,null,null,null,null,null,null,null,null,null,null,null,null,null,null,null,null,null,null,null,null,null,null,null,null,null,null,null,null,0,null,null,null,null,null,null,null,null,null,null,null,null,null,null,null,null,null,null,null,null,null,null,null,null,null,null,null,null,null,null,null,0,null,null,null,null,null,null,null,null,null,null,null,null,null,null,null,null,null,null,null,null,null,null,null,null,null,null,null,null,null,null,null,0,null,null,null,null,null,null,null,null,null,null,null,null,null,null,null,null,null,null,null,null,null,null,null,null,null,null,null,null,null,null,null,0,null,null,null,null,null,null,null,null,null,null,null,null,null,null,null,null,null,null,null,null,null,null,null,null,null,null,null,null,null,null,null,0,null,null,null,null,null,null,null,null,null,null,null,null,null,null,null,null,null,null,null,null,null,null,null,null,null,null,null,null,null,null,null,0,null,null,null,null,null,null,null,null,null,null,null,null,null,null,null,null,null,null,null,null,null,null,null,null,null,null,null,null,null,null,null,0]
[31,"Galal31","1B",2024522,"ح",null,null,null,null,null,null,null,null,"ح",null,null,null,null,null,null,"ح",null,null,null,null,null,null,null,null,null,null,null,null,"ح",null,0,null,null,"ح",null,null,null,null,null,"ح",null,null,null,null,null,null,null,"ح",null,null,null,null,null,null,null,null,null,null,null,null,null,null,0,null,null,null,null,null,null,null,null,null,null,null,null,null,null,null,null,null,null,null,null,null,null,null,null,null,null,null,null,null,null,null,0,null,null,null,null,null,null,null,null,null,null,null,null,null,null,null,null,null,null,null,null,null,null,null,null,null,null,null,null,null,null,null,0,null,null,null,null,null,null,null,null,null,null,null,null,null,null,null,null,null,null,null,null,null,null,null,null,null,null,null,null,null,null,null,0,null,null,null,null,null,null,null,null,null,null,null,null,null,null,null,null,null,null,null,null,null,null,null,null,null,null,null,null,null,null,null,0,null,null,null,null,null,null,null,null,null,null,null,null,null,null,null,null,null,null,null,null,null,null,null,null,null,null,null,null,null,null,null,0,null,null,null,null,null,null,null,null,null,null,null,null,null,null,null,null,null,null,null,null,null,null,null,null,null,null,null,null,null,null,null,0,null,null,null,null,null,null,null,null,null,null,null,null,null,null,null,null,null,null,null,null,null,null,null,null,null,null,null,null,null,null,null,0]
[32,"Galal32","1B",2024523,"ح",null,null,null,null,null,null,null,null,"ح",null,null,null,null,null,null,"ح",null,null,null,null,null,null,null,null,null,null,null,null,"ح",null,0,null,null,"ح",null,null,null,null,null,"ح",null,null,null,null,null,null,null,"ح",null,null,null,null,null,null,null,null,null,null,null,null,null,null,0,null,null,null,null,null,null,null,null,null,null,null,null,null,null,null,null,null,null,null,null,null,null,null,null,null,null,null,null,null,null,null,0,null,null,null,null,null,null,null,null,null,null,null,null,null,null,null,null,null,null,null,null,null,null,null,null,null,null,null,null,null,null,null,0,null,null,null,null,null,null,null,null,null,null,null,null,null,null,null,null,null,null,null,null,null,null,null,null,null,null,null,null,null,null,null,0,null,null,null,null,null,null,null,null,null,null,null,null,null,null,null,null,null,null,null,null,null,null,null,null,null,null,null,null,null,null,null,0,null,null,null,null,null,null,null,null,null,null,null,null,null,null,null,null,null,null,null,null,null,null,null,null,null,null,null,null,null,null,null,0,null,null,null,null,null,null,null,null,null,null,null,null,null,null,null,null,null,null,null,null,null,null,null,null,null,null,null,null,null,null,null,0,null,null,null,null,null,null,null,null,null,null,null,null,null,null,null,null,null,null,null,null,null,null,null,null,null,null,null,null,null,null,null,0]
[33,"Galal33","1B",2024524,"ح",null,null,null,null,null,null,null,null,"ح",null,null,null,null,null,null,"ح",null,null,null,null,null,null,null,null,null,null,null,null,"ح",null,0,null,null,"ح",null,null,null,null,null,"ح",null,null,null,null,null,null,null,"ح",null,null,null,null,null,null,null,null,null,null,null,null,null,null,0,null,null,null,null,null,null,null,null,null,null,null,null,null,null,null,null,null,null,null,null,null,null,null,null,null,null,null,null,null,null,null,0,null,null,null,null,null,null,null,null,null,null,null,null,null,null,null,null,null,null,null,null,null,null,null,null,null,null,null,null,null,null,null,0,null,null,null,null,null,null,null,null,null,null,null,null,null,null,null,null,null,null,null,null,null,null,null,null,null,null,null,null,null,null,null,0,null,null,null,null,null,null,null,null,null,null,null,null,null,null,null,null,null,null,null,null,null,null,null,null,null,null,null,null,null,null,null,0,null,null,null,null,null,null,null,null,null,null,null,null,null,null,null,null,null,null,null,null,null,null,null,null,null,null,null,null,null,null,null,0,null,null,null,null,null,null,null,null,null,null,null,null,null,null,null,null,null,null,null,null,null,null,null,null,null,null,null,null,null,null,null,0,null,null,null,null,null,null,null,null,null,null,null,null,null,null,null,null,null,null,null,null,null,null,null,null,null,null,null,null,null,null,null,0]
[34,"Galal34","1B",2024525,"ح",null,null,null,null,null,null,null,null,"ح",null,null,null,null,null,null,"ح",null,null,null,null,null,null,null,null,null,null,null,null,"ح",null,0,null,null,"ح",null,null,null,null,null,"ح",null,null,null,null,null,null,null,"ح",null,null,null,null,null,null,null,null,null,null,null,null,null,null,0,null,null,null,null,null,null,null,null,null,null,null,null,null,null,null,null,null,null,null,null,null,null,null,null,null,null,null,null,null,null,null,0,null,null,null,null,null,null,null,null,null,null,null,null,null,null,null,null,null,null,null,null,null,null,null,null,null,null,null,null,null,null,null,0,null,null,null,null,null,null,null,null,null,null,null,null,null,null,null,null,null,null,null,null,null,null,null,null,null,null,null,null,null,null,null,0,null,null,null,null,null,null,null,null,null,null,null,null,null,null,null,null,null,null,null,null,null,null,null,null,null,null,null,null,null,null,null,0,null,null,null,null,null,null,null,null,null,null,null,null,null,null,null,null,null,null,null,null,null,null,null,null,null,null,null,null,null,null,null,0,null,null,null,null,null,null,null,null,null,null,null,null,null,null,null,null,null,null,null,null,null,null,null,null,null,null,null,null,null,null,null,0,null,null,null,null,null,null,null,null,null,null,null,null,null,null,null,null,null,null,null,null,null,null,null,null,null,null,null,null,null,null,null,0]
[35,"Galal35","1B",2024526,"ح",null,null,null,null,null,null,null,null,"ح",null,null,null,null,null,null,"ح",null,null,null,null,null,null,null,null,null,null,null,null,"ح",null,0,null,null,"ح",null,null,null,null,null,"ح",null,null,null,null,null,null,null,"ح",null,null,null,null,null,null,null,null,null,null,null,null,null,null,0,null,null,null,null,null,null,null,null,null,null,null,null,null,null,null,null,null,null,null,null,null,null,null,null,null,null,null,null,null,null,null,0,null,null,null,null,null,null,null,null,null,null,null,null,null,null,null,null,null,null,null,null,null,null,null,null,null,null,null,null,null,null,null,0,null,null,null,null,null,null,null,null,null,null,null,null,null,null,null,null,null,null,null,null,null,null,null,null,null,null,null,null,null,null,null,0,null,null,null,null,null,null,null,null,null,null,null,null,null,null,null,null,null,null,null,null,null,null,null,null,null,null,null,null,null,null,null,0,null,null,null,null,null,null,null,null,null,null,null,null,null,null,null,null,null,null,null,null,null,null,null,null,null,null,null,null,null,null,null,0,null,null,null,null,null,null,null,null,null,null,null,null,null,null,null,null,null,null,null,null,null,null,null,null,null,null,null,null,null,null,null,0,null,null,null,null,null,null,null,null,null,null,null,null,null,null,null,null,null,null,null,null,null,null,null,null,null,null,null,null,null,null,null,0]
[36,"Galal36","1B",2024548,"ح",null,null,null,null,null,null,null,null,"ح",null,null,null,null,null,null,"ح",null,null,null,null,null,null,null,null,null,null,null,null,"ح",null,0,null,null,"ح",null,null,null,null,null,"ح",null,null,null,null,null,null,null,"ح",null,null,null,null,null,null,null,null,null,null,null,null,null,null,0,null,null,null,null,null,null,null,null,null,null,null,null,null,null,null,null,null,null,null,null,null,null,null,null,null,null,null,null,null,null,null,0,null,null,null,null,null,null,null,null,null,null,null,null,null,null,null,null,null,null,null,null,null,null,null,null,null,null,null,null,null,null,null,0,null,null,null,null,null,null,null,null,null,null,null,null,null,null,null,null,null,null,null,null,null,null,null,null,null,null,null,null,null,null,null,0,null,null,null,null,null,null,null,null,null,null,null,null,null,null,null,null,null,null,null,null,null,null,null,null,null,null,null,null,null,null,null,0,null,null,null,null,null,null,null,null,null,null,null,null,null,null,null,null,null,null,null,null,null,null,null,null,null,null,null,null,null,null,null,0,null,null,null,null,null,null,null,null,null,null,null,null,null,null,null,null,null,null,null,null,null,null,null,null,null,null,null,null,null,null,null,0,null,null,null,null,null,null,null,null,null,null,null,null,null,null,null,null,null,null,null,null,null,null,null,null,null,null,null,null,null,null,null,0]
[37,"Galal37","1B",2024527,"ح",null,null,null,null,null,null,null,null,"ح",null,null,null,null,null,null,"ح",null,null,null,null,null,null,null,null,null,null,null,null,"ح",null,0,null,null,"ح",null,null,null,null,null,"ح",null,null,null,null,null,null,null,"ح",null,null,null,null,null,null,null,null,null,null,null,null,null,null,0,null,null,null,null,null,null,null,null,null,null,null,null,null,null,null,null,null,null,null,null,null,null,null,null,null,null,null,null,null,null,null,0,null,null,null,null,null,null,null,null,null,null,null,null,null,null,null,null,null,null,null,null,null,null,null,null,null,null,null,null,null,null,null,0,null,null,null,null,null,null,null,null,null,null,null,null,null,null,null,null,null,null,null,null,null,null,null,null,null,null,null,null,null,null,null,0,null,null,null,null,null,null,null,null,null,null,null,null,null,null,null,null,null,null,null,null,null,null,null,null,null,null,null,null,null,null,null,0,null,null,null,null,null,null,null,null,null,null,null,null,null,null,null,null,null,null,null,null,null,null,null,null,null,null,null,null,null,null,null,0,null,null,null,null,null,null,null,null,null,null,null,null,null,null,null,null,null,null,null,null,null,null,null,null,null,null,null,null,null,null,null,0,null,null,null,null,null,null,null,null,null,null,null,null,null,null,null,null,null,null,null,null,null,null,null,null,null,null,null,null,null,null,null,0]
[38,"Galal38","1B",2024528,"ح",null,null,null,null,null,null,null,null,"ح",null,null,null,null,null,null,"ح",null,null,null,null,null,null,null,null,null,null,null,null,"ح",null,0,null,null,"ح",null,null,null,null,null,"ح",null,null,null,null,null,null,null,"ح",null,null,null,null,null,null,null,null,null,null,null,null,null,null,0,null,null,null,null,null,null,null,null,null,null,null,null,null,null,null,null,null,null,null,null,null,null,null,null,null,null,null,null,null,null,null,0,null,null,null,null,null,null,null,null,null,null,null,null,null,null,null,null,null,null,null,null,null,null,null,null,null,null,null,null,null,null,null,0,null,null,null,null,null,null,null,null,null,null,null,null,null,null,null,null,null,null,null,null,null,null,null,null,null,null,null,null,null,null,null,0,null,null,null,null,null,null,null,null,null,null,null,null,null,null,null,null,null,null,null,null,null,null,null,null,null,null,null,null,null,null,null,0,null,null,null,null,null,null,null,null,null,null,null,null,null,null,null,null,null,null,null,null,null,null,null,null,null,null,null,null,null,null,null,0,null,null,null,null,null,null,null,null,null,null,null,null,null,null,null,null,null,null,null,null,null,null,null,null,null,null,null,null,null,null,null,0,null,null,null,null,null,null,null,null,null,null,null,null,null,null,null,null,null,null,null,null,null,null,null,null,null,null,null,null,null,null,null,0]
[39,"Galal39","1B",2024529,"ح",null,null,null,null,null,null,null,null,"ح",null,null,null,null,null,null,"ح",null,null,null,null,null,null,null,null,null,null,null,null,"ح",null,0,null,null,"ح",null,null,null,null,null,"ح",null,null,null,null,null,null,null,"ح",null,null,null,null,null,null,null,null,null,null,null,null,null,null,0,null,null,null,null,null,null,null,null,null,null,null,null,null,null,null,null,null,null,null,null,null,null,null,null,null,null,null,null,null,null,null,0,null,null,null,null,null,null,null,null,null,null,null,null,null,null,null,null,null,null,null,null,null,null,null,null,null,null,null,null,null,null,null,0,null,null,null,null,null,null,null,null,null,null,null,null,null,null,null,null,null,null,null,null,null,null,null,null,null,null,null,null,null,null,null,0,null,null,null,null,null,null,null,null,null,null,null,null,null,null,null,null,null,null,null,null,null,null,null,null,null,null,null,null,null,null,null,0,null,null,null,null,null,null,null,null,null,null,null,null,null,null,null,null,null,null,null,null,null,null,null,null,null,null,null,null,null,null,null,0,null,null,null,null,null,null,null,null,null,null,null,null,null,null,null,null,null,null,null,null,null,null,null,null,null,null,null,null,null,null,null,0,null,null,null,null,null,null,null,null,null,null,null,null,null,null,null,null,null,null,null,null,null,null,null,null,null,null,null,null,null,null,null,0]
[40,"Galal40","1B",2024549,"ح",null,null,null,null,null,null,null,null,"ح",null,null,null,null,null,null,"ح",null,null,null,null,null,null,null,null,null,null,null,null,"ح",null,0,null,null,"ح",null,null,null,null,null,"ح",null,null,null,null,null,null,null,"ح",null,null,null,null,null,null,null,null,null,null,null,null,null,null,0,null,null,null,null,null,null,null,null,null,null,null,null,null,null,null,null,null,null,null,null,null,null,null,null,null,null,null,null,null,null,null,0,null,null,null,null,null,null,null,null,null,null,null,null,null,null,null,null,null,null,null,null,null,null,null,null,null,null,null,null,null,null,null,0,null,null,null,null,null,null,null,null,null,null,null,null,null,null,null,null,null,null,null,null,null,null,null,null,null,null,null,null,null,null,null,0,null,null,null,null,null,null,null,null,null,null,null,null,null,null,null,null,null,null,null,null,null,null,null,null,null,null,null,null,null,null,null,0,null,null,null,null,null,null,null,null,null,null,null,null,null,null,null,null,null,null,null,null,null,null,null,null,null,null,null,null,null,null,null,0,null,null,null,null,null,null,null,null,null,null,null,null,null,null,null,null,null,null,null,null,null,null,null,null,null,null,null,null,null,null,null,0,null,null,null,null,null,null,null,null,null,null,null,null,null,null,null,null,null,null,null,null,null,null,null,null,null,null,null,null,null,null,null,0]
[41,"Galal41","1B",2024530,"ح",null,null,null,null,null,null,null,null,"ح",null,null,null,null,null,null,"ح",null,null,null,null,null,null,null,null,null,null,null,null,"ح",null,0,null,null,"ح",null,null,null,null,null,"ح",null,null,null,null,null,null,null,"ح",null,null,null,null,null,null,null,null,null,null,null,null,null,null,0,null,null,null,null,null,null,null,null,null,null,null,null,null,null,null,null,null,null,null,null,null,null,null,null,null,null,null,null,null,null,null,0,null,null,null,null,null,null,null,null,null,null,null,null,null,null,null,null,null,null,null,null,null,null,null,null,null,null,null,null,null,null,null,0,null,null,null,null,null,null,null,null,null,null,null,null,null,null,null,null,null,null,null,null,null,null,null,null,null,null,null,null,null,null,null,0,null,null,null,null,null,null,null,null,null,null,null,null,null,null,null,null,null,null,null,null,null,null,null,null,null,null,null,null,null,null,null,0,null,null,null,null,null,null,null,null,null,null,null,null,null,null,null,null,null,null,null,null,null,null,null,null,null,null,null,null,null,null,null,0,null,null,null,null,null,null,null,null,null,null,null,null,null,null,null,null,null,null,null,null,null,null,null,null,null,null,null,null,null,null,null,0,null,null,null,null,null,null,null,null,null,null,null,null,null,null,null,null,null,null,null,null,null,null,null,null,null,null,null,null,null,null,null,0]
[42,"Galal42","1B",2024531,"ح",null,null,null,null,null,null,null,null,"ح",null,null,null,null,null,null,"ح",null,null,null,null,null,null,null,null,null,null,null,null,"ح",null,0,null,null,"ح",null,null,null,null,null,"ح",null,null,null,null,null,null,null,"ح",null,null,null,null,null,null,null,null,null,null,null,null,null,null,0,null,null,null,null,null,null,null,null,null,null,null,null,null,null,null,null,null,null,null,null,null,null,null,null,null,null,null,null,null,null,null,0,null,null,null,null,null,null,null,null,null,null,null,null,null,null,null,null,null,null,null,null,null,null,null,null,null,null,null,null,null,null,null,0,null,null,null,null,null,null,null,null,null,null,null,null,null,null,null,null,null,null,null,null,null,null,null,null,null,null,null,null,null,null,null,0,null,null,null,null,null,null,null,null,null,null,null,null,null,null,null,null,null,null,null,null,null,null,null,null,null,null,null,null,null,null,null,0,null,null,null,null,null,null,null,null,null,null,null,null,null,null,null,null,null,null,null,null,null,null,null,null,null,null,null,null,null,null,null,0,null,null,null,null,null,null,null,null,null,null,null,null,null,null,null,null,null,null,null,null,null,null,null,null,null,null,null,null,null,null,null,0,null,null,null,null,null,null,null,null,null,null,null,null,null,null,null,null,null,null,null,null,null,null,null,null,null,null,null,null,null,null,null,0]
[43,"Galal43","1B",2024550,"ح",null,null,null,null,null,null,null,null,"ح",null,null,null,null,null,null,"ح",null,null,null,null,null,null,null,null,null,null,null,null,"ح",null,0,null,null,"ح",null,null,null,null,null,"ح",null,null,null,null,null,null,null,"ح",null,null,null,null,null,null,null,null,null,null,null,null,null,null,0,null,null,null,null,null,null,null,null,null,null,null,null,null,null,null,null,null,null,null,null,null,null,null,null,null,null,null,null,null,null,null,0,null,null,null,null,null,null,null,null,null,null,null,null,null,null,null,null,null,null,null,null,null,null,null,null,null,null,null,null,null,null,null,0,null,null,null,null,null,null,null,null,null,null,null,null,null,null,null,null,null,null,null,null,null,null,null,null,null,null,null,null,null,null,null,0,null,null,null,null,null,null,null,null,null,null,null,null,null,null,null,null,null,null,null,null,null,null,null,null,null,null,null,null,null,null,null,0,null,null,null,null,null,null,null,null,null,null,null,null,null,null,null,null,null,null,null,null,null,null,null,null,null,null,null,null,null,null,null,0,null,null,null,null,null,null,null,null,null,null,null,null,null,null,null,null,null,null,null,null,null,null,null,null,null,null,null,null,null,null,null,0,null,null,null,null,null,null,null,null,null,null,null,null,null,null,null,null,null,null,null,null,null,null,null,null,null,null,null,null,null,null,null,0]
[44,"Galal44","1B",2024532,"ح",null,null,null,null,null,null,null,null,"ح",null,null,null,null,null,null,"ح",null,null,null,null,null,null,null,null,null,null,null,null,"ح",null,0,null,null,"ح",null,null,null,null,null,"ح",null,null,null,null,null,null,null,"ح",null,null,null,null,null,null,null,null,null,null,null,null,null,null,0,null,null,null,null,null,null,null,null,null,null,null,null,null,null,null,null,null,null,null,null,null,null,null,null,null,null,null,null,null,null,null,0,null,null,null,null,null,null,null,null,null,null,null,null,null,null,null,null,null,null,null,null,null,null,null,null,null,null,null,null,null,null,null,0,null,null,null,null,null,null,null,null,null,null,null,null,null,null,null,null,null,null,null,null,null,null,null,null,null,null,null,null,null,null,null,0,null,null,null,null,null,null,null,null,null,null,null,null,null,null,null,null,null,null,null,null,null,null,null,null,null,null,null,null,null,null,null,0,null,null,null,null,null,null,null,null,null,null,null,null,null,null,null,null,null,null,null,null,null,null,null,null,null,null,null,null,null,null,null,0,null,null,null,null,null,null,null,null,null,null,null,null,null,null,null,null,null,null,null,null,null,null,null,null,null,null,null,null,null,null,null,0,null,null,null,null,null,null,null,null,null,null,null,null,null,null,null,null,null,null,null,null,null,null,null,null,null,null,null,null,null,null,null,0]
[45,"Galal45","1B",2024533,"ح",null,null,null,null,null,null,null,null,"ح",null,null,null,null,null,null,"ح",null,null,null,null,null,null,null,null,null,null,null,null,"ح",null,0,null,null,"ح",null,null,null,null,null,"ح",null,null,null,null,null,null,null,"ح",null,null,null,null,null,null,null,null,null,null,null,null,null,null,0,null,null,null,null,null,null,null,null,null,null,null,null,null,null,null,null,null,null,null,null,null,null,null,null,null,null,null,null,null,null,null,0,null,null,null,null,null,null,null,null,null,null,null,null,null,null,null,null,null,null,null,null,null,null,null,null,null,null,null,null,null,null,null,0,null,null,null,null,null,null,null,null,null,null,null,null,null,null,null,null,null,null,null,null,null,null,null,null,null,null,null,null,null,null,null,0,null,null,null,null,null,null,null,null,null,null,null,null,null,null,null,null,null,null,null,null,null,null,null,null,null,null,null,null,null,null,null,0,null,null,null,null,null,null,null,null,null,null,null,null,null,null,null,null,null,null,null,null,null,null,null,null,null,null,null,null,null,null,null,0,null,null,null,null,null,null,null,null,null,null,null,null,null,null,null,null,null,null,null,null,null,null,null,null,null,null,null,null,null,null,null,0,null,null,null,null,null,null,null,null,null,null,null,null,null,null,null,null,null,null,null,null,null,null,null,null,null,null,null,null,null,null,null,0]
[46,"Galal46","1B",2024534,"ح",null,null,null,null,null,null,null,null,"ح",null,null,null,null,null,null,"ح",null,null,null,null,null,null,null,null,null,null,null,null,"ح",null,0,null,null,"ح",null,null,null,null,null,"ح",null,null,null,null,null,null,null,"ح",null,null,null,null,null,null,null,null,null,null,null,null,null,null,0,null,null,null,null,null,null,null,null,null,null,null,null,null,null,null,null,null,null,null,null,null,null,null,null,null,null,null,null,null,null,null,0,null,null,null,null,null,null,null,null,null,null,null,null,null,null,null,null,null,null,null,null,null,null,null,null,null,null,null,null,null,null,null,0,null,null,null,null,null,null,null,null,null,null,null,null,null,null,null,null,null,null,null,null,null,null,null,null,null,null,null,null,null,null,null,0,null,null,null,null,null,null,null,null,null,null,null,null,null,null,null,null,null,null,null,null,null,null,null,null,null,null,null,null,null,null,null,0,null,null,null,null,null,null,null,null,null,null,null,null,null,null,null,null,null,null,null,null,null,null,null,null,null,null,null,null,null,null,null,0,null,null,null,null,null,null,null,null,null,null,null,null,null,null,null,null,null,null,null,null,null,null,null,null,null,null,null,null,null,null,null,0,null,null,null,null,null,null,null,null,null,null,null,null,null,null,null,null,null,null,null,null,null,null,null,null,null,null,null,null,null,null,null,0]
[47,"Galal47","1B",2024536,"ح",null,null,null,null,null,null,null,null,"ح",null,null,null,null,null,null,"ح",null,null,null,null,null,null,null,null,null,null,null,null,"ح",null,0,null,null,"ح",null,null,null,null,null,"ح",null,null,null,null,null,null,null,"ح",null,null,null,null,null,null,null,null,null,null,null,null,null,null,0,null,null,null,null,null,null,null,null,null,null,null,null,null,null,null,null,null,null,null,null,null,null,null,null,null,null,null,null,null,null,null,0,null,null,null,null,null,null,null,null,null,null,null,null,null,null,null,null,null,null,null,null,null,null,null,null,null,null,null,null,null,null,null,0,null,null,null,null,null,null,null,null,null,null,null,null,null,null,null,null,null,null,null,null,null,null,null,null,null,null,null,null,null,null,null,0,null,null,null,null,null,null,null,null,null,null,null,null,null,null,null,null,null,null,null,null,null,null,null,null,null,null,null,null,null,null,null,0,null,null,null,null,null,null,null,null,null,null,null,null,null,null,null,null,null,null,null,null,null,null,null,null,null,null,null,null,null,null,null,0,null,null,null,null,null,null,null,null,null,null,null,null,null,null,null,null,null,null,null,null,null,null,null,null,null,null,null,null,null,null,null,0,null,null,null,null,null,null,null,null,null,null,null,null,null,null,null,null,null,null,null,null,null,null,null,null,null,null,null,null,null,null,null,0]
[48,"Galal48","1B",2024537,"ح",null,null,null,null,null,null,null,null,"ح",null,null,null,null,null,null,"ح",null,null,null,null,null,null,null,null,null,null,null,null,"ح",null,0,null,null,"ح",null,null,null,null,null,"ح",null,null,null,null,null,null,null,"ح",null,null,null,null,null,null,null,null,null,null,null,null,null,null,0,null,null,null,null,null,null,null,null,null,null,null,null,null,null,null,null,null,null,null,null,null,null,null,null,null,null,null,null,null,null,null,0,null,null,null,null,null,null,null,null,null,null,null,null,null,null,null,null,null,null,null,null,null,null,null,null,null,null,null,null,null,null,null,0,null,null,null,null,null,null,null,null,null,null,null,null,null,null,null,null,null,null,null,null,null,null,null,null,null,null,null,null,null,null,null,0,null,null,null,null,null,null,null,null,null,null,null,null,null,null,null,null,null,null,null,null,null,null,null,null,null,null,null,null,null,null,null,0,null,null,null,null,null,null,null,null,null,null,null,null,null,null,null,null,null,null,null,null,null,null,null,null,null,null,null,null,null,null,null,0,null,null,null,null,null,null,null,null,null,null,null,null,null,null,null,null,null,null,null,null,null,null,null,null,null,null,null,null,null,null,null,0,null,null,null,null,null,null,null,null,null,null,null,null,null,null,null,null,null,null,null,null,null,null,null,null,null,null,null,null,null,null,null,0]
[49,"Galal49","2C",2023501,"ح",null,null,null,null,null,null,null,null,"ح",null,null,null,null,null,null,"ح",null,null,null,null,null,null,null,null,null,null,null,null,"ح",null,0,null,null,"ح",null,null,null,null,null,"ح",null,null,null,null,null,null,null,"ح",null,null,null,null,null,null,null,null,null,null,null,null,null,null,0,null,null,null,null,null,null,null,null,null,null,null,null,null,null,null,null,null,null,null,null,null,null,null,null,null,null,null,null,null,null,null,0,null,null,null,null,null,null,null,null,null,null,null,null,null,null,null,null,null,null,null,null,null,null,null,null,null,null,null,null,null,null,null,0,null,null,null,null,null,null,null,null,null,null,null,null,null,null,null,null,null,null,null,null,null,null,null,null,null,null,null,null,null,null,null,0,null,null,null,null,null,null,null,null,null,null,null,null,null,null,null,null,null,null,null,null,null,null,null,null,null,null,null,null,null,null,null,0,null,null,null,null,null,null,null,null,null,null,null,null,null,null,null,null,null,null,null,null,null,null,null,null,null,null,null,null,null,null,null,0,null,null,null,null,null,null,null,null,null,null,null,null,null,null,null,null,null,null,null,null,null,null,null,null,null,null,null,null,null,null,null,0,null,null,null,null,null,null,null,null,null,null,null,null,null,null,null,null,null,null,null,null,null,null,null,null,null,null,null,null,null,null,null,0]
[50,"Galal50","2B",2023502,"ح",null,null,null,null,null,null,null,null,"ح",null,null,null,null,null,null,"ح",null,null,null,null,null,null,null,null,null,null,null,null,"ح",null,0,null,null,"ح",null,null,null,null,null,"ح",null,null,null,null,null,null,null,"ح",null,null,null,null,null,null,null,null,null,null,null,null,null,null,0,null,null,null,null,null,null,null,null,null,null,null,null,null,null,null,null,null,null,null,null,null,null,null,null,null,null,null,null,null,null,null,0,null,null,null,null,null,null,null,null,null,null,null,null,null,null,null,null,null,null,null,null,null,null,null,null,null,null,null,null,null,null,null,0,null,null,null,null,null,null,null,null,null,null,null,null,null,null,null,null,null,null,null,null,null,null,null,null,null,null,null,null,null,null,null,0,null,null,null,null,null,null,null,null,null,null,null,null,null,null,null,null,null,null,null,null,null,null,null,null,null,null,null,null,null,null,null,0,null,null,null,null,null,null,null,null,null,null,null,null,null,null,null,null,null,null,null,null,null,null,null,null,null,null,null,null,null,null,null,0,null,null,null,null,null,null,null,null,null,null,null,null,null,null,null,null,null,null,null,null,null,null,null,null,null,null,null,null,null,null,null,0,null,null,null,null,null,null,null,null,null,null,null,null,null,null,null,null,null,null,null,null,null,null,null,null,null,null,null,null,null,null,null,0]
[51,"Galal51","2A",2023503,"ح",null,null,null,null,null,null,null,null,"ح",null,null,null,null,null,null,"ح",null,null,null,null,null,null,null,null,null,null,null,null,"ح",null,0,null,null,"ح",null,null,null,null,null,"ح",null,null,null,null,null,null,null,"ح",null,null,null,null,null,null,null,null,null,null,null,null,null,null,0,null,null,null,null,null,null,null,null,null,null,null,null,null,null,null,null,null,null,null,null,null,null,null,null,null,null,null,null,null,null,null,0,null,null,null,null,null,null,null,null,null,null,null,null,null,null,null,null,null,null,null,null,null,null,null,null,null,null,null,null,null,null,null,0,null,null,null,null,null,null,null,null,null,null,null,null,null,null,null,null,null,null,null,null,null,null,null,null,null,null,null,null,null,null,null,0,null,null,null,null,null,null,null,null,null,null,null,null,null,null,null,null,null,null,null,null,null,null,null,null,null,null,null,null,null,null,null,0,null,null,null,null,null,null,null,null,null,null,null,null,null,null,null,null,null,null,null,null,null,null,null,null,null,null,null,null,null,null,null,0,null,null,null,null,null,null,null,null,null,null,null,null,null,null,null,null,null,null,null,null,null,null,null,null,null,null,null,null,null,null,null,0,null,null,null,null,null,null,null,null,null,null,null,null,null,null,null,null,null,null,null,null,null,null,null,null,null,null,null,null,null,null,null,0]
[52,"Galal52","2C",2023504,"ح",null,null,null,null,null,null,null,null,"ح",null,null,null,null,null,null,"ح",null,null,null,null,null,null,null,null,null,null,null,null,"ح",null,0,null,null,"ح",null,null,null,null,null,"ح",null,null,null,null,null,null,null,"ح",null,null,null,null,null,null,null,null,null,null,null,null,null,null,0,null,null,null,null,null,null,null,null,null,null,null,null,null,null,null,null,null,null,null,null,null,null,null,null,null,null,null,null,null,null,null,0,null,null,null,null,null,null,null,null,null,null,null,null,null,null,null,null,null,null,null,null,null,null,null,null,null,null,null,null,null,null,null,0,null,null,null,null,null,null,null,null,null,null,null,null,null,null,null,null,null,null,null,null,null,null,null,null,null,null,null,null,null,null,null,0,null,null,null,null,null,null,null,null,null,null,null,null,null,null,null,null,null,null,null,null,null,null,null,null,null,null,null,null,null,null,null,0,null,null,null,null,null,null,null,null,null,null,null,null,null,null,null,null,null,null,null,null,null,null,null,null,null,null,null,null,null,null,null,0,null,null,null,null,null,null,null,null,null,null,null,null,null,null,null,null,null,null,null,null,null,null,null,null,null,null,null,null,null,null,null,0,null,null,null,null,null,null,null,null,null,null,null,null,null,null,null,null,null,null,null,null,null,null,null,null,null,null,null,null,null,null,null,0]
[53,"Galal53","2B",2023505,"ح",null,null,null,null,null,null,null,null,"ح",null,null,null,null,null,null,"ح",null,null,null,null,null,null,null,null,null,null,null,null,"ح",null,0,null,null,"ح",null,null,null,null,null,"ح",null,null,null,null,null,null,null,"ح",null,null,null,null,null,null,null,null,null,null,null,null,null,null,0,null,null,null,null,null,null,null,null,null,null,null,null,null,null,null,null,null,null,null,null,null,null,null,null,null,null,null,null,null,null,null,0,null,null,null,null,null,null,null,null,null,null,null,null,null,null,null,null,null,null,null,null,null,null,null,null,null,null,null,null,null,null,null,0,null,null,null,null,null,null,null,null,null,null,null,null,null,null,null,null,null,null,null,null,null,null,null,null,null,null,null,null,null,null,null,0,null,null,null,null,null,null,null,null,null,null,null,null,null,null,null,null,null,null,null,null,null,null,null,null,null,null,null,null,null,null,null,0,null,null,null,null,null,null,null,null,null,null,null,null,null,null,null,null,null,null,null,null,null,null,null,null,null,null,null,null,null,null,null,0,null,null,null,null,null,null,null,null,null,null,null,null,null,null,null,null,null,null,null,null,null,null,null,null,null,null,null,null,null,null,null,0,null,null,null,null,null,null,null,null,null,null,null,null,null,null,null,null,null,null,null,null,null,null,null,null,null,null,null,null,null,null,null,0]
[54,"Galal54","2D",2023563,"ح",null,null,null,null,null,null,null,null,"ح",null,null,null,null,null,null,"ح",null,null,null,null,null,null,null,null,null,null,null,null,"ح",null,0,null,null,"ح",null,null,null,null,null,"ح",null,null,null,null,null,null,null,"ح",null,null,null,null,null,null,null,null,null,null,null,null,null,null,0,null,null,null,null,null,null,null,null,null,null,null,null,null,null,null,null,null,null,null,null,null,null,null,null,null,null,null,null,null,null,null,0,null,null,null,null,null,null,null,null,null,null,null,null,null,null,null,null,null,null,null,null,null,null,null,null,null,null,null,null,null,null,null,0,null,null,null,null,null,null,null,null,null,null,null,null,null,null,null,null,null,null,null,null,null,null,null,null,null,null,null,null,null,null,null,0,null,null,null,null,null,null,null,null,null,null,null,null,null,null,null,null,null,null,null,null,null,null,null,null,null,null,null,null,null,null,null,0,null,null,null,null,null,null,null,null,null,null,null,null,null,null,null,null,null,null,null,null,null,null,null,null,null,null,null,null,null,null,null,0,null,null,null,null,null,null,null,null,null,null,null,null,null,null,null,null,null,null,null,null,null,null,null,null,null,null,null,null,null,null,null,0,null,null,null,null,null,null,null,null,null,null,null,null,null,null,null,null,null,null,null,null,null,null,null,null,null,null,null,null,null,null,null,0]
[55,"Galal55","2D",2023506,"ح",null,null,null,null,null,null,null,null,"ح",null,null,null,null,null,null,"ح",null,null,null,null,null,null,null,null,null,null,null,null,"ح",null,0,null,null,"ح",null,null,null,null,null,"ح",null,null,null,null,null,null,null,"ح",null,null,null,null,null,null,null,null,null,null,null,null,null,null,0,null,null,null,null,null,null,null,null,null,null,null,null,null,null,null,null,null,null,null,null,null,null,null,null,null,null,null,null,null,null,null,0,null,null,null,null,null,null,null,null,null,null,null,null,null,null,null,null,null,null,null,null,null,null,null,null,null,null,null,null,null,null,null,0,null,null,null,null,null,null,null,null,null,null,null,null,null,null,null,null,null,null,null,null,null,null,null,null,null,null,null,null,null,null,null,0,null,null,null,null,null,null,null,null,null,null,null,null,null,null,null,null,null,null,null,null,null,null,null,null,null,null,null,null,null,null,null,0,null,null,null,null,null,null,null,null,null,null,null,null,null,null,null,null,null,null,null,null,null,null,null,null,null,null,null,null,null,null,null,0,null,null,null,null,null,null,null,null,null,null,null,null,null,null,null,null,null,null,null,null,null,null,null,null,null,null,null,null,null,null,null,0,null,null,null,null,null,null,null,null,null,null,null,null,null,null,null,null,null,null,null,null,null,null,null,null,null,null,null,null,null,null,null,0]
[56,"Galal56","2B",2023507,"ح",null,null,null,null,null,null,null,null,"ح",null,null,null,null,null,null,"ح",null,null,null,null,null,null,null,null,null,null,null,null,"ح",null,0,null,null,"ح",null,null,null,null,null,"ح",null,null,null,null,null,null,null,"ح",null,null,null,null,null,null,null,null,null,null,null,null,null,null,0,null,null,null,null,null,null,null,null,null,null,null,null,null,null,null,null,null,null,null,null,null,null,null,null,null,null,null,null,null,null,null,0,null,null,null,null,null,null,null,null,null,null,null,null,null,null,null,null,null,null,null,null,null,null,null,null,null,null,null,null,null,null,null,0,null,null,null,null,null,null,null,null,null,null,null,null,null,null,null,null,null,null,null,null,null,null,null,null,null,null,null,null,null,null,null,0,null,null,null,null,null,null,null,null,null,null,null,null,null,null,null,null,null,null,null,null,null,null,null,null,null,null,null,null,null,null,null,0,null,null,null,null,null,null,null,null,null,null,null,null,null,null,null,null,null,null,null,null,null,null,null,null,null,null,null,null,null,null,null,0,null,null,null,null,null,null,null,null,null,null,null,null,null,null,null,null,null,null,null,null,null,null,null,null,null,null,null,null,null,null,null,0,null,null,null,null,null,null,null,null,null,null,null,null,null,null,null,null,null,null,null,null,null,null,null,null,null,null,null,null,null,null,null,0]
[57,"Galal57","2A",2023564,"ح",null,null,null,null,null,null,null,null,"ح",null,null,null,null,null,null,"ح",null,null,null,null,null,null,null,null,null,null,null,null,"ح",null,0,null,null,"ح",null,null,null,null,null,"ح",null,null,null,null,null,null,null,"ح",null,null,null,null,null,null,null,null,null,null,null,null,null,null,0,null,null,null,null,null,null,null,null,null,null,null,null,null,null,null,null,null,null,null,null,null,null,null,null,null,null,null,null,null,null,null,0,null,null,null,null,null,null,null,null,null,null,null,null,null,null,null,null,null,null,null,null,null,null,null,null,null,null,null,null,null,null,null,0,null,null,null,null,null,null,null,null,null,null,null,null,null,null,null,null,null,null,null,null,null,null,null,null,null,null,null,null,null,null,null,0,null,null,null,null,null,null,null,null,null,null,null,null,null,null,null,null,null,null,null,null,null,null,null,null,null,null,null,null,null,null,null,0,null,null,null,null,null,null,null,null,null,null,null,null,null,null,null,null,null,null,null,null,null,null,null,null,null,null,null,null,null,null,null,0,null,null,null,null,null,null,null,null,null,null,null,null,null,null,null,null,null,null,null,null,null,null,null,null,null,null,null,null,null,null,null,0,null,null,null,null,null,null,null,null,null,null,null,null,null,null,null,null,null,null,null,null,null,null,null,null,null,null,null,null,null,null,null,0]
[58,"Galal58","2B",2023508,"ح",null,null,null,null,null,null,null,null,"ح",null,null,null,null,null,null,"ح",null,null,null,null,null,null,null,null,null,null,null,null,"ح",null,0,null,null,"ح",null,null,null,null,null,"ح",null,null,null,null,null,null,null,"ح",null,null,null,null,null,null,null,null,null,null,null,null,null,null,0,null,null,null,null,null,null,null,null,null,null,null,null,null,null,null,null,null,null,null,null,null,null,null,null,null,null,null,null,null,null,null,0,null,null,null,null,null,null,null,null,null,null,null,null,null,null,null,null,null,null,null,null,null,null,null,null,null,null,null,null,null,null,null,0,null,null,null,null,null,null,null,null,null,null,null,null,null,null,null,null,null,null,null,null,null,null,null,null,null,null,null,null,null,null,null,0,null,null,null,null,null,null,null,null,null,null,null,null,null,null,null,null,null,null,null,null,null,null,null,null,null,null,null,null,null,null,null,0,null,null,null,null,null,null,null,null,null,null,null,null,null,null,null,null,null,null,null,null,null,null,null,null,null,null,null,null,null,null,null,0,null,null,null,null,null,null,null,null,null,null,null,null,null,null,null,null,null,null,null,null,null,null,null,null,null,null,null,null,null,null,null,0,null,null,null,null,null,null,null,null,null,null,null,null,null,null,null,null,null,null,null,null,null,null,null,null,null,null,null,null,null,null,null,0]
[59,"Galal59","2B",2023509,"ح",null,null,null,null,null,null,null,null,"ح",null,null,null,null,null,null,"ح",null,null,null,null,null,null,null,null,null,null,null,null,"ح",null,0,null,null,"ح",null,null,null,null,null,"ح",null,null,null,null,null,null,null,"ح",null,null,null,null,null,null,null,null,null,null,null,null,null,null,0,null,null,null,null,null,null,null,null,null,null,null,null,null,null,null,null,null,null,null,null,null,null,null,null,null,null,null,null,null,null,null,0,null,null,null,null,null,null,null,null,null,null,null,null,null,null,null,null,null,null,null,null,null,null,null,null,null,null,null,null,null,null,null,0,null,null,null,null,null,null,null,null,null,null,null,null,null,null,null,null,null,null,null,null,null,null,null,null,null,null,null,null,null,null,null,0,null,null,null,null,null,null,null,null,null,null,null,null,null,null,null,null,null,null,null,null,null,null,null,null,null,null,null,null,null,null,null,0,null,null,null,null,null,null,null,null,null,null,null,null,null,null,null,null,null,null,null,null,null,null,null,null,null,null,null,null,null,null,null,0,null,null,null,null,null,null,null,null,null,null,null,null,null,null,null,null,null,null,null,null,null,null,null,null,null,null,null,null,null,null,null,0,null,null,null,null,null,null,null,null,null,null,null,null,null,null,null,null,null,null,null,null,null,null,null,null,null,null,null,null,null,null,null,0]
[60,"Galal60","2D",2023565,"ح",null,null,null,null,null,null,null,null,"ح",null,null,null,null,null,null,"ح",null,null,null,null,null,null,null,null,null,null,null,null,"ح",null,0,null,null,"ح",null,null,null,null,null,"ح",null,null,null,null,null,null,null,"ح",null,null,null,null,null,null,null,null,null,null,null,null,null,null,0,null,null,null,null,null,null,null,null,null,null,null,null,null,null,null,null,null,null,null,null,null,null,null,null,null,null,null,null,null,null,null,0,null,null,null,null,null,null,null,null,null,null,null,null,null,null,null,null,null,null,null,null,null,null,null,null,null,null,null,null,null,null,null,0,null,null,null,null,null,null,null,null,null,null,null,null,null,null,null,null,null,null,null,null,null,null,null,null,null,null,null,null,null,null,null,0,null,null,null,null,null,null,null,null,null,null,null,null,null,null,null,null,null,null,null,null,null,null,null,null,null,null,null,null,null,null,null,0,null,null,null,null,null,null,null,null,null,null,null,null,null,null,null,null,null,null,null,null,null,null,null,null,null,null,null,null,null,null,null,0,null,null,null,null,null,null,null,null,null,null,null,null,null,null,null,null,null,null,null,null,null,null,null,null,null,null,null,null,null,null,null,0,null,null,null,null,null,null,null,null,null,null,null,null,null,null,null,null,null,null,null,null,null,null,null,null,null,null,null,null,null,null,null,0]
[61,"Galal61","2D",2023510,"ح",null,null,null,null,null,null,null,null,"ح",null,null,null,null,null,null,"ح",null,null,null,null,null,null,null,null,null,null,null,null,"ح",null,0,null,null,"ح",null,null,null,null,null,"ح",null,null,null,null,null,null,null,"ح",null,null,null,null,null,null,null,null,null,null,null,null,null,null,0,null,null,null,null,null,null,null,null,null,null,null,null,null,null,null,null,null,null,null,null,null,null,null,null,null,null,null,null,null,null,null,0,null,null,null,null,null,null,null,null,null,null,null,null,null,null,null,null,null,null,null,null,null,null,null,null,null,null,null,null,null,null,null,0,null,null,null,null,null,null,null,null,null,null,null,null,null,null,null,null,null,null,null,null,null,null,null,null,null,null,null,null,null,null,null,0,null,null,null,null,null,null,null,null,null,null,null,null,null,null,null,null,null,null,null,null,null,null,null,null,null,null,null,null,null,null,null,0,null,null,null,null,null,null,null,null,null,null,null,null,null,null,null,null,null,null,null,null,null,null,null,null,null,null,null,null,null,null,null,0,null,null,null,null,null,null,null,null,null,null,null,null,null,null,null,null,null,null,null,null,null,null,null,null,null,null,null,null,null,null,null,0,null,null,null,null,null,null,null,null,null,null,null,null,null,null,null,null,null,null,null,null,null,null,null,null,null,null,null,null,null,null,null,0]
[62,"Galal62","2B",2023511,"ح",null,null,null,null,null,null,null,null,"ح",null,null,null,null,null,null,"ح",null,null,null,null,null,null,null,null,null,null,null,null,"ح",null,0,null,null,"ح",null,null,null,null,null,"ح",null,null,null,null,null,null,null,"ح",null,null,null,null,null,null,null,null,null,null,null,null,null,null,0,null,null,null,null,null,null,null,null,null,null,null,null,null,null,null,null,null,null,null,null,null,null,null,null,null,null,null,null,null,null,null,0,null,null,null,null,null,null,null,null,null,null,null,null,null,null,null,null,null,null,null,null,null,null,null,null,null,null,null,null,null,null,null,0,null,null,null,null,null,null,null,null,null,null,null,null,null,null,null,null,null,null,null,null,null,null,null,null,null,null,null,null,null,null,null,0,null,null,null,null,null,null,null,null,null,null,null,null,null,null,null,null,null,null,null,null,null,null,null,null,null,null,null,null,null,null,null,0,null,null,null,null,null,null,null,null,null,null,null,null,null,null,null,null,null,null,null,null,null,null,null,null,null,null,null,null,null,null,null,0,null,null,null,null,null,null,null,null,null,null,null,null,null,null,null,null,null,null,null,null,null,null,null,null,null,null,null,null,null,null,null,0,null,null,null,null,null,null,null,null,null,null,null,null,null,null,null,null,null,null,null,null,null,null,null,null,null,null,null,null,null,null,null,0]
[63,"Galal63","2A",2023512,"ح",null,null,null,null,null,null,null,null,"ح",null,null,null,null,null,null,"ح",null,null,null,null,null,null,null,null,null,null,null,null,"ح",null,0,null,null,"ح",null,null,null,null,null,"ح",null,null,null,null,null,null,null,"ح",null,null,null,null,null,null,null,null,null,null,null,null,null,null,0,null,null,null,null,null,null,null,null,null,null,null,null,null,null,null,null,null,null,null,null,null,null,null,null,null,null,null,null,null,null,null,0,null,null,null,null,null,null,null,null,null,null,null,null,null,null,null,null,null,null,null,null,null,null,null,null,null,null,null,null,null,null,null,0,null,null,null,null,null,null,null,null,null,null,null,null,null,null,null,null,null,null,null,null,null,null,null,null,null,null,null,null,null,null,null,0,null,null,null,null,null,null,null,null,null,null,null,null,null,null,null,null,null,null,null,null,null,null,null,null,null,null,null,null,null,null,null,0,null,null,null,null,null,null,null,null,null,null,null,null,null,null,null,null,null,null,null,null,null,null,null,null,null,null,null,null,null,null,null,0,null,null,null,null,null,null,null,null,null,null,null,null,null,null,null,null,null,null,null,null,null,null,null,null,null,null,null,null,null,null,null,0,null,null,null,null,null,null,null,null,null,null,null,null,null,null,null,null,null,null,null,null,null,null,null,null,null,null,null,null,null,null,null,0]
[64,"Galal64","2A",2023513,"ح",null,null,null,null,null,null,null,null,"ح",null,null,null,null,null,null,"ح",null,null,null,null,null,null,null,null,null,null,null,null,"ح",null,0,null,null,"ح",null,null,null,null,null,"ح",null,null,null,null,null,null,null,"ح",null,null,null,null,null,null,null,null,null,null,null,null,null,null,0,null,null,null,null,null,null,null,null,null,null,null,null,null,null,null,null,null,null,null,null,null,null,null,null,null,null,null,null,null,null,null,0,null,null,null,null,null,null,null,null,null,null,null,null,null,null,null,null,null,null,null,null,null,null,null,null,null,null,null,null,null,null,null,0,null,null,null,null,null,null,null,null,null,null,null,null,null,null,null,null,null,null,null,null,null,null,null,null,null,null,null,null,null,null,null,0,null,null,null,null,null,null,null,null,null,null,null,null,null,null,null,null,null,null,null,null,null,null,null,null,null,null,null,null,null,null,null,0,null,null,null,null,null,null,null,null,null,null,null,null,null,null,null,null,null,null,null,null,null,null,null,null,null,null,null,null,null,null,null,0,null,null,null,null,null,null,null,null,null,null,null,null,null,null,null,null,null,null,null,null,null,null,null,null,null,null,null,null,null,null,null,0,null,null,null,null,null,null,null,null,null,null,null,null,null,null,null,null,null,null,null,null,null,null,null,null,null,null,null,null,null,null,null,0]
[65,"Galal65","2B",2023514,"ح",null,null,null,null,null,null,null,null,"ح",null,null,null,null,null,null,"ح",null,null,null,null,null,null,null,null,null,null,null,null,"ح",null,{"$f":"COUNTIF(E73:AI73,\"غ\")","v":0},null,null,"ح",null,null,null,null,null,"ح",null,null,null,null,null,null,null,"ح",null,null,null,null,null,null,null,null,null,null,null,null,null,null,{"$f":"COUNTIF(AK73:BO73,\"غ\")","v":0},null,null,null,null,null,null,null,null,null,null,null,null,null,null,null,null,null,null,null,null,null,null,null,null,null,null,null,null,null,null,null,{"$f":"COUNTIF(BQ73:CU73,\"غ\")","v":0},null,null,null,null,null,null,null,null,null,null,null,null,null,null,null,null,null,null,null,null,null,null,null,null,null,null,null,null,null,null,null,{"$f":"COUNTIF(CW73:EA73,\"غ\")","v":0},null,null,null,null,null,null,null,null,null,null,null,null,null,null,null,null,null,null,null,null,null,null,null,null,null,null,null,null,null,null,null,{"$f":"COUNTIF(EC73:FG73,\"غ\")","v":0},null,null,null,null,null,null,null,null,null,null,null,null,null,null,null,null,null,null,null,null,null,null,null,null,null,null,null,null,null,null,null,{"$f":"COUNTIF(FI73:GM73,\"غ\")","v":0},null,null,null,null,null,null,null,null,null,null,null,null,null,null,null,null,null,null,null,null,null,null,null,null,null,null,null,null,null,null,null,{"$f":"COUNTIF(GO73:HS73,\"غ\")","v":0},null,null,null,null,null,null,null,null,null,null,null,null,null,null,null,null,null,null,null,null,null,null,null,null,null,null,null,null,null,null,null,{"$f":"COUNTIF(HU73:IY73,\"غ\")","v":0},null,null,null,null,null,null,null,null,null,null,null,null,null,null,null,null,null,null,null,null,null,null,null,null,null,null,null,null,null,null,null,{"$f":"COUNTIF(JA73:KE73,\"غ\")","v":0}]
[66,"Galal66","2D",2023515,"ح",null,null,null,null,null,null,null,null,"ح",null,null,null,null,null,null,"ح",null,null,null,null,null,null,null,null,null,null,null,null,"ح",null,0,null,null,"ح",null,null,null,null,null,"ح",null,null,null,null,null,null,null,"ح",null,null,null,null,null,null,null,null,null,null,null,null,null,null,0,null,null,null,null,null,null,null,null,null,null,null,null,null,null,null,null,null,null,null,null,null,null,null,null,null,null,null,null,null,null,null,0,null,null,null,null,null,null,null,null,null,null,null,null,null,null,null,null,null,null,null,null,null,null,null,null,null,null,null,null,null,null,null,0,null,null,null,null,null,null,null,null,null,null,null,null,null,null,null,null,null,null,null,null,null,null,null,null,null,null,null,null,null,null,null,0,null,null,null,null,null,null,null,null,null,null,null,null,null,null,null,null,null,null,null,null,null,null,null,null,null,null,null,null,null,null,null,0,null,null,null,null,null,null,null,null,null,null,null,null,null,null,null,null,null,null,null,null,null,null,null,null,null,null,null,null,null,null,null,0,null,null,null,null,null,null,null,null,null,null,null,null,null,null,null,null,null,null,null,null,null,null,null,null,null,null,null,null,null,null,null,0,null,null,null,null,null,null,null,null,null,null,null,null,null,null,null,null,null,null,null,null,null,null,null,null,null,null,null,null,null,null,null,0]
[67,"Galal67","2C",2023567,"ح",null,null,null,null,null,null,null,null,"ح",null,null,null,null,null,null,"ح",null,null,null,null,null,null,null,null,null,null,null,null,"ح",null,0,null,null,"ح",null,null,null,null,null,"ح",null,null,null,null,null,null,null,"ح",null,null,null,null,null,null,null,null,null,null,null,null,null,null,0,null,null,null,null,null,null,null,null,null,null,null,null,null,null,null,null,null,null,null,null,null,null,null,null,null,null,null,null,null,null,null,0,null,null,null,null,null,null,null,null,null,null,null,null,null,null,null,null,null,null,null,null,null,null,null,null,null,null,null,null,null,null,null,0,null,null,null,null,null,null,null,null,null,null,null,null,null,null,null,null,null,null,null,null,null,null,null,null,null,null,null,null,null,null,null,0,null,null,null,null,null,null,null,null,null,null,null,null,null,null,null,null,null,null,null,null,null,null,null,null,null,null,null,null,null,null,null,0,null,null,null,null,null,null,null,null,null,null,null,null,null,null,null,null,null,null,null,null,null,null,null,null,null,null,null,null,null,null,null,0,null,null,null,null,null,null,null,null,null,null,null,null,null,null,null,null,null,null,null,null,null,null,null,null,null,null,null,null,null,null,null,0,null,null,null,null,null,null,null,null,null,null,null,null,null,null,null,null,null,null,null,null,null,null,null,null,null,null,null,null,null,null,null,0]
[68,"Galal68","2C",2023516,"ح",null,null,null,null,null,null,null,null,"ح",null,null,null,null,null,null,"ح",null,null,null,null,null,null,null,null,null,null,null,null,"ح",null,0,null,null,"ح",null,null,null,null,null,"ح",null,null,null,null,null,null,null,"ح",null,null,null,null,null,null,null,null,null,null,null,null,null,null,0,null,null,null,null,null,null,null,null,null,null,null,null,null,null,null,null,null,null,null,null,null,null,null,null,null,null,null,null,null,null,null,0,null,null,null,null,null,null,null,null,null,null,null,null,null,null,null,null,null,null,null,null,null,null,null,null,null,null,null,null,null,null,null,0,null,null,null,null,null,null,null,null,null,null,null,null,null,null,null,null,null,null,null,null,null,null,null,null,null,null,null,null,null,null,null,0,null,null,null,null,null,null,null,null,null,null,null,null,null,null,null,null,null,null,null,null,null,null,null,null,null,null,null,null,null,null,null,0,null,null,null,null,null,null,null,null,null,null,null,null,null,null,null,null,null,null,null,null,null,null,null,null,null,null,null,null,null,null,null,0,null,null,null,null,null,null,null,null,null,null,null,null,null,null,null,null,null,null,null,null,null,null,null,null,null,null,null,null,null,null,null,0,null,null,null,null,null,null,null,null,null,null,null,null,null,null,null,null,null,null,null,null,null,null,null,null,null,null,null,null,null,null,null,0]
[69,"Galal69","2D",2023517,"ح",null,null,null,null,null,null,null,null,"ح",null,null,null,null,null,null,"ح",null,null,null,null,null,null,null,null,null,null,null,null,"ح",null,0,null,null,"ح",null,null,null,null,null,"ح",null,null,null,null,null,null,null,"ح",null,null,null,null,null,null,null,null,null,null,null,null,null,null,0,null,null,null,null,null,null,null,null,null,null,null,null,null,null,null,null,null,null,null,null,null,null,null,null,null,null,null,null,null,null,null,0,null,null,null,null,null,null,null,null,null,null,null,null,null,null,null,null,null,null,null,null,null,null,null,null,null,null,null,null,null,null,null,0,null,null,null,null,null,null,null,null,null,null,null,null,null,null,null,null,null,null,null,null,null,null,null,null,null,null,null,null,null,null,null,0,null,null,null,null,null,null,null,null,null,null,null,null,null,null,null,null,null,null,null,null,null,null,null,null,null,null,null,null,null,null,null,0,null,null,null,null,null,null,null,null,null,null,null,null,null,null,null,null,null,null,null,null,null,null,null,null,null,null,null,null,null,null,null,0,null,null,null,null,null,null,null,null,null,null,null,null,null,null,null,null,null,null,null,null,null,null,null,null,null,null,null,null,null,null,null,0,null,null,null,null,null,null,null,null,null,null,null,null,null,null,null,null,null,null,null,null,null,null,null,null,null,null,null,null,null,null,null,0]
[70,"Galal70","2C",2023518,"ح",null,null,null,null,null,null,null,null,"ح",null,null,null,null,null,null,"ح",null,null,null,null,null,null,null,null,null,null,null,null,"ح",null,0,null,null,"ح",null,null,null,null,null,"ح",null,null,null,null,null,null,null,"ح",null,null,null,null,null,null,null,null,null,null,null,null,null,null,0,null,null,null,null,null,null,null,null,null,null,null,null,null,null,null,null,null,null,null,null,null,null,null,null,null,null,null,null,null,null,null,0,null,null,null,null,null,null,null,null,null,null,null,null,null,null,null,null,null,null,null,null,null,null,null,null,null,null,null,null,null,null,null,0,null,null,null,null,null,null,null,null,null,null,null,null,null,null,null,null,null,null,null,null,null,null,null,null,null,null,null,null,null,null,null,0,null,null,null,null,null,null,null,null,null,null,null,null,null,null,null,null,null,null,null,null,null,null,null,null,null,null,null,null,null,null,null,0,null,null,null,null,null,null,null,null,null,null,null,null,null,null,null,null,null,null,null,null,null,null,null,null,null,null,null,null,null,null,null,0,null,null,null,null,null,null,null,null,null,null,null,null,null,null,null,null,null,null,null,null,null,null,null,null,null,null,null,null,null,null,null,0,null,null,null,null,null,null,null,null,null,null,null,null,null,null,null,null,null,null,null,null,null,null,null,null,null,null,null,null,null,null,null,0]
[71,"Galal71","2B",2023590,"ح",null,null,null,null,null,null,null,null,"ح",null,null,null,null,null,null,"ح",null,null,null,null,null,null,null,null,null,null,null,null,"ح",null,0,null,null,"ح",null,null,null,null,null,"ح",null,null,null,null,null,null,null,"ح",null,null,null,null,null,null,null,null,null,null,null,null,null,null,0,null,null,null,null,null,null,null,null,null,null,null,null,null,null,null,null,null,null,null,null,null,null,null,null,null,null,null,null,null,null,null,0,null,null,null,null,null,null,null,null,null,null,null,null,null,null,null,null,null,null,null,null,null,null,null,null,null,null,null,null,null,null,null,0,null,null,null,null,null,null,null,null,null,null,null,null,null,null,null,null,null,null,null,null,null,null,null,null,null,null,null,null,null,null,null,0,null,null,null,null,null,null,null,null,null,null,null,null,null,null,null,null,null,null,null,null,null,null,null,null,null,null,null,null,null,null,null,0,null,null,null,null,null,null,null,null,null,null,null,null,null,null,null,null,null,null,null,null,null,null,null,null,null,null,null,null,null,null,null,0,null,null,null,null,null,null,null,null,null,null,null,null,null,null,null,null,null,null,null,null,null,null,null,null,null,null,null,null,null,null,null,0,null,null,null,null,null,null,null,null,null,null,null,null,null,null,null,null,null,null,null,null,null,null,null,null,null,null,null,null,null,null,null,0]
[72,"Galal72","2D",2023519,"ح",null,null,null,null,null,null,null,null,"ح",null,null,null,null,null,null,"ح",null,null,null,null,null,null,null,null,null,null,null,null,"ح",null,0,null,null,"ح",null,null,null,null,null,"ح",null,null,null,null,null,null,null,"ح",null,null,null,null,null,null,null,null,null,null,null,null,null,null,0,null,null,null,null,null,null,null,null,null,null,null,null,null,null,null,null,null,null,null,null,null,null,null,null,null,null,null,null,null,null,null,0,null,null,null,null,null,null,null,null,null,null,null,null,null,null,null,null,null,null,null,null,null,null,null,null,null,null,null,null,null,null,null,0,null,null,null,null,null,null,null,null,null,null,null,null,null,null,null,null,null,null,null,null,null,null,null,null,null,null,null,null,null,null,null,0,null,null,null,null,null,null,null,null,null,null,null,null,null,null,null,null,null,null,null,null,null,null,null,null,null,null,null,null,null,null,null,0,null,null,null,null,null,null,null,null,null,null,null,null,null,null,null,null,null,null,null,null,null,null,null,null,null,null,null,null,null,null,null,0,null,null,null,null,null,null,null,null,null,null,null,null,null,null,null,null,null,null,null,null,null,null,null,null,null,null,null,null,null,null,null,0,null,null,null,null,null,null,null,null,null,null,null,null,null,null,null,null,null,null,null,null,null,null,null,null,null,null,null,null,null,null,null,0]
[73,"Galal73","2B",2023520,"ح",null,null,null,null,null,null,null,null,"ح",null,null,null,null,null,null,"ح",null,null,null,null,null,null,null,null,null,null,null,null,"ح",null,0,null,null,"ح",null,null,null,null,null,"ح",null,null,null,null,null,null,null,"ح",null,null,null,null,null,null,null,null,null,null,null,null,null,null,0,null,null,null,null,null,null,null,null,null,null,null,null,null,null,null,null,null,null,null,null,null,null,null,null,null,null,null,null,null,null,null,0,null,null,null,null,null,null,null,null,null,null,null,null,null,null,null,null,null,null,null,null,null,null,null,null,null,null,null,null,null,null,null,0,null,null,null,null,null,null,null,null,null,null,null,null,null,null,null,null,null,null,null,null,null,null,null,null,null,null,null,null,null,null,null,0,null,null,null,null,null,null,null,null,null,null,null,null,null,null,null,null,null,null,null,null,null,null,null,null,null,null,null,null,null,null,null,0,null,null,null,null,null,null,null,null,null,null,null,null,null,null,null,null,null,null,null,null,null,null,null,null,null,null,null,null,null,null,null,0,null,null,null,null,null,null,null,null,null,null,null,null,null,null,null,null,null,null,null,null,null,null,null,null,null,null,null,null,null,null,null,0,null,null,null,null,null,null,null,null,null,null,null,null,null,null,null,null,null,null,null,null,null,null,null,null,null,null,null,null,null,null,null,0]
[74,"Galal74","2C",2023568,"ح",null,null,null,null,null,null,null,null,"ح",null,null,null,null,null,null,"ح",null,null,null,null,null,null,null,null,null,null,null,null,"ح",null,0,null,null,"ح",null,null,null,null,null,"ح",null,null,null,null,null,null,null,"ح",null,null,null,null,null,null,null,null,null,null,null,null,null,null,0,null,null,null,null,null,null,null,null,null,null,null,null,null,null,null,null,null,null,null,null,null,null,null,null,null,null,null,null,null,null,null,0,null,null,null,null,null,null,null,null,null,null,null,null,null,null,null,null,null,null,null,null,null,null,null,null,null,null,null,null,null,null,null,0,null,null,null,null,null,null,null,null,null,null,null,null,null,null,null,null,null,null,null,null,null,null,null,null,null,null,null,null,null,null,null,0,null,null,null,null,null,null,null,null,null,null,null,null,null,null,null,null,null,null,null,null,null,null,null,null,null,null,null,null,null,null,null,0,null,null,null,null,null,null,null,null,null,null,null,null,null,null,null,null,null,null,null,null,null,null,null,null,null,null,null,null,null,null,null,0,null,null,null,null,null,null,null,null,null,null,null,null,null,null,null,null,null,null,null,null,null,null,null,null,null,null,null,null,null,null,null,0,null,null,null,null,null,null,null,null,null,null,null,null,null,null,null,null,null,null,null,null,null,null,null,null,null,null,null,null,null,null,null,0]
[75,"Galal75","2A",2023569,"ح",null,null,null,null,null,null,null,null,"ح",null,null,null,null,null,null,"ح",null,null,null,null,null,null,null,null,null,null,null,null,"ح",null,0,null,null,"ح",null,null,null,null,null,"ح",null,null,null,null,null,null,null,"ح",null,null,null,null,null,null,null,null,null,null,null,null,null,null,0,null,null,null,null,null,null,null,null,null,null,null,null,null,null,null,null,null,null,null,null,null,null,null,null,null,null,null,null,null,null,null,0,null,null,null,null,null,null,null,null,null,null,null,null,null,null,null,null,null,null,null,null,null,null,null,null,null,null,null,null,null,null,null,0,null,null,null,null,null,null,null,null,null,null,null,null,null,null,null,null,null,null,null,null,null,null,null,null,null,null,null,null,null,null,null,0,null,null,null,null,null,null,null,null,null,null,null,null,null,null,null,null,null,null,null,null,null,null,null,null,null,null,null,null,null,null,null,0,null,null,null,null,null,null,null,null,null,null,null,null,null,null,null,null,null,null,null,null,null,null,null,null,null,null,null,null,null,null,null,0,null,null,null,null,null,null,null,null,null,null,null,null,null,null,null,null,null,null,null,null,null,null,null,null,null,null,null,null,null,null,null,0,null,null,null,null,null,null,null,null,null,null,null,null,null,null,null,null,null,null,null,null,null,null,null,null,null,null,null,null,null,null,null,0]
[76,"Galal76","2C",2023521,"ح",null,null,null,null,null,null,null,null,"ح",null,null,null,null,null,null,"ح",null,null,null,null,null,null,null,null,null,null,null,null,"ح",null,0,null,null,"ح",null,null,null,null,null,"ح",null,null,null,null,null,null,null,"ح",null,null,null,null,null,null,null,null,null,null,null,null,null,null,0,null,null,null,null,null,null,null,null,null,null,null,null,null,null,null,null,null,null,null,null,null,null,null,null,null,null,null,null,null,null,null,0,null,null,null,null,null,null,null,null,null,null,null,null,null,null,null,null,null,null,null,null,null,null,null,null,null,null,null,null,null,null,null,0,null,null,null,null,null,null,null,null,null,null,null,null,null,null,null,null,null,null,null,null,null,null,null,null,null,null,null,null,null,null,null,0,null,null,null,null,null,null,null,null,null,null,null,null,null,null,null,null,null,null,null,null,null,null,null,null,null,null,null,null,null,null,null,0,null,null,null,null,null,null,null,null,null,null,null,null,null,null,null,null,null,null,null,null,null,null,null,null,null,null,null,null,null,null,null,0,null,null,null,null,null,null,null,null,null,null,null,null,null,null,null,null,null,null,null,null,null,null,null,null,null,null,null,null,null,null,null,0,null,null,null,null,null,null,null,null,null,null,null,null,null,null,null,null,null,null,null,null,null,null,null,null,null,null,null,null,null,null,null,0]
[77,"Galal77","2B",2023522,"ح",null,null,null,null,null,null,null,null,"ح",null,null,null,null,null,null,"ح",null,null,null,null,null,null,null,null,null,null,null,null,"ح",null,0,null,null,"ح",null,null,null,null,null,"ح",null,null,null,null,null,null,null,"ح",null,null,null,null,null,null,null,null,null,null,null,null,null,null,0,null,null,null,null,null,null,null,null,null,null,null,null,null,null,null,null,null,null,null,null,null,null,null,null,null,null,null,null,null,null,null,0,null,null,null,null,null,null,null,null,null,null,null,null,null,null,null,null,null,null,null,null,null,null,null,null,null,null,null,null,null,null,null,0,null,null,null,null,null,null,null,null,null,null,null,null,null,null,null,null,null,null,null,null,null,null,null,null,null,null,null,null,null,null,null,0,null,null,null,null,null,null,null,null,null,null,null,null,null,null,null,null,null,null,null,null,null,null,null,null,null,null,null,null,null,null,null,0,null,null,null,null,null,null,null,null,null,null,null,null,null,null,null,null,null,null,null,null,null,null,null,null,null,null,null,null,null,null,null,0,null,null,null,null,null,null,null,null,null,null,null,null,null,null,null,null,null,null,null,null,null,null,null,null,null,null,null,null,null,null,null,0,null,null,null,null,null,null,null,null,null,null,null,null,null,null,null,null,null,null,null,null,null,null,null,null,null,null,null,null,null,null,null,0]
[78,"Galal78","2A",2023523,"ح",null,null,null,null,null,null,null,null,"ح",null,null,null,null,null,null,"ح",null,null,null,null,null,null,null,null,null,null,null,null,"ح",null,0,null,null,"ح",null,null,null,null,null,"ح",null,null,null,null,null,null,null,"ح",null,null,null,null,null,null,null,null,null,null,null,null,null,null,0,null,null,null,null,null,null,null,null,null,null,null,null,null,null,null,null,null,null,null,null,null,null,null,null,null,null,null,null,null,null,null,0,null,null,null,null,null,null,null,null,null,null,null,null,null,null,null,null,null,null,null,null,null,null,null,null,null,null,null,null,null,null,null,0,null,null,null,null,null,null,null,null,null,null,null,null,null,null,null,null,null,null,null,null,null,null,null,null,null,null,null,null,null,null,null,0,null,null,null,null,null,null,null,null,null,null,null,null,null,null,null,null,null,null,null,null,null,null,null,null,null,null,null,null,null,null,null,0,null,null,null,null,null,null,null,null,null,null,null,null,null,null,null,null,null,null,null,null,null,null,null,null,null,null,null,null,null,null,null,0,null,null,null,null,null,null,null,null,null,null,null,null,null,null,null,null,null,null,null,null,null,null,null,null,null,null,null,null,null,null,null,0,null,null,null,null,null,null,null,null,null,null,null,null,null,null,null,null,null,null,null,null,null,null,null,null,null,null,null,null,null,null,null,0]
[79,"Galal79","2B",2023524,"ح",null,null,null,null,null,null,null,null,"ح",null,null,null,null,null,null,"ح",null,null,null,null,null,null,null,null,null,null,null,null,"ح",null,0,null,null,"ح",null,null,null,null,null,"ح",null,null,null,null,null,null,null,"ح",null,null,null,null,null,null,null,null,null,null,null,null,null,null,0,null,null,null,null,null,null,null,null,null,null,null,null,null,null,null,null,null,null,null,null,null,null,null,null,null,null,null,null,null,null,null,0,null,null,null,null,null,null,null,null,null,null,null,null,null,null,null,null,null,null,null,null,null,null,null,null,null,null,null,null,null,null,null,0,null,null,null,null,null,null,null,null,null,null,null,null,null,null,null,null,null,null,null,null,null,null,null,null,null,null,null,null,null,null,null,0,null,null,null,null,null,null,null,null,null,null,null,null,null,null,null,null,null,null,null,null,null,null,null,null,null,null,null,null,null,null,null,0,null,null,null,null,null,null,null,null,null,null,null,null,null,null,null,null,null,null,null,null,null,null,null,null,null,null,null,null,null,null,null,0,null,null,null,null,null,null,null,null,null,null,null,null,null,null,null,null,null,null,null,null,null,null,null,null,null,null,null,null,null,null,null,0,null,null,null,null,null,null,null,null,null,null,null,null,null,null,null,null,null,null,null,null,null,null,null,null,null,null,null,null,null,null,null,0]
[80,"Galal80","2D",2023570,"ح",null,null,null,null,null,null,null,null,"ح",null,null,null,null,null,null,"ح",null,null,null,null,null,null,null,null,null,null,null,null,"ح",null,0,null,null,"ح",null,null,null,null,null,"ح",null,null,null,null,null,null,null,"ح",null,null,null,null,null,null,null,null,null,null,null,null,null,null,0,null,null,null,null,null,null,null,null,null,null,null,null,null,null,null,null,null,null,null,null,null,null,null,null,null,null,null,null,null,null,null,0,null,null,null,null,null,null,null,null,null,null,null,null,null,null,null,null,null,null,null,null,null,null,null,null,null,null,null,null,null,null,null,0,null,null,null,null,null,null,null,null,null,null,null,null,null,null,null,null,null,null,null,null,null,null,null,null,null,null,null,null,null,null,null,0,null,null,null,null,null,null,null,null,null,null,null,null,null,null,null,null,null,null,null,null,null,null,null,null,null,null,null,null,null,null,null,0,null,null,null,null,null,null,null,null,null,null,null,null,null,null,null,null,null,null,null,null,null,null,null,null,null,null,null,null,null,null,null,0,null,null,null,null,null,null,null,null,null,null,null,null,null,null,null,null,null,null,null,null,null,null,null,null,null,null,null,null,null,null,null,0,null,null,null,null,null,null,null,null,null,null,null,null,null,null,null,null,null,null,null,null,null,null,null,null,null,null,null,null,null,null,null,0]
[81,"Galal81","2D",2023525,"ح",null,null,null,null,null,null,null,null,"ح",null,null,null,null,null,null,"ح",null,null,null,null,null,null,null,null,null,null,null,null,"ح",null,0,null,null,"ح",null,null,null,null,null,"ح",null,null,null,null,null,null,null,"ح",null,null,null,null,null,null,null,null,null,null,null,null,null,null,0,null,null,null,null,null,null,null,null,null,null,null,null,null,null,null,null,null,null,null,null,null,null,null,null,null,null,null,null,null,null,null,0,null,null,null,null,null,null,null,null,null,null,null,null,null,null,null,null,null,null,null,null,null,null,null,null,null,null,null,null,null,null,null,0,null,null,null,null,null,null,null,null,null,null,null,null,null,null,null,null,null,null,null,null,null,null,null,null,null,null,null,null,null,null,null,0,null,null,null,null,null,null,null,null,null,null,null,null,null,null,null,null,null,null,null,null,null,null,null,null,null,null,null,null,null,null,null,0,null,null,null,null,null,null,null,null,null,null,null,null,null,null,null,null,null,null,null,null,null,null,null,null,null,null,null,null,null,null,null,0,null,null,null,null,null,null,null,null,null,null,null,null,null,null,null,null,null,null,null,null,null,null,null,null,null,null,null,null,null,null,null,0,null,null,null,null,null,null,null,null,null,null,null,null,null,null,null,null,null,null,null,null,null,null,null,null,null,null,null,null,null,null,null,0]
[82,"Galal82","2B",2023526,"ح",null,null,null,null,null,null,null,null,"ح",null,null,null,null,null,null,"ح",null,null,null,null,null,null,null,null,null,null,null,null,"ح",null,0,null,null,"ح",null,null,null,null,null,"ح",null,null,null,null,null,null,null,"ح",null,null,null,null,null,null,null,null,null,null,null,null,null,null,0,null,null,null,null,null,null,null,null,null,null,null,null,null,null,null,null,null,null,null,null,null,null,null,null,null,null,null,null,null,null,null,0,null,null,null,null,null,null,null,null,null,null,null,null,null,null,null,null,null,null,null,null,null,null,null,null,null,null,null,null,null,null,null,0,null,null,null,null,null,null,null,null,null,null,null,null,null,null,null,null,null,null,null,null,null,null,null,null,null,null,null,null,null,null,null,0,null,null,null,null,null,null,null,null,null,null,null,null,null,null,null,null,null,null,null,null,null,null,null,null,null,null,null,null,null,null,null,0,null,null,null,null,null,null,null,null,null,null,null,null,null,null,null,null,null,null,null,null,null,null,null,null,null,null,null,null,null,null,null,0,null,null,null,null,null,null,null,null,null,null,null,null,null,null,null,null,null,null,null,null,null,null,null,null,null,null,null,null,null,null,null,0,null,null,null,null,null,null,null,null,null,null,null,null,null,null,null,null,null,null,null,null,null,null,null,null,null,null,null,null,null,null,null,0]
[83,"Galal83","2C",2023528,"ح",null,null,null,null,null,null,null,null,"ح",null,null,null,null,null,null,"ح",null,null,null,null,null,null,null,null,null,null,null,null,"ح",null,0,null,null,"ح",null,null,null,null,null,"ح",null,null,null,null,null,null,null,"ح",null,null,null,null,null,null,null,null,null,null,null,null,null,null,0,null,null,null,null,null,null,null,null,null,null,null,null,null,null,null,null,null,null,null,null,null,null,null,null,null,null,null,null,null,null,null,0,null,null,null,null,null,null,null,null,null,null,null,null,null,null,null,null,null,null,null,null,null,null,null,null,null,null,null,null,null,null,null,0,null,null,null,null,null,null,null,null,null,null,null,null,null,null,null,null,null,null,null,null,null,null,null,null,null,null,null,null,null,null,null,0,null,null,null,null,null,null,null,null,null,null,null,null,null,null,null,null,null,null,null,null,null,null,null,null,null,null,null,null,null,null,null,0,null,null,null,null,null,null,null,null,null,null,null,null,null,null,null,null,null,null,null,null,null,null,null,null,null,null,null,null,null,null,null,0,null,null,null,null,null,null,null,null,null,null,null,null,null,null,null,null,null,null,null,null,null,null,null,null,null,null,null,null,null,null,null,0,null,null,null,null,null,null,null,null,null,null,null,null,null,null,null,null,null,null,null,null,null,null,null,null,null,null,null,null,null,null,null,0]
[84,"Galal84","2A",2023571,"ح",null,null,null,null,null,null,null,null,"ح",null,null,null,null,null,null,"ح",null,null,null,null,null,null,null,null,null,null,null,null,"ح",null,0,null,null,"ح",null,null,null,null,null,"ح",null,null,null,null,null,null,null,"ح",null,null,null,null,null,null,null,null,null,null,null,null,null,null,0,null,null,null,null,null,null,null,null,null,null,null,null,null,null,null,null,null,null,null,null,null,null,null,null,null,null,null,null,null,null,null,0,null,null,null,null,null,null,null,null,null,null,null,null,null,null,null,null,null,null,null,null,null,null,null,null,null,null,null,null,null,null,null,0,null,null,null,null,null,null,null,null,null,null,null,null,null,null,null,null,null,null,null,null,null,null,null,null,null,null,null,null,null,null,null,0,null,null,null,null,null,null,null,null,null,null,null,null,null,null,null,null,null,null,null,null,null,null,null,null,null,null,null,null,null,null,null,0,null,null,null,null,null,null,null,null,null,null,null,null,null,null,null,null,null,null,null,null,null,null,null,null,null,null,null,null,null,null,null,0,null,null,null,null,null,null,null,null,null,null,null,null,null,null,null,null,null,null,null,null,null,null,null,null,null,null,null,null,null,null,null,0,null,null,null,null,null,null,null,null,null,null,null,null,null,null,null,null,null,null,null,null,null,null,null,null,null,null,null,null,null,null,null,0]
[85,"Galal85","2B",2023529,"ح",null,null,null,null,null,null,null,null,"ح",null,null,null,null,null,null,"ح",null,null,null,null,null,null,null,null,null,null,null,null,"ح",null,0,null,null,"ح",null,null,null,null,null,"ح",null,null,null,null,null,null,null,"ح",null,null,null,null,null,null,null,null,null,null,null,null,null,null,0,null,null,null,null,null,null,null,null,null,null,null,null,null,null,null,null,null,null,null,null,null,null,null,null,null,null,null,null,null,null,null,0,null,null,null,null,null,null,null,null,null,null,null,null,null,null,null,null,null,null,null,null,null,null,null,null,null,null,null,null,null,null,null,0,null,null,null,null,null,null,null,null,null,null,null,null,null,null,null,null,null,null,null,null,null,null,null,null,null,null,null,null,null,null,null,0,null,null,null,null,null,null,null,null,null,null,null,null,null,null,null,null,null,null,null,null,null,null,null,null,null,null,null,null,null,null,null,0,null,null,null,null,null,null,null,null,null,null,null,null,null,null,null,null,null,null,null,null,null,null,null,null,null,null,null,null,null,null,null,0,null,null,null,null,null,null,null,null,null,null,null,null,null,null,null,null,null,null,null,null,null,null,null,null,null,null,null,null,null,null,null,0,null,null,null,null,null,null,null,null,null,null,null,null,null,null,null,null,null,null,null,null,null,null,null,null,null,null,null,null,null,null,null,0]
[86,"Galal86","2A",2023572,"ح",null,null,null,null,null,null,null,null,"ح",null,null,null,null,null,null,"ح",null,null,null,null,null,null,null,null,null,null,null,null,"ح",null,0,null,null,"ح",null,null,null,null,null,"ح",null,null,null,null,null,null,null,"ح",null,null,null,null,null,null,null,null,null,null,null,null,null,null,0,null,null,null,null,null,null,null,null,null,null,null,null,null,null,null,null,null,null,null,null,null,null,null,null,null,null,null,null,null,null,null,0,null,null,null,null,null,null,null,null,null,null,null,null,null,null,null,null,null,null,null,null,null,null,null,null,null,null,null,null,null,null,null,0,null,null,null,null,null,null,null,null,null,null,null,null,null,null,null,null,null,null,null,null,null,null,null,null,null,null,null,null,null,null,null,0,null,null,null,null,null,null,null,null,null,null,null,null,null,null,null,null,null,null,null,null,null,null,null,null,null,null,null,null,null,null,null,0,null,null,null,null,null,null,null,null,null,null,null,null,null,null,null,null,null,null,null,null,null,null,null,null,null,null,null,null,null,null,null,0,null,null,null,null,null,null,null,null,null,null,null,null,null,null,null,null,null,null,null,null,null,null,null,null,null,null,null,null,null,null,null,0,null,null,null,null,null,null,null,null,null,null,null,null,null,null,null,null,null,null,null,null,null,null,null,null,null,null,null,null,null,null,null,0]
[87,"Galal87","2A",2023573,"ح",null,null,null,null,null,null,null,null,"ح",null,null,null,null,null,null,"ح",null,null,null,null,null,null,null,null,null,null,null,null,"ح",null,0,null,null,"ح",null,null,null,null,null,"ح",null,null,null,null,null,null,null,"ح",null,null,null,null,null,null,null,null,null,null,null,null,null,null,0,null,null,null,null,null,null,null,null,null,null,null,null,null,null,null,null,null,null,null,null,null,null,null,null,null,null,null,null,null,null,null,0,null,null,null,null,null,null,null,null,null,null,null,null,null,null,null,null,null,null,null,null,null,null,null,null,null,null,null,null,null,null,null,0,null,null,null,null,null,null,null,null,null,null,null,null,null,null,null,null,null,null,null,null,null,null,null,null,null,null,null,null,null,null,null,0,null,null,null,null,null,null,null,null,null,null,null,null,null,null,null,null,null,null,null,null,null,null,null,null,null,null,null,null,null,null,null,0,null,null,null,null,null,null,null,null,null,null,null,null,null,null,null,null,null,null,null,null,null,null,null,null,null,null,null,null,null,null,null,0,null,null,null,null,null,null,null,null,null,null,null,null,null,null,null,null,null,null,null,null,null,null,null,null,null,null,null,null,null,null,null,0,null,null,null,null,null,null,null,null,null,null,null,null,null,null,null,null,null,null,null,null,null,null,null,null,null,null,null,null,null,null,null,0]
[88,"Galal88","2C",2023530,"ح",null,null,null,null,null,null,null,null,"ح",null,null,null,null,null,null,"ح",null,null,null,null,null,null,null,null,null,null,null,null,"ح",null,0,null,null,"ح",null,null,null,null,null,"ح",null,null,null,null,null,null,null,"ح",null,null,null,null,null,null,null,null,null,null,null,null,null,null,0,null,null,null,null,null,null,null,null,null,null,null,null,null,null,null,null,null,null,null,null,null,null,null,null,null,null,null,null,null,null,null,0,null,null,null,null,null,null,null,null,null,null,null,null,null,null,null,null,null,null,null,null,null,null,null,null,null,null,null,null,null,null,null,0,null,null,null,null,null,null,null,null,null,null,null,null,null,null,null,null,null,null,null,null,null,null,null,null,null,null,null,null,null,null,null,0,null,null,null,null,null,null,null,null,null,null,null,null,null,null,null,null,null,null,null,null,null,null,null,null,null,null,null,null,null,null,null,0,null,null,null,null,null,null,null,null,null,null,null,null,null,null,null,null,null,null,null,null,null,null,null,null,null,null,null,null,null,null,null,0,null,null,null,null,null,null,null,null,null,null,null,null,null,null,null,null,null,null,null,null,null,null,null,null,null,null,null,null,null,null,null,0,null,null,null,null,null,null,null,null,null,null,null,null,null,null,null,null,null,null,null,null,null,null,null,null,null,null,null,null,null,null,null,0]
[89,"Galal89","2A",2023531,"ح",null,null,null,null,null,null,null,null,"ح",null,null,null,null,null,null,"ح",null,null,null,null,null,null,null,null,null,null,null,null,"ح",null,0,null,null,"ح",null,null,null,null,null,"ح",null,null,null,null,null,null,null,"ح",null,null,null,null,null,null,null,null,null,null,null,null,null,null,0,null,null,null,null,null,null,null,null,null,null,null,null,null,null,null,null,null,null,null,null,null,null,null,null,null,null,null,null,null,null,null,0,null,null,null,null,null,null,null,null,null,null,null,null,null,null,null,null,null,null,null,null,null,null,null,null,null,null,null,null,null,null,null,0,null,null,null,null,null,null,null,null,null,null,null,null,null,null,null,null,null,null,null,null,null,null,null,null,null,null,null,null,null,null,null,0,null,null,null,null,null,null,null,null,null,null,null,null,null,null,null,null,null,null,null,null,null,null,null,null,null,null,null,null,null,null,null,0,null,null,null,null,null,null,null,null,null,null,null,null,null,null,null,null,null,null,null,null,null,null,null,null,null,null,null,null,null,null,null,0,null,null,null,null,null,null,null,null,null,null,null,null,null,null,null,null,null,null,null,null,null,null,null,null,null,null,null,null,null,null,null,0,null,null,null,null,null,null,null,null,null,null,null,null,null,null,null,null,null,null,null,null,null,null,null,null,null,null,null,null,null,null,null,0]
[90,"Galal90","2A",2023532,"ح",null,null,null,null,null,null,null,null,"ح",null,null,null,null,null,null,"ح",null,null,null,null,null,null,null,null,null,null,null,null,"ح",null,0,null,null,"ح",null,null,null,null,null,"ح",null,null,null,null,null,null,null,"ح",null,null,null,null,null,null,null,null,null,null,null,null,null,null,0,null,null,null,null,null,null,null,null,null,null,null,null,null,null,null,null,null,null,null,null,null,null,null,null,null,null,null,null,null,null,null,0,null,null,null,null,null,null,null,null,null,null,null,null,null,null,null,null,null,null,null,null,null,null,null,null,null,null,null,null,null,null,null,0,null,null,null,null,null,null,null,null,null,null,null,null,null,null,null,null,null,null,null,null,null,null,null,null,null,null,null,null,null,null,null,0,null,null,null,null,null,null,null,null,null,null,null,null,null,null,null,null,null,null,null,null,null,null,null,null,null,null,null,null,null,null,null,0,null,null,null,null,null,null,null,null,null,null,null,null,null,null,null,null,null,null,null,null,null,null,null,null,null,null,null,null,null,null,null,0,null,null,null,null,null,null,null,null,null,null,null,null,null,null,null,null,null,null,null,null,null,null,null,null,null,null,null,null,null,null,null,0,null,null,null,null,null,null,null,null,null,null,null,null,null,null,null,null,null,null,null,null,null,null,null,null,null,null,null,null,null,null,null,0]
[91,"Galal91","2B",2023533,"ح",null,null,null,null,null,null,null,null,"ح",null,null,null,null,null,null,"ح",null,null,null,null,null,null,null,null,null,null,null,null,"ح",null,0,null,null,"ح",null,null,null,null,null,"ح",null,null,null,null,null,null,null,"ح",null,null,null,null,null,null,null,null,null,null,null,null,null,null,0,null,null,null,null,null,null,null,null,null,null,null,null,null,null,null,null,null,null,null,null,null,null,null,null,null,null,null,null,null,null,null,0,null,null,null,null,null,null,null,null,null,null,null,null,null,null,null,null,null,null,null,null,null,null,null,null,null,null,null,null,null,null,null,0,null,null,null,null,null,null,null,null,null,null,null,null,null,null,null,null,null,null,null,null,null,null,null,null,null,null,null,null,null,null,null,0,null,null,null,null,null,null,null,null,null,null,null,null,null,null,null,null,null,null,null,null,null,null,null,null,null,null,null,null,null,null,null,0,null,null,null,null,null,null,null,null,null,null,null,null,null,null,null,null,null,null,null,null,null,null,null,null,null,null,null,null,null,null,null,0,null,null,null,null,null,null,null,null,null,null,null,null,null,null,null,null,null,null,null,null,null,null,null,null,null,null,null,null,null,null,null,0,null,null,null,null,null,null,null,null,null,null,null,null,null,null,null,null,null,null,null,null,null,null,null,null,null,null,null,null,null,null,null,0]
[92,"Galal92","2C",2023534,"ح",null,null,null,null,null,null,null,null,"ح",null,null,null,null,null,null,"ح",null,null,null,null,null,null,null,null,null,null,null,null,"ح",null,0,null,null,"ح",null,null,null,null,null,"ح",null,null,null,null,null,null,null,"ح",null,null,null,null,null,null,null,null,null,null,null,null,null,null,0,null,null,null,null,null,null,null,null,null,null,null,null,null,null,null,null,null,null,null,null,null,null,null,null,null,null,null,null,null,null,null,0,null,null,null,null,null,null,null,null,null,null,null,null,null,null,null,null,null,null,null,null,null,null,null,null,null,null,null,null,null,null,null,0,null,null,null,null,null,null,null,null,null,null,null,null,null,null,null,null,null,null,null,null,null,null,null,null,null,null,null,null,null,null,null,0,null,null,null,null,null,null,null,null,null,null,null,null,null,null,null,null,null,null,null,null,null,null,null,null,null,null,null,null,null,null,null,0,null,null,null,null,null,null,null,null,null,null,null,null,null,null,null,null,null,null,null,null,null,null,null,null,null,null,null,null,null,null,null,0,null,null,null,null,null,null,null,null,null,null,null,null,null,null,null,null,null,null,null,null,null,null,null,null,null,null,null,null,null,null,null,0,null,null,null,null,null,null,null,null,null,null,null,null,null,null,null,null,null,null,null,null,null,null,null,null,null,null,null,null,null,null,null,0]
[93,"Galal93","2A",2023535,"ح",null,null,null,null,null,null,null,null,"ح",null,null,null,null,null,null,"ح",null,null,null,null,null,null,null,null,null,null,null,null,"ح",null,0,null,null,"ح",null,null,null,null,null,"ح",null,null,null,null,null,null,null,"ح",null,null,null,null,null,null,null,null,null,null,null,null,null,null,0,null,null,null,null,null,null,null,null,null,null,null,null,null,null,null,null,null,null,null,null,null,null,null,null,null,null,null,null,null,null,null,0,null,null,null,null,null,null,null,null,null,null,null,null,null,null,null,null,null,null,null,null,null,null,null,null,null,null,null,null,null,null,null,0,null,null,null,null,null,null,null,null,null,null,null,null,null,null,null,null,null,null,null,null,null,null,null,null,null,null,null,null,null,null,null,0,null,null,null,null,null,null,null,null,null,null,null,null,null,null,null,null,null,null,null,null,null,null,null,null,null,null,null,null,null,null,null,0,null,null,null,null,null,null,null,null,null,null,null,null,null,null,null,null,null,null,null,null,null,null,null,null,null,null,null,null,null,null,null,0,null,null,null,null,null,null,null,null,null,null,null,null,null,null,null,null,null,null,null,null,null,null,null,null,null,null,null,null,null,null,null,0,null,null,null,null,null,null,null,null,null,null,null,null,null,null,null,null,null,null,null,null,null,null,null,null,null,null,null,null,null,null,null,0]
[94,"Galal94","2B",2023536,"ح",null,null,null,null,null,null,null,null,"ح",null,null,null,null,null,null,"ح",null,null,null,null,null,null,null,null,null,null,null,null,"ح",null,0,null,null,"ح",null,null,null,null,null,"ح",null,null,null,null,null,null,null,"ح",null,null,null,null,null,null,null,null,null,null,null,null,null,null,0,null,null,null,null,null,null,null,null,null,null,null,null,null,null,null,null,null,null,null,null,null,null,null,null,null,null,null,null,null,null,null,0,null,null,null,null,null,null,null,null,null,null,null,null,null,null,null,null,null,null,null,null,null,null,null,null,null,null,null,null,null,null,null,0,null,null,null,null,null,null,null,null,null,null,null,null,null,null,null,null,null,null,null,null,null,null,null,null,null,null,null,null,null,null,null,0,null,null,null,null,null,null,null,null,null,null,null,null,null,null,null,null,null,null,null,null,null,null,null,null,null,null,null,null,null,null,null,0,null,null,null,null,null,null,null,null,null,null,null,null,null,null,null,null,null,null,null,null,null,null,null,null,null,null,null,null,null,null,null,0,null,null,null,null,null,null,null,null,null,null,null,null,null,null,null,null,null,null,null,null,null,null,null,null,null,null,null,null,null,null,null,0,null,null,null,null,null,null,null,null,null,null,null,null,null,null,null,null,null,null,null,null,null,null,null,null,null,null,null,null,null,null,null,0]
[95,"Galal95","2D",2023537,"ح",null,null,null,null,null,null,null,null,"ح",null,null,null,null,null,null,"ح",null,null,null,null,null,null,null,null,null,null,null,null,"ح",null,0,null,null,"ح",null,null,null,null,null,"ح",null,null,null,null,null,null,null,"ح",null,null,null,null,null,null,null,null,null,null,null,null,null,null,0,null,null,null,null,null,null,null,null,null,null,null,null,null,null,null,null,null,null,null,null,null,null,null,null,null,null,null,null,null,null,null,0,null,null,null,null,null,null,null,null,null,null,null,null,null,null,null,null,null,null,null,null,null,null,null,null,null,null,null,null,null,null,null,0,null,null,null,null,null,null,null,null,null,null,null,null,null,null,null,null,null,null,null,null,null,null,null,null,null,null,null,null,null,null,null,0,null,null,null,null,null,null,null,null,null,null,null,null,null,null,null,null,null,null,null,null,null,null,null,null,null,null,null,null,null,null,null,0,null,null,null,null,null,null,null,null,null,null,null,null,null,null,null,null,null,null,null,null,null,null,null,null,null,null,null,null,null,null,null,0,null,null,null,null,null,null,null,null,null,null,null,null,null,null,null,null,null,null,null,null,null,null,null,null,null,null,null,null,null,null,null,0,null,null,null,null,null,null,null,null,null,null,null,null,null,null,null,null,null,null,null,null,null,null,null,null,null,null,null,null,null,null,null,0]
[96,"Galal96","2C",2023538,"ح",null,null,null,null,null,null,null,null,"ح",null,null,null,null,null,null,"ح",null,null,null,null,null,null,null,null,null,null,null,null,"ح",null,0,null,null,"ح",null,null,null,null,null,"ح",null,null,null,null,null,null,null,"ح",null,null,null,null,null,null,null,null,null,null,null,null,null,null,0,null,null,null,null,null,null,null,null,null,null,null,null,null,null,null,null,null,null,null,null,null,null,null,null,null,null,null,null,null,null,null,0,null,null,null,null,null,null,null,null,null,null,null,null,null,null,null,null,null,null,null,null,null,null,null,null,null,null,null,null,null,null,null,0,null,null,null,null,null,null,null,null,null,null,null,null,null,null,null,null,null,null,null,null,null,null,null,null,null,null,null,null,null,null,null,0,null,null,null,null,null,null,null,null,null,null,null,null,null,null,null,null,null,null,null,null,null,null,null,null,null,null,null,null,null,null,null,0,null,null,null,null,null,null,null,null,null,null,null,null,null,null,null,null,null,null,null,null,null,null,null,null,null,null,null,null,null,null,null,0,null,null,null,null,null,null,null,null,null,null,null,null,null,null,null,null,null,null,null,null,null,null,null,null,null,null,null,null,null,null,null,0,null,null,null,null,null,null,null,null,null,null,null,null,null,null,null,null,null,null,null,null,null,null,null,null,null,null,null,null,null,null,null,0]
[97,"Galal97","2D",2023574,"ح",null,null,null,null,null,null,null,null,"ح",null,null,null,null,null,null,"ح",null,null,null,null,null,null,null,null,null,null,null,null,"ح",null,0,null,null,"ح",null,null,null,null,null,"ح",null,null,null,null,null,null,null,"ح",null,null,null,null,null,null,null,null,null,null,null,null,null,null,0,null,null,null,null,null,null,null,null,null,null,null,null,null,null,null,null,null,null,null,null,null,null,null,null,null,null,null,null,null,null,null,0,null,null,null,null,null,null,null,null,null,null,null,null,null,null,null,null,null,null,null,null,null,null,null,null,null,null,null,null,null,null,null,0,null,null,null,null,null,null,null,null,null,null,null,null,null,null,null,null,null,null,null,null,null,null,null,null,null,null,null,null,null,null,null,0,null,null,null,null,null,null,null,null,null,null,null,null,null,null,null,null,null,null,null,null,null,null,null,null,null,null,null,null,null,null,null,0,null,null,null,null,null,null,null,null,null,null,null,null,null,null,null,null,null,null,null,null,null,null,null,null,null,null,null,null,null,null,null,0,null,null,null,null,null,null,null,null,null,null,null,null,null,null,null,null,null,null,null,null,null,null,null,null,null,null,null,null,null,null,null,0,null,null,null,null,null,null,null,null,null,null,null,null,null,null,null,null,null,null,null,null,null,null,null,null,null,null,null,null,null,null,null,0]
[98,"Galal98","2D",2023539,"ح",null,null,null,null,null,null,null,null,"ح",null,null,null,null,null,null,"ح",null,null,null,null,null,null,null,null,null,null,null,null,"ح",null,0,null,null,"ح",null,null,null,null,null,"ح",null,null,null,null,null,null,null,"ح",null,null,null,null,null,null,null,null,null,null,null,null,null,null,0,null,null,null,null,null,null,null,null,null,null,null,null,null,null,null,null,null,null,null,null,null,null,null,null,null,null,null,null,null,null,null,0,null,null,null,null,null,null,null,null,null,null,null,null,null,null,null,null,null,null,null,null,null,null,null,null,null,null,null,null,null,null,null,0,null,null,null,null,null,null,null,null,null,null,null,null,null,null,null,null,null,null,null,null,null,null,null,null,null,null,null,null,null,null,null,0,null,null,null,null,null,null,null,null,null,null,null,null,null,null,null,null,null,null,null,null,null,null,null,null,null,null,null,null,null,null,null,0,null,null,null,null,null,null,null,null,null,null,null,null,null,null,null,null,null,null,null,null,null,null,null,null,null,null,null,null,null,null,null,0,null,null,null,null,null,null,null,null,null,null,null,null,null,null,null,null,null,null,null,null,null,null,null,null,null,null,null,null,null,null,null,0,null,null,null,null,null,null,null,null,null,null,null,null,null,null,null,null,null,null,null,null,null,null,null,null,null,null,null,null,null,null,null,0]
[99,"Galal99","2A",2023575,"ح",null,null,null,null,null,null,null,null,"ح",null,null,null,null,null,null,"ح",null,null,null,null,null,null,null,null,null,null,null,null,"ح",null,0,null,null,"ح",null,null,null,null,null,"ح",null,null,null,null,null,null,null,"ح",null,null,null,null,null,null,null,null,null,null,null,null,null,null,0,null,null,null,null,null,null,null,null,null,null,null,null,null,null,null,null,null,null,null,null,null,null,null,null,null,null,null,null,null,null,null,0,null,null,null,null,null,null,null,null,null,null,null,null,null,null,null,null,null,null,null,null,null,null,null,null,null,null,null,null,null,null,null,0,null,null,null,null,null,null,null,null,null,null,null,null,null,null,null,null,null,null,null,null,null,null,null,null,null,null,null,null,null,null,null,0,null,null,null,null,null,null,null,null,null,null,null,null,null,null,null,null,null,null,null,null,null,null,null,null,null,null,null,null,null,null,null,0,null,null,null,null,null,null,null,null,null,null,null,null,null,null,null,null,null,null,null,null,null,null,null,null,null,null,null,null,null,null,null,0,null,null,null,null,null,null,null,null,null,null,null,null,null,null,null,null,null,null,null,null,null,null,null,null,null,null,null,null,null,null,null,0,null,null,null,null,null,null,null,null,null,null,null,null,null,null,null,null,null,null,null,null,null,null,null,null,null,null,null,null,null,null,null,0]
[100,"Galal100","2C",2023576,"ح",null,null,null,null,null,null,null,null,"ح",null,null,null,null,null,null,"ح",null,null,null,null,null,null,null,null,null,null,null,null,"ح",null,0,null,null,"ح",null,null,null,null,null,"ح",null,null,null,null,null,null,null,"ح",null,null,null,null,null,null,null,null,null,null,null,null,null,null,0,null,null,null,null,null,null,null,null,null,null,null,null,null,null,null,null,null,null,null,null,null,null,null,null,null,null,null,null,null,null,null,0,null,null,null,null,null,null,null,null,null,null,null,null,null,null,null,null,null,null,null,null,null,null,null,null,null,null,null,null,null,null,null,0,null,null,null,null,null,null,null,null,null,null,null,null,null,null,null,null,null,null,null,null,null,null,null,null,null,null,null,null,null,null,null,0,null,null,null,null,null,null,null,null,null,null,null,null,null,null,null,null,null,null,null,null,null,null,null,null,null,null,null,null,null,null,null,0,null,null,null,null,null,null,null,null,null,null,null,null,null,null,null,null,null,null,null,null,null,null,null,null,null,null,null,null,null,null,null,0,null,null,null,null,null,null,null,null,null,null,null,null,null,null,null,null,null,null,null,null,null,null,null,null,null,null,null,null,null,null,null,0,null,null,null,null,null,null,null,null,null,null,null,null,null,null,null,null,null,null,null,null,null,null,null,null,null,null,null,null,null,null,null,0]
[101,"Galal101","2B",2023540,"ح",null,null,null,null,null,null,null,null,"ح",null,null,null,null,null,null,"ح",null,null,null,null,null,null,null,null,null,null,null,null,"ح",null,0,null,null,"ح",null,null,null,null,null,"ح",null,null,null,null,null,null,null,"ح",null,null,null,null,null,null,null,null,null,null,null,null,null,null,0,null,null,null,null,null,null,null,null,null,null,null,null,null,null,null,null,null,null,null,null,null,null,null,null,null,null,null,null,null,null,null,0,null,null,null,null,null,null,null,null,null,null,null,null,null,null,null,null,null,null,null,null,null,null,null,null,null,null,null,null,null,null,null,0,null,null,null,null,null,null,null,null,null,null,null,null,null,null,null,null,null,null,null,null,null,null,null,null,null,null,null,null,null,null,null,0,null,null,null,null,null,null,null,null,null,null,null,null,null,null,null,null,null,null,null,null,null,null,null,null,null,null,null,null,null,null,null,0,null,null,null,null,null,null,null,null,null,null,null,null,null,null,null,null,null,null,null,null,null,null,null,null,null,null,null,null,null,null,null,0,null,null,null,null,null,null,null,null,null,null,null,null,null,null,null,null,null,null,null,null,null,null,null,null,null,null,null,null,null,null,null,0,null,null,null,null,null,null,null,null,null,null,null,null,null,null,null,null,null,null,null,null,null,null,null,null,null,null,null,null,null,null,null,0]
[102,"Galal102","2A",2023541,"ح",null,null,null,null,null,null,null,null,"ح",null,null,null,null,null,null,"ح",null,null,null,null,null,null,null,null,null,null,null,null,"ح",null,0,null,null,"ح",null,null,null,null,null,"ح",null,null,null,null,null,null,null,"ح",null,null,null,null,null,null,null,null,null,null,null,null,null,null,0,null,null,null,null,null,null,null,null,null,null,null,null,null,null,null,null,null,null,null,null,null,null,null,null,null,null,null,null,null,null,null,0,null,null,null,null,null,null,null,null,null,null,null,null,null,null,null,null,null,null,null,null,null,null,null,null,null,null,null,null,null,null,null,0,null,null,null,null,null,null,null,null,null,null,null,null,null,null,null,null,null,null,null,null,null,null,null,null,null,null,null,null,null,null,null,0,null,null,null,null,null,null,null,null,null,null,null,null,null,null,null,null,null,null,null,null,null,null,null,null,null,null,null,null,null,null,null,0,null,null,null,null,null,null,null,null,null,null,null,null,null,null,null,null,null,null,null,null,null,null,null,null,null,null,null,null,null,null,null,0,null,null,null,null,null,null,null,null,null,null,null,null,null,null,null,null,null,null,null,null,null,null,null,null,null,null,null,null,null,null,null,0,null,null,null,null,null,null,null,null,null,null,null,null,null,null,null,null,null,null,null,null,null,null,null,null,null,null,null,null,null,null,null,0]
[103,"Galal103","2B",2023543,"ح",null,null,null,null,null,null,null,null,"ح",null,null,null,null,null,null,"ح",null,null,null,null,null,null,null,null,null,null,null,null,"ح",null,0,null,null,"ح",null,null,null,null,null,"ح",null,null,null,null,null,null,null,"ح",null,null,null,null,null,null,null,null,null,null,null,null,null,null,0,null,null,null,null,null,null,null,null,null,null,null,null,null,null,null,null,null,null,null,null,null,null,null,null,null,null,null,null,null,null,null,0,null,null,null,null,null,null,null,null,null,null,null,null,null,null,null,null,null,null,null,null,null,null,null,null,null,null,null,null,null,null,null,0,null,null,null,null,null,null,null,null,null,null,null,null,null,null,null,null,null,null,null,null,null,null,null,null,null,null,null,null,null,null,null,0,null,null,null,null,null,null,null,null,null,null,null,null,null,null,null,null,null,null,null,null,null,null,null,null,null,null,null,null,null,null,null,0,null,null,null,null,null,null,null,null,null,null,null,null,null,null,null,null,null,null,null,null,null,null,null,null,null,null,null,null,null,null,null,0,null,null,null,null,null,null,null,null,null,null,null,null,null,null,null,null,null,null,null,null,null,null,null,null,null,null,null,null,null,null,null,0,null,null,null,null,null,null,null,null,null,null,null,null,null,null,null,null,null,null,null,null,null,null,null,null,null,null,null,null,null,null,null,0]
[104,"Galal104","2B",2023544,"ح",null,null,null,null,null,null,null,null,"ح",null,null,null,null,null,null,"ح",null,null,null,null,null,null,null,null,null,null,null,null,"ح",null,0,null,null,"ح",null,null,null,null,null,"ح",null,null,null,null,null,null,null,"ح",null,null,null,null,null,null,null,null,null,null,null,null,null,null,0,null,null,null,null,null,null,null,null,null,null,null,null,null,null,null,null,null,null,null,null,null,null,null,null,null,null,null,null,null,null,null,0,null,null,null,null,null,null,null,null,null,null,null,null,null,null,null,null,null,null,null,null,null,null,null,null,null,null,null,null,null,null,null,0,null,null,null,null,null,null,null,null,null,null,null,null,null,null,null,null,null,null,null,null,null,null,null,null,null,null,null,null,null,null,null,0,null,null,null,null,null,null,null,null,null,null,null,null,null,null,null,null,null,null,null,null,null,null,null,null,null,null,null,null,null,null,null,0,null,null,null,null,null,null,null,null,null,null,null,null,null,null,null,null,null,null,null,null,null,null,null,null,null,null,null,null,null,null,null,0,null,null,null,null,null,null,null,null,null,null,null,null,null,null,null,null,null,null,null,null,null,null,null,null,null,null,null,null,null,null,null,0,null,null,null,null,null,null,null,null,null,null,null,null,null,null,null,null,null,null,null,null,null,null,null,null,null,null,null,null,null,null,null,0]
[105,"Galal105","2D",2023578,"ح",null,null,null,null,null,null,null,null,"ح",null,null,null,null,null,null,"ح",null,null,null,null,null,null,null,null,null,null,null,null,"ح",null,0,null,null,"ح",null,null,null,null,null,"ح",null,null,null,null,null,null,null,"ح",null,null,null,null,null,null,null,null,null,null,null,null,null,null,0,null,null,null,null,null,null,null,null,null,null,null,null,null,null,null,null,null,null,null,null,null,null,null,null,null,null,null,null,null,null,null,0,null,null,null,null,null,null,null,null,null,null,null,null,null,null,null,null,null,null,null,null,null,null,null,null,null,null,null,null,null,null,null,0,null,null,null,null,null,null,null,null,null,null,null,null,null,null,null,null,null,null,null,null,null,null,null,null,null,null,null,null,null,null,null,0,null,null,null,null,null,null,null,null,null,null,null,null,null,null,null,null,null,null,null,null,null,null,null,null,null,null,null,null,null,null,null,0,null,null,null,null,null,null,null,null,null,null,null,null,null,null,null,null,null,null,null,null,null,null,null,null,null,null,null,null,null,null,null,0,null,null,null,null,null,null,null,null,null,null,null,null,null,null,null,null,null,null,null,null,null,null,null,null,null,null,null,null,null,null,null,0,null,null,null,null,null,null,null,null,null,null,null,null,null,null,null,null,null,null,null,null,null,null,null,null,null,null,null,null,null,null,null,0]
[106,"Galal106","2C",2023579,"ح",null,null,null,null,null,null,null,null,"ح",null,null,null,null,null,null,"ح",null,null,null,null,null,null,null,null,null,null,null,null,"ح",null,0,null,null,"ح",null,null,null,null,null,"ح",null,null,null,null,null,null,null,"ح",null,null,null,null,null,null,null,null,null,null,null,null,null,null,0,null,null,null,null,null,null,null,null,null,null,null,null,null,null,null,null,null,null,null,null,null,null,null,null,null,null,null,null,null,null,null,0,null,null,null,null,null,null,null,null,null,null,null,null,null,null,null,null,null,null,null,null,null,null,null,null,null,null,null,null,null,null,null,0,null,null,null,null,null,null,null,null,null,null,null,null,null,null,null,null,null,null,null,null,null,null,null,null,null,null,null,null,null,null,null,0,null,null,null,null,null,null,null,null,null,null,null,null,null,null,null,null,null,null,null,null,null,null,null,null,null,null,null,null,null,null,null,0,null,null,null,null,null,null,null,null,null,null,null,null,null,null,null,null,null,null,null,null,null,null,null,null,null,null,null,null,null,null,null,0,null,null,null,null,null,null,null,null,null,null,null,null,null,null,null,null,null,null,null,null,null,null,null,null,null,null,null,null,null,null,null,0,null,null,null,null,null,null,null,null,null,null,null,null,null,null,null,null,null,null,null,null,null,null,null,null,null,null,null,null,null,null,null,0]
[107,"Galal107","2C",2023545,"ح",null,null,null,null,null,null,null,null,"ح",null,null,null,null,null,null,"ح",null,null,null,null,null,null,null,null,null,null,null,null,"ح",null,0,null,null,"ح",null,null,null,null,null,"ح",null,null,null,null,null,null,null,"ح",null,null,null,null,null,null,null,null,null,null,null,null,null,null,0,null,null,null,null,null,null,null,null,null,null,null,null,null,null,null,null,null,null,null,null,null,null,null,null,null,null,null,null,null,null,null,0,null,null,null,null,null,null,null,null,null,null,null,null,null,null,null,null,null,null,null,null,null,null,null,null,null,null,null,null,null,null,null,0,null,null,null,null,null,null,null,null,null,null,null,null,null,null,null,null,null,null,null,null,null,null,null,null,null,null,null,null,null,null,null,0,null,null,null,null,null,null,null,null,null,null,null,null,null,null,null,null,null,null,null,null,null,null,null,null,null,null,null,null,null,null,null,0,null,null,null,null,null,null,null,null,null,null,null,null,null,null,null,null,null,null,null,null,null,null,null,null,null,null,null,null,null,null,null,0,null,null,null,null,null,null,null,null,null,null,null,null,null,null,null,null,null,null,null,null,null,null,null,null,null,null,null,null,null,null,null,0,null,null,null,null,null,null,null,null,null,null,null,null,null,null,null,null,null,null,null,null,null,null,null,null,null,null,null,null,null,null,null,0]
[108,"Galal108","2B",2023546,"ح",null,null,null,null,null,null,null,null,"ح",null,null,null,null,null,null,"ح",null,null,null,null,null,null,null,null,null,null,null,null,"ح",null,0,null,null,"ح",null,null,null,null,null,"ح",null,null,null,null,null,null,null,"ح",null,null,null,null,null,null,null,null,null,null,null,null,null,null,0,null,null,null,null,null,null,null,null,null,null,null,null,null,null,null,null,null,null,null,null,null,null,null,null,null,null,null,null,null,null,null,0,null,null,null,null,null,null,null,null,null,null,null,null,null,null,null,null,null,null,null,null,null,null,null,null,null,null,null,null,null,null,null,0,null,null,null,null,null,null,null,null,null,null,null,null,null,null,null,null,null,null,null,null,null,null,null,null,null,null,null,null,null,null,null,0,null,null,null,null,null,null,null,null,null,null,null,null,null,null,null,null,null,null,null,null,null,null,null,null,null,null,null,null,null,null,null,0,null,null,null,null,null,null,null,null,null,null,null,null,null,null,null,null,null,null,null,null,null,null,null,null,null,null,null,null,null,null,null,0,null,null,null,null,null,null,null,null,null,null,null,null,null,null,null,null,null,null,null,null,null,null,null,null,null,null,null,null,null,null,null,0,null,null,null,null,null,null,null,null,null,null,null,null,null,null,null,null,null,null,null,null,null,null,null,null,null,null,null,null,null,null,null,0]
[109,"Galal109","2A",2023547,"ح",null,null,null,null,null,null,null,null,"ح",null,null,null,null,null,null,"ح",null,null,null,null,null,null,null,null,null,null,null,null,"ح",null,0,null,null,"ح",null,null,null,null,null,"ح",null,null,null,null,null,null,null,"ح",null,null,null,null,null,null,null,null,null,null,null,null,null,null,0,null,null,null,null,null,null,null,null,null,null,null,null,null,null,null,null,null,null,null,null,null,null,null,null,null,null,null,null,null,null,null,0,null,null,null,null,null,null,null,null,null,null,null,null,null,null,null,null,null,null,null,null,null,null,null,null,null,null,null,null,null,null,null,0,null,null,null,null,null,null,null,null,null,null,null,null,null,null,null,null,null,null,null,null,null,null,null,null,null,null,null,null,null,null,null,0,null,null,null,null,null,null,null,null,null,null,null,null,null,null,null,null,null,null,null,null,null,null,null,null,null,null,null,null,null,null,null,0,null,null,null,null,null,null,null,null,null,null,null,null,null,null,null,null,null,null,null,null,null,null,null,null,null,null,null,null,null,null,null,0,null,null,null,null,null,null,null,null,null,null,null,null,null,null,null,null,null,null,null,null,null,null,null,null,null,null,null,null,null,null,null,0,null,null,null,null,null,null,null,null,null,null,null,null,null,null,null,null,null,null,null,null,null,null,null,null,null,null,null,null,null,null,null,0]
[110,"Galal110","2A",2023548,"ح",null,null,null,null,null,null,null,null,"ح",null,null,null,null,null,null,"ح",null,null,null,null,null,null,null,null,null,null,null,null,"ح",null,0,null,null,"ح",null,null,null,null,null,"ح",null,null,null,null,null,null,null,"ح",null,null,null,null,null,null,null,null,null,null,null,null,null,null,0,null,null,null,null,null,null,null,null,null,null,null,null,null,null,null,null,null,null,null,null,null,null,null,null,null,null,null,null,null,null,null,0,null,null,null,null,null,null,null,null,null,null,null,null,null,null,null,null,null,null,null,null,null,null,null,null,null,null,null,null,null,null,null,0,null,null,null,null,null,null,null,null,null,null,null,null,null,null,null,null,null,null,null,null,null,null,null,null,null,null,null,null,null,null,null,0,null,null,null,null,null,null,null,null,null,null,null,null,null,null,null,null,null,null,null,null,null,null,null,null,null,null,null,null,null,null,null,0,null,null,null,null,null,null,null,null,null,null,null,null,null,null,null,null,null,null,null,null,null,null,null,null,null,null,null,null,null,null,null,0,null,null,null,null,null,null,null,null,null,null,null,null,null,null,null,null,null,null,null,null,null,null,null,null,null,null,null,null,null,null,null,0,null,null,null,null,null,null,null,null,null,null,null,null,null,null,null,null,null,null,null,null,null,null,null,null,null,null,null,null,null,null,null,0]
[111,"Galal111","2A",2023580,"ح",null,null,null,null,null,null,null,null,"ح",null,null,null,null,null,null,"ح",null,null,null,null,null,null,null,null,null,null,null,null,"ح",null,0,null,null,"ح",null,null,null,null,null,"ح",null,null,null,null,null,null,null,"ح",null,null,null,null,null,null,null,null,null,null,null,null,null,null,0,null,null,null,null,null,null,null,null,null,null,null,null,null,null,null,null,null,null,null,null,null,null,null,null,null,null,null,null,null,null,null,0,null,null,null,null,null,null,null,null,null,null,null,null,null,null,null,null,null,null,null,null,null,null,null,null,null,null,null,null,null,null,null,0,null,null,null,null,null,null,null,null,null,null,null,null,null,null,null,null,null,null,null,null,null,null,null,null,null,null,null,null,null,null,null,0,null,null,null,null,null,null,null,null,null,null,null,null,null,null,null,null,null,null,null,null,null,null,null,null,null,null,null,null,null,null,null,0,null,null,null,null,null,null,null,null,null,null,null,null,null,null,null,null,null,null,null,null,null,null,null,null,null,null,null,null,null,null,null,0,null,null,null,null,null,null,null,null,null,null,null,null,null,null,null,null,null,null,null,null,null,null,null,null,null,null,null,null,null,null,null,0,null,null,null,null,null,null,null,null,null,null,null,null,null,null,null,null,null,null,null,null,null,null,null,null,null,null,null,null,null,null,null,0]
[112,"Galal112","2C",2023549,"ح",null,null,null,null,null,null,null,null,"ح",null,null,null,null,null,null,"ح",null,null,null,null,null,null,null,null,null,null,null,null,"ح",null,0,null,null,"ح",null,null,null,null,null,"ح",null,null,null,null,null,null,null,"ح",null,null,null,null,null,null,null,null,null,null,null,null,null,null,0,null,null,null,null,null,null,null,null,null,null,null,null,null,null,null,null,null,null,null,null,null,null,null,null,null,null,null,null,null,null,null,0,null,null,null,null,null,null,null,null,null,null,null,null,null,null,null,null,null,null,null,null,null,null,null,null,null,null,null,null,null,null,null,0,null,null,null,null,null,null,null,null,null,null,null,null,null,null,null,null,null,null,null,null,null,null,null,null,null,null,null,null,null,null,null,0,null,null,null,null,null,null,null,null,null,null,null,null,null,null,null,null,null,null,null,null,null,null,null,null,null,null,null,null,null,null,null,0,null,null,null,null,null,null,null,null,null,null,null,null,null,null,null,null,null,null,null,null,null,null,null,null,null,null,null,null,null,null,null,0,null,null,null,null,null,null,null,null,null,null,null,null,null,null,null,null,null,null,null,null,null,null,null,null,null,null,null,null,null,null,null,0,null,null,null,null,null,null,null,null,null,null,null,null,null,null,null,null,null,null,null,null,null,null,null,null,null,null,null,null,null,null,null,0]
[113,"Galal113","2C",2023581,"ح",null,null,null,null,null,null,null,null,"ح",null,null,null,null,null,null,"ح",null,null,null,null,null,null,null,null,null,null,null,null,"ح",null,0,null,null,"ح",null,null,null,null,null,"ح",null,null,null,null,null,null,null,"ح",null,null,null,null,null,null,null,null,null,null,null,null,null,null,0,null,null,null,null,null,null,null,null,null,null,null,null,null,null,null,null,null,null,null,null,null,null,null,null,null,null,null,null,null,null,null,0,null,null,null,null,null,null,null,null,null,null,null,null,null,null,null,null,null,null,null,null,null,null,null,null,null,null,null,null,null,null,null,0,null,null,null,null,null,null,null,null,null,null,null,null,null,null,null,null,null,null,null,null,null,null,null,null,null,null,null,null,null,null,null,0,null,null,null,null,null,null,null,null,null,null,null,null,null,null,null,null,null,null,null,null,null,null,null,null,null,null,null,null,null,null,null,0,null,null,null,null,null,null,null,null,null,null,null,null,null,null,null,null,null,null,null,null,null,null,null,null,null,null,null,null,null,null,null,0,null,null,null,null,null,null,null,null,null,null,null,null,null,null,null,null,null,null,null,null,null,null,null,null,null,null,null,null,null,null,null,0,null,null,null,null,null,null,null,null,null,null,null,null,null,null,null,null,null,null,null,null,null,null,null,null,null,null,null,null,null,null,null,0]
[114,"Galal114","2C",2023582,"ح",null,null,null,null,null,null,null,null,"ح",null,null,null,null,null,null,"ح",null,null,null,null,null,null,null,null,null,null,null,null,"ح",null,0,null,null,"ح",null,null,null,null,null,"ح",null,null,null,null,null,null,null,"ح",null,null,null,null,null,null,null,null,null,null,null,null,null,null,0,null,null,null,null,null,null,null,null,null,null,null,null,null,null,null,null,null,null,null,null,null,null,null,null,null,null,null,null,null,null,null,0,null,null,null,null,null,null,null,null,null,null,null,null,null,null,null,null,null,null,null,null,null,null,null,null,null,null,null,null,null,null,null,0,null,null,null,null,null,null,null,null,null,null,null,null,null,null,null,null,null,null,null,null,null,null,null,null,null,null,null,null,null,null,null,0,null,null,null,null,null,null,null,null,null,null,null,null,null,null,null,null,null,null,null,null,null,null,null,null,null,null,null,null,null,null,null,0,null,null,null,null,null,null,null,null,null,null,null,null,null,null,null,null,null,null,null,null,null,null,null,null,null,null,null,null,null,null,null,0,null,null,null,null,null,null,null,null,null,null,null,null,null,null,null,null,null,null,null,null,null,null,null,null,null,null,null,null,null,null,null,0,null,null,null,null,null,null,null,null,null,null,null,null,null,null,null,null,null,null,null,null,null,null,null,null,null,null,null,null,null,null,null,0]
[115,"Galal115","2D",2023583,"ح",null,null,null,null,null,null,null,null,"ح",null,null,null,null,null,null,"ح",null,null,null,null,null,null,null,null,null,null,null,null,"ح",null,0,null,null,"ح",null,null,null,null,null,"ح",null,null,null,null,null,null,null,"ح",null,null,null,null,null,null,null,null,null,null,null,null,null,null,0,null,null,null,null,null,null,null,null,null,null,null,null,null,null,null,null,null,null,null,null,null,null,null,null,null,null,null,null,null,null,null,0,null,null,null,null,null,null,null,null,null,null,null,null,null,null,null,null,null,null,null,null,null,null,null,null,null,null,null,null,null,null,null,0,null,null,null,null,null,null,null,null,null,null,null,null,null,null,null,null,null,null,null,null,null,null,null,null,null,null,null,null,null,null,null,0,null,null,null,null,null,null,null,null,null,null,null,null,null,null,null,null,null,null,null,null,null,null,null,null,null,null,null,null,null,null,null,0,null,null,null,null,null,null,null,null,null,null,null,null,null,null,null,null,null,null,null,null,null,null,null,null,null,null,null,null,null,null,null,0,null,null,null,null,null,null,null,null,null,null,null,null,null,null,null,null,null,null,null,null,null,null,null,null,null,null,null,null,null,null,null,0,null,null,null,null,null,null,null,null,null,null,null,null,null,null,null,null,null,null,null,null,null,null,null,null,null,null,null,null,null,null,null,0]
[116,"Galal116","2D",2023550,"ح",null,null,null,null,null,null,null,null,"ح",null,null,null,null,null,null,"ح",null,null,null,null,null,null,null,null,null,null,null,null,"ح",null,0,null,null,"ح",null,null,null,null,null,"ح",null,null,null,null,null,null,null,"ح",null,null,null,null,null,null,null,null,null,null,null,null,null,null,0,null,null,null,null,null,null,null,null,null,null,null,null,null,null,null,null,null,null,null,null,null,null,null,null,null,null,null,null,null,null,null,0,null,null,null,null,null,null,null,null,null,null,null,null,null,null,null,null,null,null,null,null,null,null,null,null,null,null,null,null,null,null,null,0,null,null,null,null,null,null,null,null,null,null,null,null,null,null,null,null,null,null,null,null,null,null,null,null,null,null,null,null,null,null,null,0,null,null,null,null,null,null,null,null,null,null,null,null,null,null,null,null,null,null,null,null,null,null,null,null,null,null,null,null,null,null,null,0,null,null,null,null,null,null,null,null,null,null,null,null,null,null,null,null,null,null,null,null,null,null,null,null,null,null,null,null,null,null,null,0,null,null,null,null,null,null,null,null,null,null,null,null,null,null,null,null,null,null,null,null,null,null,null,null,null,null,null,null,null,null,null,0,null,null,null,null,null,null,null,null,null,null,null,null,null,null,null,null,null,null,null,null,null,null,null,null,null,null,null,null,null,null,null,0]
[117,"Galal117","2C",2023584,"ح",null,null,null,null,null,null,null,null,"ح",null,null,null,null,null,null,"ح",null,null,null,null,null,null,null,null,null,null,null,null,"ح",null,0,null,null,"ح",null,null,null,null,null,"ح",null,null,null,null,null,null,null,"ح",null,null,null,null,null,null,null,null,null,null,null,null,null,null,0,null,null,null,null,null,null,null,null,null,null,null,null,null,null,null,null,null,null,null,null,null,null,null,null,null,null,null,null,null,null,null,0,null,null,null,null,null,null,null,null,null,null,null,null,null,null,null,null,null,null,null,null,null,null,null,null,null,null,null,null,null,null,null,0,null,null,null,null,null,null,null,null,null,null,null,null,null,null,null,null,null,null,null,null,null,null,null,null,null,null,null,null,null,null,null,0,null,null,null,null,null,null,null,null,null,null,null,null,null,null,null,null,null,null,null,null,null,null,null,null,null,null,null,null,null,null,null,0,null,null,null,null,null,null,null,null,null,null,null,null,null,null,null,null,null,null,null,null,null,null,null,null,null,null,null,null,null,null,null,0,null,null,null,null,null,null,null,null,null,null,null,null,null,null,null,null,null,null,null,null,null,null,null,null,null,null,null,null,null,null,null,0,null,null,null,null,null,null,null,null,null,null,null,null,null,null,null,null,null,null,null,null,null,null,null,null,null,null,null,null,null,null,null,0]
[118,"Galal118","2D",2023551,"ح",null,null,null,null,null,null,null,null,"ح",null,null,null,null,null,null,"ح",null,null,null,null,null,null,null,null,null,null,null,null,"ح",null,0,null,null,"ح",null,null,null,null,null,"ح",null,null,null,null,null,null,null,"ح",null,null,null,null,null,null,null,null,null,null,null,null,null,null,0,null,null,null,null,null,null,null,null,null,null,null,null,null,null,null,null,null,null,null,null,null,null,null,null,null,null,null,null,null,null,null,0,null,null,null,null,null,null,null,null,null,null,null,null,null,null,null,null,null,null,null,null,null,null,null,null,null,null,null,null,null,null,null,0,null,null,null,null,null,null,null,null,null,null,null,null,null,null,null,null,null,null,null,null,null,null,null,null,null,null,null,null,null,null,null,0,null,null,null,null,null,null,null,null,null,null,null,null,null,null,null,null,null,null,null,null,null,null,null,null,null,null,null,null,null,null,null,0,null,null,null,null,null,null,null,null,null,null,null,null,null,null,null,null,null,null,null,null,null,null,null,null,null,null,null,null,null,null,null,0,null,null,null,null,null,null,null,null,null,null,null,null,null,null,null,null,null,null,null,null,null,null,null,null,null,null,null,null,null,null,null,0,null,null,null,null,null,null,null,null,null,null,null,null,null,null,null,null,null,null,null,null,null,null,null,null,null,null,null,null,null,null,null,0]
[119,"Galal119","2C",2023552,"ح",null,null,null,null,null,null,null,null,"ح",null,null,null,null,null,null,"ح",null,null,null,null,null,null,null,null,null,null,null,null,"ح",null,0,null,null,"ح",null,null,null,null,null,"ح",null,null,null,null,null,null,null,"ح",null,null,null,null,null,null,null,null,null,null,null,null,null,null,0,null,null,null,null,null,null,null,null,null,null,null,null,null,null,null,null,null,null,null,null,null,null,null,null,null,null,null,null,null,null,null,0,null,null,null,null,null,null,null,null,null,null,null,null,null,null,null,null,null,null,null,null,null,null,null,null,null,null,null,null,null,null,null,0,null,null,null,null,null,null,null,null,null,null,null,null,null,null,null,null,null,null,null,null,null,null,null,null,null,null,null,null,null,null,null,0,null,null,null,null,null,null,null,null,null,null,null,null,null,null,null,null,null,null,null,null,null,null,null,null,null,null,null,null,null,null,null,0,null,null,null,null,null,null,null,null,null,null,null,null,null,null,null,null,null,null,null,null,null,null,null,null,null,null,null,null,null,null,null,0,null,null,null,null,null,null,null,null,null,null,null,null,null,null,null,null,null,null,null,null,null,null,null,null,null,null,null,null,null,null,null,0,null,null,null,null,null,null,null,null,null,null,null,null,null,null,null,null,null,null,null,null,null,null,null,null,null,null,null,null,null,null,null,0]
[120,"Galal120","2B",2023553,"ح",null,null,null,null,null,null,null,null,"ح",null,null,null,null,null,null,"ح",null,null,null,null,null,null,null,null,null,null,null,null,"ح",null,0,null,null,"ح",null,null,null,null,null,"ح",null,null,null,null,null,null,null,"ح",null,null,null,null,null,null,null,null,null,null,null,null,null,null,0,null,null,null,null,null,null,null,null,null,null,null,null,null,null,null,null,null,null,null,null,null,null,null,null,null,null,null,null,null,null,null,0,null,null,null,null,null,null,null,null,null,null,null,null,null,null,null,null,null,null,null,null,null,null,null,null,null,null,null,null,null,null,null,0,null,null,null,null,null,null,null,null,null,null,null,null,null,null,null,null,null,null,null,null,null,null,null,null,null,null,null,null,null,null,null,0,null,null,null,null,null,null,null,null,null,null,null,null,null,null,null,null,null,null,null,null,null,null,null,null,null,null,null,null,null,null,null,0,null,null,null,null,null,null,null,null,null,null,null,null,null,null,null,null,null,null,null,null,null,null,null,null,null,null,null,null,null,null,null,0,null,null,null,null,null,null,null,null,null,null,null,null,null,null,null,null,null,null,null,null,null,null,null,null,null,null,null,null,null,null,null,0,null,null,null,null,null,null,null,null,null,null,null,null,null,null,null,null,null,null,null,null,null,null,null,null,null,null,null,null,null,null,null,0]
[121,"Galal121","2D",2023554,"ح",null,null,null,null,null,null,null,null,"ح",null,null,null,null,null,null,"ح",null,null,null,null,null,null,null,null,null,null,null,null,"ح",null,0,null,null,"ح",null,null,null,null,null,"ح",null,null,null,null,null,null,null,"ح",null,null,null,null,null,null,null,null,null,null,null,null,null,null,0,null,null,null,null,null,null,null,null,null,null,null,null,null,null,null,null,null,null,null,null,null,null,null,null,null,null,null,null,null,null,null,0,null,null,null,null,null,null,null,null,null,null,null,null,null,null,null,null,null,null,null,null,null,null,null,null,null,null,null,null,null,null,null,0,null,null,null,null,null,null,null,null,null,null,null,null,null,null,null,null,null,null,null,null,null,null,null,null,null,null,null,null,null,null,null,0,null,null,null,null,null,null,null,null,null,null,null,null,null,null,null,null,null,null,null,null,null,null,null,null,null,null,null,null,null,null,null,0,null,null,null,null,null,null,null,null,null,null,null,null,null,null,null,null,null,null,null,null,null,null,null,null,null,null,null,null,null,null,null,0,null,null,null,null,null,null,null,null,null,null,null,null,null,null,null,null,null,null,null,null,null,null,null,null,null,null,null,null,null,null,null,0,null,null,null,null,null,null,null,null,null,null,null,null,null,null,null,null,null,null,null,null,null,null,null,null,null,null,null,null,null,null,null,0]
[122,"Galal122","2A",2023585,"ح",null,null,null,null,null,null,null,null,"ح",null,null,null,null,null,null,"ح",null,null,null,null,null,null,null,null,null,null,null,null,"ح",null,0,null,null,"ح",null,null,null,null,null,"ح",null,null,null,null,null,null,null,"ح",null,null,null,null,null,null,null,null,null,null,null,null,null,null,0,null,null,null,null,null,null,null,null,null,null,null,null,null,null,null,null,null,null,null,null,null,null,null,null,null,null,null,null,null,null,null,0,null,null,null,null,null,null,null,null,null,null,null,null,null,null,null,null,null,null,null,null,null,null,null,null,null,null,null,null,null,null,null,0,null,null,null,null,null,null,null,null,null,null,null,null,null,null,null,null,null,null,null,null,null,null,null,null,null,null,null,null,null,null,null,0,null,null,null,null,null,null,null,null,null,null,null,null,null,null,null,null,null,null,null,null,null,null,null,null,null,null,null,null,null,null,null,0,null,null,null,null,null,null,null,null,null,null,null,null,null,null,null,null,null,null,null,null,null,null,null,null,null,null,null,null,null,null,null,0,null,null,null,null,null,null,null,null,null,null,null,null,null,null,null,null,null,null,null,null,null,null,null,null,null,null,null,null,null,null,null,0,null,null,null,null,null,null,null,null,null,null,null,null,null,null,null,null,null,null,null,null,null,null,null,null,null,null,null,null,null,null,null,0]
[123,"Galal123","2A",2023555,"ح",null,null,null,null,null,null,null,null,"ح",null,null,null,null,null,null,"ح",null,null,null,null,null,null,null,null,null,null,null,null,"ح",null,0,null,null,"ح",null,null,null,null,null,"ح",null,null,null,null,null,null,null,"ح",null,null,null,null,null,null,null,null,null,null,null,null,null,null,0,null,null,null,null,null,null,null,null,null,null,null,null,null,null,null,null,null,null,null,null,null,null,null,null,null,null,null,null,null,null,null,0,null,null,null,null,null,null,null,null,null,null,null,null,null,null,null,null,null,null,null,null,null,null,null,null,null,null,null,null,null,null,null,0,null,null,null,null,null,null,null,null,null,null,null,null,null,null,null,null,null,null,null,null,null,null,null,null,null,null,null,null,null,null,null,0,null,null,null,null,null,null,null,null,null,null,null,null,null,null,null,null,null,null,null,null,null,null,null,null,null,null,null,null,null,null,null,0,null,null,null,null,null,null,null,null,null,null,null,null,null,null,null,null,null,null,null,null,null,null,null,null,null,null,null,null,null,null,null,0,null,null,null,null,null,null,null,null,null,null,null,null,null,null,null,null,null,null,null,null,null,null,null,null,null,null,null,null,null,null,null,0,null,null,null,null,null,null,null,null,null,null,null,null,null,null,null,null,null,null,null,null,null,null,null,null,null,null,null,null,null,null,null,0]
[124,"Galal124","2B",2023556,"ح",null,null,null,null,null,null,null,null,"ح",null,null,null,null,null,null,"ح",null,null,null,null,null,null,null,null,null,null,null,null,"ح",null,0,null,null,"ح",null,null,null,null,null,"ح",null,null,null,null,null,null,null,"ح",null,null,null,null,null,null,null,null,null,null,null,null,null,null,0,null,null,null,null,null,null,null,null,null,null,null,null,null,null,null,null,null,null,null,null,null,null,null,null,null,null,null,null,null,null,null,0,null,null,null,null,null,null,null,null,null,null,null,null,null,null,null,null,null,null,null,null,null,null,null,null,null,null,null,null,null,null,null,0,null,null,null,null,null,null,null,null,null,null,null,null,null,null,null,null,null,null,null,null,null,null,null,null,null,null,null,null,null,null,null,0,null,null,null,null,null,null,null,null,null,null,null,null,null,null,null,null,null,null,null,null,null,null,null,null,null,null,null,null,null,null,null,0,null,null,null,null,null,null,null,null,null,null,null,null,null,null,null,null,null,null,null,null,null,null,null,null,null,null,null,null,null,null,null,0,null,null,null,null,null,null,null,null,null,null,null,null,null,null,null,null,null,null,null,null,null,null,null,null,null,null,null,null,null,null,null,0,null,null,null,null,null,null,null,null,null,null,null,null,null,null,null,null,null,null,null,null,null,null,null,null,null,null,null,null,null,null,null,0]
[125,"Galal125","2A",2023586,"ح",null,null,null,null,null,null,null,null,"ح",null,null,null,null,null,null,"ح",null,null,null,null,null,null,null,null,null,null,null,null,"ح",null,0,null,null,"ح",null,null,null,null,null,"ح",null,null,null,null,null,null,null,"ح",null,null,null,null,null,null,null,null,null,null,null,null,null,null,0,null,null,null,null,null,null,null,null,null,null,null,null,null,null,null,null,null,null,null,null,null,null,null,null,null,null,null,null,null,null,null,0,null,null,null,null,null,null,null,null,null,null,null,null,null,null,null,null,null,null,null,null,null,null,null,null,null,null,null,null,null,null,null,0,null,null,null,null,null,null,null,null,null,null,null,null,null,null,null,null,null,null,null,null,null,null,null,null,null,null,null,null,null,null,null,0,null,null,null,null,null,null,null,null,null,null,null,null,null,null,null,null,null,null,null,null,null,null,null,null,null,null,null,null,null,null,null,0,null,null,null,null,null,null,null,null,null,null,null,null,null,null,null,null,null,null,null,null,null,null,null,null,null,null,null,null,null,null,null,0,null,null,null,null,null,null,null,null,null,null,null,null,null,null,null,null,null,null,null,null,null,null,null,null,null,null,null,null,null,null,null,0,null,null,null,null,null,null,null,null,null,null,null,null,null,null,null,null,null,null,null,null,null,null,null,null,null,null,null,null,null,null,null,0]
[126,"Galal126","2D",2023557,"ح",null,null,null,null,null,null,null,null,"ح",null,null,null,null,null,null,"ح",null,null,null,null,null,null,null,null,null,null,null,null,"ح",null,0,null,null,"ح",null,null,null,null,null,"ح",null,null,null,null,null,null,null,"ح",null,null,null,null,null,null,null,null,null,null,null,null,null,null,0,null,null,null,null,null,null,null,null,null,null,null,null,null,null,null,null,null,null,null,null,null,null,null,null,null,null,null,null,null,null,null,0,null,null,null,null,null,null,null,null,null,null,null,null,null,null,null,null,null,null,null,null,null,null,null,null,null,null,null,null,null,null,null,0,null,null,null,null,null,null,null,null,null,null,null,null,null,null,null,null,null,null,null,null,null,null,null,null,null,null,null,null,null,null,null,0,null,null,null,null,null,null,null,null,null,null,null,null,null,null,null,null,null,null,null,null,null,null,null,null,null,null,null,null,null,null,null,0,null,null,null,null,null,null,null,null,null,null,null,null,null,null,null,null,null,null,null,null,null,null,null,null,null,null,null,null,null,null,null,0,null,null,null,null,null,null,null,null,null,null,null,null,null,null,null,null,null,null,null,null,null,null,null,null,null,null,null,null,null,null,null,0,null,null,null,null,null,null,null,null,null,null,null,null,null,null,null,null,null,null,null,null,null,null,null,null,null,null,null,null,null,null,null,0]
[127,"Galal127","2A",2023558,"ح",null,null,null,null,null,null,null,null,"ح",null,null,null,null,null,null,"ح",null,null,null,null,null,null,null,null,null,null,null,null,"ح",null,0,null,null,"ح",null,null,null,null,null,"ح",null,null,null,null,null,null,null,"ح",null,null,null,null,null,null,null,null,null,null,null,null,null,null,0,null,null,null,null,null,null,null,null,null,null,null,null,null,null,null,null,null,null,null,null,null,null,null,null,null,null,null,null,null,null,null,0,null,null,null,null,null,null,null,null,null,null,null,null,null,null,null,null,null,null,null,null,null,null,null,null,null,null,null,null,null,null,null,0,null,null,null,null,null,null,null,null,null,null,null,null,null,null,null,null,null,null,null,null,null,null,null,null,null,null,null,null,null,null,null,0,null,null,null,null,null,null,null,null,null,null,null,null,null,null,null,null,null,null,null,null,null,null,null,null,null,null,null,null,null,null,null,0,null,null,null,null,null,null,null,null,null,null,null,null,null,null,null,null,null,null,null,null,null,null,null,null,null,null,null,null,null,null,null,0,null,null,null,null,null,null,null,null,null,null,null,null,null,null,null,null,null,null,null,null,null,null,null,null,null,null,null,null,null,null,null,0,null,null,null,null,null,null,null,null,null,null,null,null,null,null,null,null,null,null,null,null,null,null,null,null,null,null,null,null,null,null,null,0]
[128,"Galal128","2C",2023587,"ح",null,null,null,null,null,null,null,null,"ح",null,null,null,null,null,null,"ح",null,null,null,null,null,null,null,null,null,null,null,null,"ح",null,0,null,null,"ح",null,null,null,null,null,"ح",null,null,null,null,null,null,null,"ح",null,null,null,null,null,null,null,null,null,null,null,null,null,null,0,null,null,null,null,null,null,null,null,null,null,null,null,null,null,null,null,null,null,null,null,null,null,null,null,null,null,null,null,null,null,null,0,null,null,null,null,null,null,null,null,null,null,null,null,null,null,null,null,null,null,null,null,null,null,null,null,null,null,null,null,null,null,null,0,null,null,null,null,null,null,null,null,null,null,null,null,null,null,null,null,null,null,null,null,null,null,null,null,null,null,null,null,null,null,null,0,null,null,null,null,null,null,null,null,null,null,null,null,null,null,null,null,null,null,null,null,null,null,null,null,null,null,null,null,null,null,null,0,null,null,null,null,null,null,null,null,null,null,null,null,null,null,null,null,null,null,null,null,null,null,null,null,null,null,null,null,null,null,null,0,null,null,null,null,null,null,null,null,null,null,null,null,null,null,null,null,null,null,null,null,null,null,null,null,null,null,null,null,null,null,null,0,null,null,null,null,null,null,null,null,null,null,null,null,null,null,null,null,null,null,null,null,null,null,null,null,null,null,null,null,null,null,null,0]
[129,"Galal129","2D",2023588,"ح",null,null,null,null,null,null,null,null,"ح",null,null,null,null,null,null,"ح",null,null,null,null,null,null,null,null,null,null,null,null,"ح",null,{"$f":"COUNTIF(E137:AI137,\"غ\")","v":0},null,null,"ح",null,null,null,null,null,"ح",null,null,null,null,null,null,null,"ح",null,null,null,null,null,null,null,null,null,null,null,null,null,null,{"$f":"COUNTIF(AK137:BO137,\"غ\")","v":0},null,null,null,null,null,null,null,null,null,null,null,null,null,null,null,null,null,null,null,null,null,null,null,null,null,null,null,null,null,null,null,{"$f":"COUNTIF(BQ137:CU137,\"غ\")","v":0},null,null,null,null,null,null,null,null,null,null,null,null,null,null,null,null,null,null,null,null,null,null,null,null,null,null,null,null,null,null,null,{"$f":"COUNTIF(CW137:EA137,\"غ\")","v":0},null,null,null,null,null,null,null,null,null,null,null,null,null,null,null,null,null,null,null,null,null,null,null,null,null,null,null,null,null,null,null,{"$f":"COUNTIF(EC137:FG137,\"غ\")","v":0},null,null,null,null,null,null,null,null,null,null,null,null,null,null,null,null,null,null,null,null,null,null,null,null,null,null,null,null,null,null,null,{"$f":"COUNTIF(FI137:GM137,\"غ\")","v":0},null,null,null,null,null,null,null,null,null,null,null,null,null,null,null,null,null,null,null,null,null,null,null,null,null,null,null,null,null,null,null,{"$f":"COUNTIF(GO137:HS137,\"غ\")","v":0},null,null,null,null,null,null,null,null,null,null,null,null,null,null,null,null,null,null,null,null,null,null,null,null,null,null,null,null,null,null,null,{"$f":"COUNTIF(HU137:IY137,\"غ\")","v":0},null,null,null,null,null,null,null,null,null,null,null,null,null,null,null,null,null,null,null,null,null,null,null,null,null,null,null,null,null,null,null,{"$f":"COUNTIF(JA137:KE137,\"غ\")","v":0}]
[130,"Galal130","2D",2023559,"ح",null,null,null,null,null,null,null,null,"ح",null,null,null,null,null,null,"ح",null,null,null,null,null,null,null,null,null,null,null,null,"ح",null,0,null,null,"ح",null,null,null,null,null,"ح",null,null,null,null,null,null,null,"ح",null,null,null,null,null,null,null,null,null,null,null,null,null,null,0,null,null,null,null,null,null,null,null,null,null,null,null,null,null,null,null,null,null,null,null,null,null,null,null,null,null,null,null,null,null,null,0,null,null,null,null,null,null,null,null,null,null,null,null,null,null,null,null,null,null,null,null,null,null,null,null,null,null,null,null,null,null,null,0,null,null,null,null,null,null,null,null,null,null,null,null,null,null,null,null,null,null,null,null,null,null,null,null,null,null,null,null,null,null,null,0,null,null,null,null,null,null,null,null,null,null,null,null,null,null,null,null,null,null,null,null,null,null,null,null,null,null,null,null,null,null,null,0,null,null,null,null,null,null,null,null,null,null,null,null,null,null,null,null,null,null,null,null,null,null,null,null,null,null,null,null,null,null,null,0,null,null,null,null,null,null,null,null,null,null,null,null,null,null,null,null,null,null,null,null,null,null,null,null,null,null,null,null,null,null,null,0,null,null,null,null,null,null,null,null,null,null,null,null,null,null,null,null,null,null,null,null,null,null,null,null,null,null,null,null,null,null,null,0]
[131,"Galal131","2B",2023560,"ح",null,null,null,null,null,null,null,null,"ح",null,null,null,null,null,null,"ح",null,null,null,null,null,null,null,null,null,null,null,null,"ح",null,0,null,null,"ح",null,null,null,null,null,"ح",null,null,null,null,null,null,null,"ح",null,null,null,null,null,null,null,null,null,null,null,null,null,null,0,null,null,null,null,null,null,null,null,null,null,null,null,null,null,null,null,null,null,null,null,null,null,null,null,null,null,null,null,null,null,null,0,null,null,null,null,null,null,null,null,null,null,null,null,null,null,null,null,null,null,null,null,null,null,null,null,null,null,null,null,null,null,null,0,null,null,null,null,null,null,null,null,null,null,null,null,null,null,null,null,null,null,null,null,null,null,null,null,null,null,null,null,null,null,null,0,null,null,null,null,null,null,null,null,null,null,null,null,null,null,null,null,null,null,null,null,null,null,null,null,null,null,null,null,null,null,null,0,null,null,null,null,null,null,null,null,null,null,null,null,null,null,null,null,null,null,null,null,null,null,null,null,null,null,null,null,null,null,null,0,null,null,null,null,null,null,null,null,null,null,null,null,null,null,null,null,null,null,null,null,null,null,null,null,null,null,null,null,null,null,null,0,null,null,null,null,null,null,null,null,null,null,null,null,null,null,null,null,null,null,null,null,null,null,null,null,null,null,null,null,null,null,null,0]
[132,"Galal132","2A",2023561,"ح",null,null,null,null,null,null,null,null,"ح",null,null,null,null,null,null,"ح",null,null,null,null,null,null,null,null,null,null,null,null,"ح",null,0,null,null,"ح",null,null,null,null,null,"ح",null,null,null,null,null,null,null,"ح",null,null,null,null,null,null,null,null,null,null,null,null,null,null,0,null,null,null,null,null,null,null,null,null,null,null,null,null,null,null,null,null,null,null,null,null,null,null,null,null,null,null,null,null,null,null,0,null,null,null,null,null,null,null,null,null,null,null,null,null,null,null,null,null,null,null,null,null,null,null,null,null,null,null,null,null,null,null,0,null,null,null,null,null,null,null,null,null,null,null,null,null,null,null,null,null,null,null,null,null,null,null,null,null,null,null,null,null,null,null,0,null,null,null,null,null,null,null,null,null,null,null,null,null,null,null,null,null,null,null,null,null,null,null,null,null,null,null,null,null,null,null,0,null,null,null,null,null,null,null,null,null,null,null,null,null,null,null,null,null,null,null,null,null,null,null,null,null,null,null,null,null,null,null,0,null,null,null,null,null,null,null,null,null,null,null,null,null,null,null,null,null,null,null,null,null,null,null,null,null,null,null,null,null,null,null,0,null,null,null,null,null,null,null,null,null,null,null,null,null,null,null,null,null,null,null,null,null,null,null,null,null,null,null,null,null,null,null,0]
[133,"Galal133","2C",2023562,"ح",null,null,null,null,null,null,null,null,"ح",null,null,null,null,null,null,"ح",null,null,null,null,null,null,null,null,null,null,null,null,"ح",null,0,null,null,"ح",null,null,null,null,null,"ح",null,null,null,null,null,null,null,"ح",null,null,null,null,null,null,null,null,null,null,null,null,null,null,0,null,null,null,null,null,null,null,null,null,null,null,null,null,null,null,null,null,null,null,null,null,null,null,null,null,null,null,null,null,null,null,0,null,null,null,null,null,null,null,null,null,null,null,null,null,null,null,null,null,null,null,null,null,null,null,null,null,null,null,null,null,null,null,0,null,null,null,null,null,null,null,null,null,null,null,null,null,null,null,null,null,null,null,null,null,null,null,null,null,null,null,null,null,null,null,0,null,null,null,null,null,null,null,null,null,null,null,null,null,null,null,null,null,null,null,null,null,null,null,null,null,null,null,null,null,null,null,0,null,null,null,null,null,null,null,null,null,null,null,null,null,null,null,null,null,null,null,null,null,null,null,null,null,null,null,null,null,null,null,0,null,null,null,null,null,null,null,null,null,null,null,null,null,null,null,null,null,null,null,null,null,null,null,null,null,null,null,null,null,null,null,0,null,null,null,null,null,null,null,null,null,null,null,null,null,null,null,null,null,null,null,null,null,null,null,null,null,null,null,null,null,null,null,0]
[134,"Galal134","2D",2023589,"ح",null,null,null,null,null,null,null,null,"ح",null,null,null,null,null,null,"ح",null,null,null,null,null,null,null,null,null,null,null,null,"ح",null,0,null,null,"ح",null,null,null,null,null,"ح",null,null,null,null,null,null,null,"ح",null,null,null,null,null,null,null,null,null,null,null,null,null,null,0,null,null,null,null,null,null,null,null,null,null,null,null,null,null,null,null,null,null,null,null,null,null,null,null,null,null,null,null,null,null,null,0,null,null,null,null,null,null,null,null,null,null,null,null,null,null,null,null,null,null,null,null,null,null,null,null,null,null,null,null,null,null,null,0,null,null,null,null,null,null,null,null,null,null,null,null,null,null,null,null,null,null,null,null,null,null,null,null,null,null,null,null,null,null,null,0,null,null,null,null,null,null,null,null,null,null,null,null,null,null,null,null,null,null,null,null,null,null,null,null,null,null,null,null,null,null,null,0,null,null,null,null,null,null,null,null,null,null,null,null,null,null,null,null,null,null,null,null,null,null,null,null,null,null,null,null,null,null,null,0,null,null,null,null,null,null,null,null,null,null,null,null,null,null,null,null,null,null,null,null,null,null,null,null,null,null,null,null,null,null,null,0,null,null,null,null,null,null,null,null,null,null,null,null,null,null,null,null,null,null,null,null,null,null,null,null,null,null,null,null,null,null,null,0]
[135,"Galal135","3A",2022501,"ح",null,null,null,null,null,null,null,null,"ح",null,null,null,null,null,null,"ح",null,null,null,null,null,null,null,null,null,null,null,null,"ح",null,0,null,null,"ح",null,null,null,null,null,"ح",null,null,null,null,null,null,null,"ح",null,null,null,null,null,null,null,null,null,null,null,null,null,null,0,null,null,null,null,null,null,null,null,null,null,null,null,null,null,null,null,null,null,null,null,null,null,null,null,null,null,null,null,null,null,null,0,null,null,null,null,null,null,null,null,null,null,null,null,null,null,null,null,null,null,null,null,null,null,null,null,null,null,null,null,null,null,null,0,null,null,null,null,null,null,null,null,null,null,null,null,null,null,null,null,null,null,null,null,null,null,null,null,null,null,null,null,null,null,null,0,null,null,null,null,null,null,null,null,null,null,null,null,null,null,null,null,null,null,null,null,null,null,null,null,null,null,null,null,null,null,null,0,null,null,null,null,null,null,null,null,null,null,null,null,null,null,null,null,null,null,null,null,null,null,null,null,null,null,null,null,null,null,null,0,null,null,null,null,null,null,null,null,null,null,null,null,null,null,null,null,null,null,null,null,null,null,null,null,null,null,null,null,null,null,null,0,null,null,null,null,null,null,null,null,null,null,null,null,null,null,null,null,null,null,null,null,null,null,null,null,null,null,null,null,null,null,null,0]
[136,"Galal136","3B",2022502,"ح",null,null,null,null,null,null,null,null,"ح",null,null,null,null,null,null,"ح",null,null,null,null,null,null,null,null,null,null,null,null,"ح",null,0,null,null,"ح",null,null,null,null,null,"ح",null,null,null,null,null,null,null,"ح",null,null,null,null,null,null,null,null,null,null,null,null,null,null,0,null,null,null,null,null,null,null,null,null,null,null,null,null,null,null,null,null,null,null,null,null,null,null,null,null,null,null,null,null,null,null,0,null,null,null,null,null,null,null,null,null,null,null,null,null,null,null,null,null,null,null,null,null,null,null,null,null,null,null,null,null,null,null,0,null,null,null,null,null,null,null,null,null,null,null,null,null,null,null,null,null,null,null,null,null,null,null,null,null,null,null,null,null,null,null,0,null,null,null,null,null,null,null,null,null,null,null,null,null,null,null,null,null,null,null,null,null,null,null,null,null,null,null,null,null,null,null,0,null,null,null,null,null,null,null,null,null,null,null,null,null,null,null,null,null,null,null,null,null,null,null,null,null,null,null,null,null,null,null,0,null,null,null,null,null,null,null,null,null,null,null,null,null,null,null,null,null,null,null,null,null,null,null,null,null,null,null,null,null,null,null,0,null,null,null,null,null,null,null,null,null,null,null,null,null,null,null,null,null,null,null,null,null,null,null,null,null,null,null,null,null,null,null,0]
[137,"Galal137","3A",2022503,"ح",null,null,null,null,null,null,null,null,"ح",null,null,null,null,null,null,"ح",null,null,null,null,null,null,null,null,null,null,null,null,"ح",null,0,null,null,"ح",null,null,null,null,null,"ح",null,null,null,null,null,null,null,"ح",null,null,null,null,null,null,null,null,null,null,null,null,null,null,0,null,null,null,null,null,null,null,null,null,null,null,null,null,null,null,null,null,null,null,null,null,null,null,null,null,null,null,null,null,null,null,0,null,null,null,null,null,null,null,null,null,null,null,null,null,null,null,null,null,null,null,null,null,null,null,null,null,null,null,null,null,null,null,0,null,null,null,null,null,null,null,null,null,null,null,null,null,null,null,null,null,null,null,null,null,null,null,null,null,null,null,null,null,null,null,0,null,null,null,null,null,null,null,null,null,null,null,null,null,null,null,null,null,null,null,null,null,null,null,null,null,null,null,null,null,null,null,0,null,null,null,null,null,null,null,null,null,null,null,null,null,null,null,null,null,null,null,null,null,null,null,null,null,null,null,null,null,null,null,0,null,null,null,null,null,null,null,null,null,null,null,null,null,null,null,null,null,null,null,null,null,null,null,null,null,null,null,null,null,null,null,0,null,null,null,null,null,null,null,null,null,null,null,null,null,null,null,null,null,null,null,null,null,null,null,null,null,null,null,null,null,null,null,0]
[138,"Galal138","3A",2022504,"ح",null,null,null,null,null,null,null,null,"ح",null,null,null,null,null,null,"ح",null,null,null,null,null,null,null,null,null,null,null,null,"ح",null,0,null,null,"ح",null,null,null,null,null,"ح",null,null,null,null,null,null,null,"ح",null,null,null,null,null,null,null,null,null,null,null,null,null,null,0,null,null,null,null,null,null,null,null,null,null,null,null,null,null,null,null,null,null,null,null,null,null,null,null,null,null,null,null,null,null,null,0,null,null,null,null,null,null,null,null,null,null,null,null,null,null,null,null,null,null,null,null,null,null,null,null,null,null,null,null,null,null,null,0,null,null,null,null,null,null,null,null,null,null,null,null,null,null,null,null,null,null,null,null,null,null,null,null,null,null,null,null,null,null,null,0,null,null,null,null,null,null,null,null,null,null,null,null,null,null,null,null,null,null,null,null,null,null,null,null,null,null,null,null,null,null,null,0,null,null,null,null,null,null,null,null,null,null,null,null,null,null,null,null,null,null,null,null,null,null,null,null,null,null,null,null,null,null,null,0,null,null,null,null,null,null,null,null,null,null,null,null,null,null,null,null,null,null,null,null,null,null,null,null,null,null,null,null,null,null,null,0,null,null,null,null,null,null,null,null,null,null,null,null,null,null,null,null,null,null,null,null,null,null,null,null,null,null,null,null,null,null,null,0]
[139,"Galal139","3A",2022505,"ح",null,null,null,null,null,null,null,null,"ح",null,null,null,null,null,null,"ح",null,null,null,null,null,null,null,null,null,null,null,null,"ح",null,0,null,null,"ح",null,null,null,null,null,"ح",null,null,null,null,null,null,null,"ح",null,null,null,null,null,null,null,null,null,null,null,null,null,null,0,null,null,null,null,null,null,null,null,null,null,null,null,null,null,null,null,null,null,null,null,null,null,null,null,null,null,null,null,null,null,null,0,null,null,null,null,null,null,null,null,null,null,null,null,null,null,null,null,null,null,null,null,null,null,null,null,null,null,null,null,null,null,null,0,null,null,null,null,null,null,null,null,null,null,null,null,null,null,null,null,null,null,null,null,null,null,null,null,null,null,null,null,null,null,null,0,null,null,null,null,null,null,null,null,null,null,null,null,null,null,null,null,null,null,null,null,null,null,null,null,null,null,null,null,null,null,null,0,null,null,null,null,null,null,null,null,null,null,null,null,null,null,null,null,null,null,null,null,null,null,null,null,null,null,null,null,null,null,null,0,null,null,null,null,null,null,null,null,null,null,null,null,null,null,null,null,null,null,null,null,null,null,null,null,null,null,null,null,null,null,null,0,null,null,null,null,null,null,null,null,null,null,null,null,null,null,null,null,null,null,null,null,null,null,null,null,null,null,null,null,null,null,null,0]
[140,"Galal140","3B",2022506,"ح",null,null,null,null,null,null,null,null,"ح",null,null,null,null,null,null,"ح",null,null,null,null,null,null,null,null,null,null,null,null,"ح",null,0,null,null,"ح",null,null,null,null,null,"ح",null,null,null,null,null,null,null,"ح",null,null,null,null,null,null,null,null,null,null,null,null,null,null,0,null,null,null,null,null,null,null,null,null,null,null,null,null,null,null,null,null,null,null,null,null,null,null,null,null,null,null,null,null,null,null,0,null,null,null,null,null,null,null,null,null,null,null,null,null,null,null,null,null,null,null,null,null,null,null,null,null,null,null,null,null,null,null,0,null,null,null,null,null,null,null,null,null,null,null,null,null,null,null,null,null,null,null,null,null,null,null,null,null,null,null,null,null,null,null,0,null,null,null,null,null,null,null,null,null,null,null,null,null,null,null,null,null,null,null,null,null,null,null,null,null,null,null,null,null,null,null,0,null,null,null,null,null,null,null,null,null,null,null,null,null,null,null,null,null,null,null,null,null,null,null,null,null,null,null,null,null,null,null,0,null,null,null,null,null,null,null,null,null,null,null,null,null,null,null,null,null,null,null,null,null,null,null,null,null,null,null,null,null,null,null,0,null,null,null,null,null,null,null,null,null,null,null,null,null,null,null,null,null,null,null,null,null,null,null,null,null,null,null,null,null,null,null,0]
[141,"Galal141","3A",2022507,"ح",null,null,null,null,null,null,null,null,"ح",null,null,null,null,null,null,"ح",null,null,null,null,null,null,null,null,null,null,null,null,"ح",null,0,null,null,"ح",null,null,null,null,null,"ح",null,null,null,null,null,null,null,"ح",null,null,null,null,null,null,null,null,null,null,null,null,null,null,0,null,null,null,null,null,null,null,null,null,null,null,null,null,null,null,null,null,null,null,null,null,null,null,null,null,null,null,null,null,null,null,0,null,null,null,null,null,null,null,null,null,null,null,null,null,null,null,null,null,null,null,null,null,null,null,null,null,null,null,null,null,null,null,0,null,null,null,null,null,null,null,null,null,null,null,null,null,null,null,null,null,null,null,null,null,null,null,null,null,null,null,null,null,null,null,0,null,null,null,null,null,null,null,null,null,null,null,null,null,null,null,null,null,null,null,null,null,null,null,null,null,null,null,null,null,null,null,0,null,null,null,null,null,null,null,null,null,null,null,null,null,null,null,null,null,null,null,null,null,null,null,null,null,null,null,null,null,null,null,0,null,null,null,null,null,null,null,null,null,null,null,null,null,null,null,null,null,null,null,null,null,null,null,null,null,null,null,null,null,null,null,0,null,null,null,null,null,null,null,null,null,null,null,null,null,null,null,null,null,null,null,null,null,null,null,null,null,null,null,null,null,null,null,0]
[142,"Galal142","3A",2022508,"ح",null,null,null,null,null,null,null,null,"ح",null,null,null,null,null,null,"ح",null,null,null,null,null,null,null,null,null,null,null,null,"ح",null,0,null,null,"ح",null,null,null,null,null,"ح",null,null,null,null,null,null,null,"ح",null,null,null,null,null,null,null,null,null,null,null,null,null,null,0,null,null,null,null,null,null,null,null,null,null,null,null,null,null,null,null,null,null,null,null,null,null,null,null,null,null,null,null,null,null,null,0,null,null,null,null,null,null,null,null,null,null,null,null,null,null,null,null,null,null,null,null,null,null,null,null,null,null,null,null,null,null,null,0,null,null,null,null,null,null,null,null,null,null,null,null,null,null,null,null,null,null,null,null,null,null,null,null,null,null,null,null,null,null,null,0,null,null,null,null,null,null,null,null,null,null,null,null,null,null,null,null,null,null,null,null,null,null,null,null,null,null,null,null,null,null,null,0,null,null,null,null,null,null,null,null,null,null,null,null,null,null,null,null,null,null,null,null,null,null,null,null,null,null,null,null,null,null,null,0,null,null,null,null,null,null,null,null,null,null,null,null,null,null,null,null,null,null,null,null,null,null,null,null,null,null,null,null,null,null,null,0,null,null,null,null,null,null,null,null,null,null,null,null,null,null,null,null,null,null,null,null,null,null,null,null,null,null,null,null,null,null,null,0]
[143,"Galal143","3B",2022509,"ح",null,null,null,null,null,null,null,null,"ح",null,null,null,null,null,null,"ح",null,null,null,null,null,null,null,null,null,null,null,null,"ح",null,0,null,null,"ح",null,null,null,null,null,"ح",null,null,null,null,null,null,null,"ح",null,null,null,null,null,null,null,null,null,null,null,null,null,null,0,null,null,null,null,null,null,null,null,null,null,null,null,null,null,null,null,null,null,null,null,null,null,null,null,null,null,null,null,null,null,null,0,null,null,null,null,null,null,null,null,null,null,null,null,null,null,null,null,null,null,null,null,null,null,null,null,null,null,null,null,null,null,null,0,null,null,null,null,null,null,null,null,null,null,null,null,null,null,null,null,null,null,null,null,null,null,null,null,null,null,null,null,null,null,null,0,null,null,null,null,null,null,null,null,null,null,null,null,null,null,null,null,null,null,null,null,null,null,null,null,null,null,null,null,null,null,null,0,null,null,null,null,null,null,null,null,null,null,null,null,null,null,null,null,null,null,null,null,null,null,null,null,null,null,null,null,null,null,null,0,null,null,null,null,null,null,null,null,null,null,null,null,null,null,null,null,null,null,null,null,null,null,null,null,null,null,null,null,null,null,null,0,null,null,null,null,null,null,null,null,null,null,null,null,null,null,null,null,null,null,null,null,null,null,null,null,null,null,null,null,null,null,null,0]
[144,"Galal144","3A",2022510,"ح",null,null,null,null,null,null,null,null,"ح",null,null,null,null,null,null,"ح",null,null,null,null,null,null,null,null,null,null,null,null,"ح",null,0,null,null,"ح",null,null,null,null,null,"ح",null,null,null,null,null,null,null,"ح",null,null,null,null,null,null,null,null,null,null,null,null,null,null,0,null,null,null,null,null,null,null,null,null,null,null,null,null,null,null,null,null,null,null,null,null,null,null,null,null,null,null,null,null,null,null,0,null,null,null,null,null,null,null,null,null,null,null,null,null,null,null,null,null,null,null,null,null,null,null,null,null,null,null,null,null,null,null,0,null,null,null,null,null,null,null,null,null,null,null,null,null,null,null,null,null,null,null,null,null,null,null,null,null,null,null,null,null,null,null,0,null,null,null,null,null,null,null,null,null,null,null,null,null,null,null,null,null,null,null,null,null,null,null,null,null,null,null,null,null,null,null,0,null,null,null,null,null,null,null,null,null,null,null,null,null,null,null,null,null,null,null,null,null,null,null,null,null,null,null,null,null,null,null,0,null,null,null,null,null,null,null,null,null,null,null,null,null,null,null,null,null,null,null,null,null,null,null,null,null,null,null,null,null,null,null,0,null,null,null,null,null,null,null,null,null,null,null,null,null,null,null,null,null,null,null,null,null,null,null,null,null,null,null,null,null,null,null,0]
[145,"Galal145","3B",2022511,"ح",null,null,null,null,null,null,null,null,"ح",null,null,null,null,null,null,"ح",null,null,null,null,null,null,null,null,null,null,null,null,"ح",null,0,null,null,"ح",null,null,null,null,null,"ح",null,null,null,null,null,null,null,"ح",null,null,null,null,null,null,null,null,null,null,null,null,null,null,0,null,null,null,null,null,null,null,null,null,null,null,null,null,null,null,null,null,null,null,null,null,null,null,null,null,null,null,null,null,null,null,0,null,null,null,null,null,null,null,null,null,null,null,null,null,null,null,null,null,null,null,null,null,null,null,null,null,null,null,null,null,null,null,0,null,null,null,null,null,null,null,null,null,null,null,null,null,null,null,null,null,null,null,null,null,null,null,null,null,null,null,null,null,null,null,0,null,null,null,null,null,null,null,null,null,null,null,null,null,null,null,null,null,null,null,null,null,null,null,null,null,null,null,null,null,null,null,0,null,null,null,null,null,null,null,null,null,null,null,null,null,null,null,null,null,null,null,null,null,null,null,null,null,null,null,null,null,null,null,0,null,null,null,null,null,null,null,null,null,null,null,null,null,null,null,null,null,null,null,null,null,null,null,null,null,null,null,null,null,null,null,0,null,null,null,null,null,null,null,null,null,null,null,null,null,null,null,null,null,null,null,null,null,null,null,null,null,null,null,null,null,null,null,0]
[146,"Galal146","3A",2022512,"ح",null,null,null,null,null,null,null,null,"ح",null,null,null,null,null,null,"ح",null,null,null,null,null,null,null,null,null,null,null,null,"ح",null,0,null,null,"ح",null,null,null,null,null,"ح",null,null,null,null,null,null,null,"ح",null,null,null,null,null,null,null,null,null,null,null,null,null,null,0,null,null,null,null,null,null,null,null,null,null,null,null,null,null,null,null,null,null,null,null,null,null,null,null,null,null,null,null,null,null,null,0,null,null,null,null,null,null,null,null,null,null,null,null,null,null,null,null,null,null,null,null,null,null,null,null,null,null,null,null,null,null,null,0,null,null,null,null,null,null,null,null,null,null,null,null,null,null,null,null,null,null,null,null,null,null,null,null,null,null,null,null,null,null,null,0,null,null,null,null,null,null,null,null,null,null,null,null,null,null,null,null,null,null,null,null,null,null,null,null,null,null,null,null,null,null,null,0,null,null,null,null,null,null,null,null,null,null,null,null,null,null,null,null,null,null,null,null,null,null,null,null,null,null,null,null,null,null,null,0,null,null,null,null,null,null,null,null,null,null,null,null,null,null,null,null,null,null,null,null,null,null,null,null,null,null,null,null,null,null,null,0,null,null,null,null,null,null,null,null,null,null,null,null,null,null,null,null,null,null,null,null,null,null,null,null,null,null,null,null,null,null,null,0]
[147,"Galal147","3A",2022513,"ح",null,null,null,null,null,null,null,null,"ح",null,null,null,null,null,null,"ح",null,null,null,null,null,null,null,null,null,null,null,null,"ح",null,0,null,null,"ح",null,null,null,null,null,"ح",null,null,null,null,null,null,null,"ح",null,null,null,null,null,null,null,null,null,null,null,null,null,null,0,null,null,null,null,null,null,null,null,null,null,null,null,null,null,null,null,null,null,null,null,null,null,null,null,null,null,null,null,null,null,null,0,null,null,null,null,null,null,null,null,null,null,null,null,null,null,null,null,null,null,null,null,null,null,null,null,null,null,null,null,null,null,null,0,null,null,null,null,null,null,null,null,null,null,null,null,null,null,null,null,null,null,null,null,null,null,null,null,null,null,null,null,null,null,null,0,null,null,null,null,null,null,null,null,null,null,null,null,null,null,null,null,null,null,null,null,null,null,null,null,null,null,null,null,null,null,null,0,null,null,null,null,null,null,null,null,null,null,null,null,null,null,null,null,null,null,null,null,null,null,null,null,null,null,null,null,null,null,null,0,null,null,null,null,null,null,null,null,null,null,null,null,null,null,null,null,null,null,null,null,null,null,null,null,null,null,null,null,null,null,null,0,null,null,null,null,null,null,null,null,null,null,null,null,null,null,null,null,null,null,null,null,null,null,null,null,null,null,null,null,null,null,null,0]
[148,"Galal148","3A",2022514,"ح",null,null,null,null,null,null,null,null,"ح",null,null,null,null,null,null,"ح",null,null,null,null,null,null,null,null,null,null,null,null,"ح",null,0,null,null,"ح",null,null,null,null,null,"ح",null,null,null,null,null,null,null,"ح",null,null,null,null,null,null,null,null,null,null,null,null,null,null,0,null,null,null,null,null,null,null,null,null,null,null,null,null,null,null,null,null,null,null,null,null,null,null,null,null,null,null,null,null,null,null,0,null,null,null,null,null,null,null,null,null,null,null,null,null,null,null,null,null,null,null,null,null,null,null,null,null,null,null,null,null,null,null,0,null,null,null,null,null,null,null,null,null,null,null,null,null,null,null,null,null,null,null,null,null,null,null,null,null,null,null,null,null,null,null,0,null,null,null,null,null,null,null,null,null,null,null,null,null,null,null,null,null,null,null,null,null,null,null,null,null,null,null,null,null,null,null,0,null,null,null,null,null,null,null,null,null,null,null,null,null,null,null,null,null,null,null,null,null,null,null,null,null,null,null,null,null,null,null,0,null,null,null,null,null,null,null,null,null,null,null,null,null,null,null,null,null,null,null,null,null,null,null,null,null,null,null,null,null,null,null,0,null,null,null,null,null,null,null,null,null,null,null,null,null,null,null,null,null,null,null,null,null,null,null,null,null,null,null,null,null,null,null,0]
[149,"Galal149","3A",2022515,"ح",null,null,null,null,null,null,null,null,"ح",null,null,null,null,null,null,"ح",null,null,null,null,null,null,null,null,null,null,null,null,"ح",null,0,null,null,"ح",null,null,null,null,null,"ح",null,null,null,null,null,null,null,"ح",null,null,null,null,null,null,null,null,null,null,null,null,null,null,0,null,null,null,null,null,null,null,null,null,null,null,null,null,null,null,null,null,null,null,null,null,null,null,null,null,null,null,null,null,null,null,0,null,null,null,null,null,null,null,null,null,null,null,null,null,null,null,null,null,null,null,null,null,null,null,null,null,null,null,null,null,null,null,0,null,null,null,null,null,null,null,null,null,null,null,null,null,null,null,null,null,null,null,null,null,null,null,null,null,null,null,null,null,null,null,0,null,null,null,null,null,null,null,null,null,null,null,null,null,null,null,null,null,null,null,null,null,null,null,null,null,null,null,null,null,null,null,0,null,null,null,null,null,null,null,null,null,null,null,null,null,null,null,null,null,null,null,null,null,null,null,null,null,null,null,null,null,null,null,0,null,null,null,null,null,null,null,null,null,null,null,null,null,null,null,null,null,null,null,null,null,null,null,null,null,null,null,null,null,null,null,0,null,null,null,null,null,null,null,null,null,null,null,null,null,null,null,null,null,null,null,null,null,null,null,null,null,null,null,null,null,null,null,0]
[150,"Galal150","3A",2022516,"ح",null,null,null,null,null,null,null,null,"ح",null,null,null,null,null,null,"ح",null,null,null,null,null,null,null,null,null,null,null,null,"ح",null,0,null,null,"ح",null,null,null,null,null,"ح",null,null,null,null,null,null,null,"ح",null,null,null,null,null,null,null,null,null,null,null,null,null,null,0,null,null,null,null,null,null,null,null,null,null,null,null,null,null,null,null,null,null,null,null,null,null,null,null,null,null,null,null,null,null,null,0,null,null,null,null,null,null,null,null,null,null,null,null,null,null,null,null,null,null,null,null,null,null,null,null,null,null,null,null,null,null,null,0,null,null,null,null,null,null,null,null,null,null,null,null,null,null,null,null,null,null,null,null,null,null,null,null,null,null,null,null,null,null,null,0,null,null,null,null,null,null,null,null,null,null,null,null,null,null,null,null,null,null,null,null,null,null,null,null,null,null,null,null,null,null,null,0,null,null,null,null,null,null,null,null,null,null,null,null,null,null,null,null,null,null,null,null,null,null,null,null,null,null,null,null,null,null,null,0,null,null,null,null,null,null,null,null,null,null,null,null,null,null,null,null,null,null,null,null,null,null,null,null,null,null,null,null,null,null,null,0,null,null,null,null,null,null,null,null,null,null,null,null,null,null,null,null,null,null,null,null,null,null,null,null,null,null,null,null,null,null,null,0]
[151,"Galal151","3B",2022517,"ح",null,null,null,null,null,null,null,null,"ح",null,null,null,null,null,null,"ح",null,null,null,null,null,null,null,null,null,null,null,null,"ح",null,0,null,null,"ح",null,null,null,null,null,"ح",null,null,null,null,null,null,null,"ح",null,null,null,null,null,null,null,null,null,null,null,null,null,null,0,null,null,null,null,null,null,null,null,null,null,null,null,null,null,null,null,null,null,null,null,null,null,null,null,null,null,null,null,null,null,null,0,null,null,null,null,null,null,null,null,null,null,null,null,null,null,null,null,null,null,null,null,null,null,null,null,null,null,null,null,null,null,null,0,null,null,null,null,null,null,null,null,null,null,null,null,null,null,null,null,null,null,null,null,null,null,null,null,null,null,null,null,null,null,null,0,null,null,null,null,null,null,null,null,null,null,null,null,null,null,null,null,null,null,null,null,null,null,null,null,null,null,null,null,null,null,null,0,null,null,null,null,null,null,null,null,null,null,null,null,null,null,null,null,null,null,null,null,null,null,null,null,null,null,null,null,null,null,null,0,null,null,null,null,null,null,null,null,null,null,null,null,null,null,null,null,null,null,null,null,null,null,null,null,null,null,null,null,null,null,null,0,null,null,null,null,null,null,null,null,null,null,null,null,null,null,null,null,null,null,null,null,null,null,null,null,null,null,null,null,null,null,null,0]
[152,"Galal152","3A",2022518,"ح",null,null,null,null,null,null,null,null,"ح",null,null,null,null,null,null,"ح",null,null,null,null,null,null,null,null,null,null,null,null,"ح",null,0,null,null,"ح",null,null,null,null,null,"ح",null,null,null,null,null,null,null,"ح",null,null,null,null,null,null,null,null,null,null,null,null,null,null,0,null,null,null,null,null,null,null,null,null,null,null,null,null,null,null,null,null,null,null,null,null,null,null,null,null,null,null,null,null,null,null,0,null,null,null,null,null,null,null,null,null,null,null,null,null,null,null,null,null,null,null,null,null,null,null,null,null,null,null,null,null,null,null,0,null,null,null,null,null,null,null,null,null,null,null,null,null,null,null,null,null,null,null,null,null,null,null,null,null,null,null,null,null,null,null,0,null,null,null,null,null,null,null,null,null,null,null,null,null,null,null,null,null,null,null,null,null,null,null,null,null,null,null,null,null,null,null,0,null,null,null,null,null,null,null,null,null,null,null,null,null,null,null,null,null,null,null,null,null,null,null,null,null,null,null,null,null,null,null,0,null,null,null,null,null,null,null,null,null,null,null,null,null,null,null,null,null,null,null,null,null,null,null,null,null,null,null,null,null,null,null,0,null,null,null,null,null,null,null,null,null,null,null,null,null,null,null,null,null,null,null,null,null,null,null,null,null,null,null,null,null,null,null,0]
[153,"Galal153","3A",2022519,"ح",null,null,null,null,null,null,null,null,"ح",null,null,null,null,null,null,"ح",null,null,null,null,null,null,null,null,null,null,null,null,"ح",null,0,null,null,"ح",null,null,null,null,null,"ح",null,null,null,null,null,null,null,"ح",null,null,null,null,null,null,null,null,null,null,null,null,null,null,0,null,null,null,null,null,null,null,null,null,null,null,null,null,null,null,null,null,null,null,null,null,null,null,null,null,null,null,null,null,null,null,0,null,null,null,null,null,null,null,null,null,null,null,null,null,null,null,null,null,null,null,null,null,null,null,null,null,null,null,null,null,null,null,0,null,null,null,null,null,null,null,null,null,null,null,null,null,null,null,null,null,null,null,null,null,null,null,null,null,null,null,null,null,null,null,0,null,null,null,null,null,null,null,null,null,null,null,null,null,null,null,null,null,null,null,null,null,null,null,null,null,null,null,null,null,null,null,0,null,null,null,null,null,null,null,null,null,null,null,null,null,null,null,null,null,null,null,null,null,null,null,null,null,null,null,null,null,null,null,0,null,null,null,null,null,null,null,null,null,null,null,null,null,null,null,null,null,null,null,null,null,null,null,null,null,null,null,null,null,null,null,0,null,null,null,null,null,null,null,null,null,null,null,null,null,null,null,null,null,null,null,null,null,null,null,null,null,null,null,null,null,null,null,0]
[154,"Galal154","3A",2022520,"ح",null,null,null,null,null,null,null,null,"ح",null,null,null,null,null,null,"ح",null,null,null,null,null,null,null,null,null,null,null,null,"ح",null,0,null,null,"ح",null,null,null,null,null,"ح",null,null,null,null,null,null,null,"ح",null,null,null,null,null,null,null,null,null,null,null,null,null,null,0,null,null,null,null,null,null,null,null,null,null,null,null,null,null,null,null,null,null,null,null,null,null,null,null,null,null,null,null,null,null,null,0,null,null,null,null,null,null,null,null,null,null,null,null,null,null,null,null,null,null,null,null,null,null,null,null,null,null,null,null,null,null,null,0,null,null,null,null,null,null,null,null,null,null,null,null,null,null,null,null,null,null,null,null,null,null,null,null,null,null,null,null,null,null,null,0,null,null,null,null,null,null,null,null,null,null,null,null,null,null,null,null,null,null,null,null,null,null,null,null,null,null,null,null,null,null,null,0,null,null,null,null,null,null,null,null,null,null,null,null,null,null,null,null,null,null,null,null,null,null,null,null,null,null,null,null,null,null,null,0,null,null,null,null,null,null,null,null,null,null,null,null,null,null,null,null,null,null,null,null,null,null,null,null,null,null,null,null,null,null,null,0,null,null,null,null,null,null,null,null,null,null,null,null,null,null,null,null,null,null,null,null,null,null,null,null,null,null,null,null,null,null,null,0]
[155,"Galal155","3A",2022521,"ح",null,null,null,null,null,null,null,null,"ح",null,null,null,null,null,null,"ح",null,null,null,null,null,null,null,null,null,null,null,null,"ح",null,0,null,null,"ح",null,null,null,null,null,"ح",null,null,null,null,null,null,null,"ح",null,null,null,null,null,null,null,null,null,null,null,null,null,null,0,null,null,null,null,null,null,null,null,null,null,null,null,null,null,null,null,null,null,null,null,null,null,null,null,null,null,null,null,null,null,null,0,null,null,null,null,null,null,null,null,null,null,null,null,null,null,null,null,null,null,null,null,null,null,null,null,null,null,null,null,null,null,null,0,null,null,null,null,null,null,null,null,null,null,null,null,null,null,null,null,null,null,null,null,null,null,null,null,null,null,null,null,null,null,null,0,null,null,null,null,null,null,null,null,null,null,null,null,null,null,null,null,null,null,null,null,null,null,null,null,null,null,null,null,null,null,null,0,null,null,null,null,null,null,null,null,null,null,null,null,null,null,null,null,null,null,null,null,null,null,null,null,null,null,null,null,null,null,null,0,null,null,null,null,null,null,null,null,null,null,null,null,null,null,null,null,null,null,null,null,null,null,null,null,null,null,null,null,null,null,null,0,null,null,null,null,null,null,null,null,null,null,null,null,null,null,null,null,null,null,null,null,null,null,null,null,null,null,null,null,null,null,null,0]
[156,"Galal156","3A",2022522,"ح",null,null,null,null,null,null,null,null,"ح",null,null,null,null,null,null,"ح",null,null,null,null,null,null,null,null,null,null,null,null,"ح",null,0,null,null,"ح",null,null,null,null,null,"ح",null,null,null,null,null,null,null,"ح",null,null,null,null,null,null,null,null,null,null,null,null,null,null,0,null,null,null,null,null,null,null,null,null,null,null,null,null,null,null,null,null,null,null,null,null,null,null,null,null,null,null,null,null,null,null,0,null,null,null,null,null,null,null,null,null,null,null,null,null,null,null,null,null,null,null,null,null,null,null,null,null,null,null,null,null,null,null,0,null,null,null,null,null,null,null,null,null,null,null,null,null,null,null,null,null,null,null,null,null,null,null,null,null,null,null,null,null,null,null,0,null,null,null,null,null,null,null,null,null,null,null,null,null,null,null,null,null,null,null,null,null,null,null,null,null,null,null,null,null,null,null,0,null,null,null,null,null,null,null,null,null,null,null,null,null,null,null,null,null,null,null,null,null,null,null,null,null,null,null,null,null,null,null,0,null,null,null,null,null,null,null,null,null,null,null,null,null,null,null,null,null,null,null,null,null,null,null,null,null,null,null,null,null,null,null,0,null,null,null,null,null,null,null,null,null,null,null,null,null,null,null,null,null,null,null,null,null,null,null,null,null,null,null,null,null,null,null,0]
[157,"Galal157","3A",2022523,"ح",null,null,null,null,null,null,null,null,"ح",null,null,null,null,null,null,"ح",null,null,null,null,null,null,null,null,null,null,null,null,"ح",null,0,null,null,"ح",null,null,null,null,null,"ح",null,null,null,null,null,null,null,"ح",null,null,null,null,null,null,null,null,null,null,null,null,null,null,0,null,null,null,null,null,null,null,null,null,null,null,null,null,null,null,null,null,null,null,null,null,null,null,null,null,null,null,null,null,null,null,0,null,null,null,null,null,null,null,null,null,null,null,null,null,null,null,null,null,null,null,null,null,null,null,null,null,null,null,null,null,null,null,0,null,null,null,null,null,null,null,null,null,null,null,null,null,null,null,null,null,null,null,null,null,null,null,null,null,null,null,null,null,null,null,0,null,null,null,null,null,null,null,null,null,null,null,null,null,null,null,null,null,null,null,null,null,null,null,null,null,null,null,null,null,null,null,0,null,null,null,null,null,null,null,null,null,null,null,null,null,null,null,null,null,null,null,null,null,null,null,null,null,null,null,null,null,null,null,0,null,null,null,null,null,null,null,null,null,null,null,null,null,null,null,null,null,null,null,null,null,null,null,null,null,null,null,null,null,null,null,0,null,null,null,null,null,null,null,null,null,null,null,null,null,null,null,null,null,null,null,null,null,null,null,null,null,null,null,null,null,null,null,0]
[158,"Galal158","3A",2022524,"ح",null,null,null,null,null,null,null,null,"ح",null,null,null,null,null,null,"ح",null,null,null,null,null,null,null,null,null,null,null,null,"ح",null,0,null,null,"ح",null,null,null,null,null,"ح",null,null,null,null,null,null,null,"ح",null,null,null,null,null,null,null,null,null,null,null,null,null,null,0,null,null,null,null,null,null,null,null,null,null,null,null,null,null,null,null,null,null,null,null,null,null,null,null,null,null,null,null,null,null,null,0,null,null,null,null,null,null,null,null,null,null,null,null,null,null,null,null,null,null,null,null,null,null,null,null,null,null,null,null,null,null,null,0,null,null,null,null,null,null,null,null,null,null,null,null,null,null,null,null,null,null,null,null,null,null,null,null,null,null,null,null,null,null,null,0,null,null,null,null,null,null,null,null,null,null,null,null,null,null,null,null,null,null,null,null,null,null,null,null,null,null,null,null,null,null,null,0,null,null,null,null,null,null,null,null,null,null,null,null,null,null,null,null,null,null,null,null,null,null,null,null,null,null,null,null,null,null,null,0,null,null,null,null,null,null,null,null,null,null,null,null,null,null,null,null,null,null,null,null,null,null,null,null,null,null,null,null,null,null,null,0,null,null,null,null,null,null,null,null,null,null,null,null,null,null,null,null,null,null,null,null,null,null,null,null,null,null,null,null,null,null,null,0]
[159,"Galal159","3A",2022525,"ح",null,null,null,null,null,null,null,null,"ح",null,null,null,null,null,null,"ح",null,null,null,null,null,null,null,null,null,null,null,null,"ح",null,0,null,null,"ح",null,null,null,null,null,"ح",null,null,null,null,null,null,null,"ح",null,null,null,null,null,null,null,null,null,null,null,null,null,null,0,null,null,null,null,null,null,null,null,null,null,null,null,null,null,null,null,null,null,null,null,null,null,null,null,null,null,null,null,null,null,null,0,null,null,null,null,null,null,null,null,null,null,null,null,null,null,null,null,null,null,null,null,null,null,null,null,null,null,null,null,null,null,null,0,null,null,null,null,null,null,null,null,null,null,null,null,null,null,null,null,null,null,null,null,null,null,null,null,null,null,null,null,null,null,null,0,null,null,null,null,null,null,null,null,null,null,null,null,null,null,null,null,null,null,null,null,null,null,null,null,null,null,null,null,null,null,null,0,null,null,null,null,null,null,null,null,null,null,null,null,null,null,null,null,null,null,null,null,null,null,null,null,null,null,null,null,null,null,null,0,null,null,null,null,null,null,null,null,null,null,null,null,null,null,null,null,null,null,null,null,null,null,null,null,null,null,null,null,null,null,null,0,null,null,null,null,null,null,null,null,null,null,null,null,null,null,null,null,null,null,null,null,null,null,null,null,null,null,null,null,null,null,null,0]
[160,"Galal160","3B",2022526,"ح",null,null,null,null,null,null,null,null,"ح",null,null,null,null,null,null,"ح",null,null,null,null,null,null,null,null,null,null,null,null,"ح",null,0,null,null,"ح",null,null,null,null,null,"ح",null,null,null,null,null,null,null,"ح",null,null,null,null,null,null,null,null,null,null,null,null,null,null,0,null,null,null,null,null,null,null,null,null,null,null,null,null,null,null,null,null,null,null,null,null,null,null,null,null,null,null,null,null,null,null,0,null,null,null,null,null,null,null,null,null,null,null,null,null,null,null,null,null,null,null,null,null,null,null,null,null,null,null,null,null,null,null,0,null,null,null,null,null,null,null,null,null,null,null,null,null,null,null,null,null,null,null,null,null,null,null,null,null,null,null,null,null,null,null,0,null,null,null,null,null,null,null,null,null,null,null,null,null,null,null,null,null,null,null,null,null,null,null,null,null,null,null,null,null,null,null,0,null,null,null,null,null,null,null,null,null,null,null,null,null,null,null,null,null,null,null,null,null,null,null,null,null,null,null,null,null,null,null,0,null,null,null,null,null,null,null,null,null,null,null,null,null,null,null,null,null,null,null,null,null,null,null,null,null,null,null,null,null,null,null,0,null,null,null,null,null,null,null,null,null,null,null,null,null,null,null,null,null,null,null,null,null,null,null,null,null,null,null,null,null,null,null,0]
[161,"Galal161","3B",2022527,"ح",null,null,null,null,null,null,null,null,"ح",null,null,null,null,null,null,"ح",null,null,null,null,null,null,null,null,null,null,null,null,"ح",null,0,null,null,"ح",null,null,null,null,null,"ح",null,null,null,null,null,null,null,"ح",null,null,null,null,null,null,null,null,null,null,null,null,null,null,0,null,null,null,null,null,null,null,null,null,null,null,null,null,null,null,null,null,null,null,null,null,null,null,null,null,null,null,null,null,null,null,0,null,null,null,null,null,null,null,null,null,null,null,null,null,null,null,null,null,null,null,null,null,null,null,null,null,null,null,null,null,null,null,0,null,null,null,null,null,null,null,null,null,null,null,null,null,null,null,null,null,null,null,null,null,null,null,null,null,null,null,null,null,null,null,0,null,null,null,null,null,null,null,null,null,null,null,null,null,null,null,null,null,null,null,null,null,null,null,null,null,null,null,null,null,null,null,0,null,null,null,null,null,null,null,null,null,null,null,null,null,null,null,null,null,null,null,null,null,null,null,null,null,null,null,null,null,null,null,0,null,null,null,null,null,null,null,null,null,null,null,null,null,null,null,null,null,null,null,null,null,null,null,null,null,null,null,null,null,null,null,0,null,null,null,null,null,null,null,null,null,null,null,null,null,null,null,null,null,null,null,null,null,null,null,null,null,null,null,null,null,null,null,0]
[162,"Galal162","3A",2022528,"ح",null,null,null,null,null,null,null,null,"ح",null,null,null,null,null,null,"ح",null,null,null,null,null,null,null,null,null,null,null,null,"ح",null,0,null,null,"ح",null,null,null,null,null,"ح",null,null,null,null,null,null,null,"ح",null,null,null,null,null,null,null,null,null,null,null,null,null,null,0,null,null,null,null,null,null,null,null,null,null,null,null,null,null,null,null,null,null,null,null,null,null,null,null,null,null,null,null,null,null,null,0,null,null,null,null,null,null,null,null,null,null,null,null,null,null,null,null,null,null,null,null,null,null,null,null,null,null,null,null,null,null,null,0,null,null,null,null,null,null,null,null,null,null,null,null,null,null,null,null,null,null,null,null,null,null,null,null,null,null,null,null,null,null,null,0,null,null,null,null,null,null,null,null,null,null,null,null,null,null,null,null,null,null,null,null,null,null,null,null,null,null,null,null,null,null,null,0,null,null,null,null,null,null,null,null,null,null,null,null,null,null,null,null,null,null,null,null,null,null,null,null,null,null,null,null,null,null,null,0,null,null,null,null,null,null,null,null,null,null,null,null,null,null,null,null,null,null,null,null,null,null,null,null,null,null,null,null,null,null,null,0,null,null,null,null,null,null,null,null,null,null,null,null,null,null,null,null,null,null,null,null,null,null,null,null,null,null,null,null,null,null,null,0]
[163,"Galal163","3B",2022529,"ح",null,null,null,null,null,null,null,null,"ح",null,null,null,null,null,null,"ح",null,null,null,null,null,null,null,null,null,null,null,null,"ح",null,0,null,null,"ح",null,null,null,null,null,"ح",null,null,null,null,null,null,null,"ح",null,null,null,null,null,null,null,null,null,null,null,null,null,null,0,null,null,null,null,null,null,null,null,null,null,null,null,null,null,null,null,null,null,null,null,null,null,null,null,null,null,null,null,null,null,null,0,null,null,null,null,null,null,null,null,null,null,null,null,null,null,null,null,null,null,null,null,null,null,null,null,null,null,null,null,null,null,null,0,null,null,null,null,null,null,null,null,null,null,null,null,null,null,null,null,null,null,null,null,null,null,null,null,null,null,null,null,null,null,null,0,null,null,null,null,null,null,null,null,null,null,null,null,null,null,null,null,null,null,null,null,null,null,null,null,null,null,null,null,null,null,null,0,null,null,null,null,null,null,null,null,null,null,null,null,null,null,null,null,null,null,null,null,null,null,null,null,null,null,null,null,null,null,null,0,null,null,null,null,null,null,null,null,null,null,null,null,null,null,null,null,null,null,null,null,null,null,null,null,null,null,null,null,null,null,null,0,null,null,null,null,null,null,null,null,null,null,null,null,null,null,null,null,null,null,null,null,null,null,null,null,null,null,null,null,null,null,null,0]
[164,"Galal164","3A",2022530,"ح",null,null,null,null,null,null,null,null,"ح",null,null,null,null,null,null,"ح",null,null,null,null,null,null,null,null,null,null,null,null,"ح",null,0,null,null,"ح",null,null,null,null,null,"ح",null,null,null,null,null,null,null,"ح",null,null,null,null,null,null,null,null,null,null,null,null,null,null,0,null,null,null,null,null,null,null,null,null,null,null,null,null,null,null,null,null,null,null,null,null,null,null,null,null,null,null,null,null,null,null,0,null,null,null,null,null,null,null,null,null,null,null,null,null,null,null,null,null,null,null,null,null,null,null,null,null,null,null,null,null,null,null,0,null,null,null,null,null,null,null,null,null,null,null,null,null,null,null,null,null,null,null,null,null,null,null,null,null,null,null,null,null,null,null,0,null,null,null,null,null,null,null,null,null,null,null,null,null,null,null,null,null,null,null,null,null,null,null,null,null,null,null,null,null,null,null,0,null,null,null,null,null,null,null,null,null,null,null,null,null,null,null,null,null,null,null,null,null,null,null,null,null,null,null,null,null,null,null,0,null,null,null,null,null,null,null,null,null,null,null,null,null,null,null,null,null,null,null,null,null,null,null,null,null,null,null,null,null,null,null,0,null,null,null,null,null,null,null,null,null,null,null,null,null,null,null,null,null,null,null,null,null,null,null,null,null,null,null,null,null,null,null,0]
[165,"Galal165","3B",2022531,"ح",null,null,null,null,null,null,null,null,"ح",null,null,null,null,null,null,"ح",null,null,null,null,null,null,null,null,null,null,null,null,"ح",null,0,null,null,"ح",null,null,null,null,null,"ح",null,null,null,null,null,null,null,"ح",null,null,null,null,null,null,null,null,null,null,null,null,null,null,0,null,null,null,null,null,null,null,null,null,null,null,null,null,null,null,null,null,null,null,null,null,null,null,null,null,null,null,null,null,null,null,0,null,null,null,null,null,null,null,null,null,null,null,null,null,null,null,null,null,null,null,null,null,null,null,null,null,null,null,null,null,null,null,0,null,null,null,null,null,null,null,null,null,null,null,null,null,null,null,null,null,null,null,null,null,null,null,null,null,null,null,null,null,null,null,0,null,null,null,null,null,null,null,null,null,null,null,null,null,null,null,null,null,null,null,null,null,null,null,null,null,null,null,null,null,null,null,0,null,null,null,null,null,null,null,null,null,null,null,null,null,null,null,null,null,null,null,null,null,null,null,null,null,null,null,null,null,null,null,0,null,null,null,null,null,null,null,null,null,null,null,null,null,null,null,null,null,null,null,null,null,null,null,null,null,null,null,null,null,null,null,0,null,null,null,null,null,null,null,null,null,null,null,null,null,null,null,null,null,null,null,null,null,null,null,null,null,null,null,null,null,null,null,0]
[166,"Galal166","3B",2022532,"ح",null,null,null,null,null,null,null,null,"ح",null,null,null,null,null,null,"ح",null,null,null,null,null,null,null,null,null,null,null,null,"ح",null,0,null,null,"ح",null,null,null,null,null,"ح",null,null,null,null,null,null,null,"ح",null,null,null,null,null,null,null,null,null,null,null,null,null,null,0,null,null,null,null,null,null,null,null,null,null,null,null,null,null,null,null,null,null,null,null,null,null,null,null,null,null,null,null,null,null,null,0,null,null,null,null,null,null,null,null,null,null,null,null,null,null,null,null,null,null,null,null,null,null,null,null,null,null,null,null,null,null,null,0,null,null,null,null,null,null,null,null,null,null,null,null,null,null,null,null,null,null,null,null,null,null,null,null,null,null,null,null,null,null,null,0,null,null,null,null,null,null,null,null,null,null,null,null,null,null,null,null,null,null,null,null,null,null,null,null,null,null,null,null,null,null,null,0,null,null,null,null,null,null,null,null,null,null,null,null,null,null,null,null,null,null,null,null,null,null,null,null,null,null,null,null,null,null,null,0,null,null,null,null,null,null,null,null,null,null,null,null,null,null,null,null,null,null,null,null,null,null,null,null,null,null,null,null,null,null,null,0,null,null,null,null,null,null,null,null,null,null,null,null,null,null,null,null,null,null,null,null,null,null,null,null,null,null,null,null,null,null,null,0]
[167,"Galal167","3B",2022534,"ح",null,null,null,null,null,null,null,null,"ح",null,null,null,null,null,null,"ح",null,null,null,null,null,null,null,null,null,null,null,null,"ح",null,0,null,null,"ح",null,null,null,null,null,"ح",null,null,null,null,null,null,null,"ح",null,null,null,null,null,null,null,null,null,null,null,null,null,null,0,null,null,null,null,null,null,null,null,null,null,null,null,null,null,null,null,null,null,null,null,null,null,null,null,null,null,null,null,null,null,null,0,null,null,null,null,null,null,null,null,null,null,null,null,null,null,null,null,null,null,null,null,null,null,null,null,null,null,null,null,null,null,null,0,null,null,null,null,null,null,null,null,null,null,null,null,null,null,null,null,null,null,null,null,null,null,null,null,null,null,null,null,null,null,null,0,null,null,null,null,null,null,null,null,null,null,null,null,null,null,null,null,null,null,null,null,null,null,null,null,null,null,null,null,null,null,null,0,null,null,null,null,null,null,null,null,null,null,null,null,null,null,null,null,null,null,null,null,null,null,null,null,null,null,null,null,null,null,null,0,null,null,null,null,null,null,null,null,null,null,null,null,null,null,null,null,null,null,null,null,null,null,null,null,null,null,null,null,null,null,null,0,null,null,null,null,null,null,null,null,null,null,null,null,null,null,null,null,null,null,null,null,null,null,null,null,null,null,null,null,null,null,null,0]
[168,"Galal168","3A",2022535,"ح",null,null,null,null,null,null,null,null,"ح",null,null,null,null,null,null,"ح",null,null,null,null,null,null,null,null,null,null,null,null,"ح",null,0,null,null,"ح",null,null,null,null,null,"ح",null,null,null,null,null,null,null,"ح",null,null,null,null,null,null,null,null,null,null,null,null,null,null,0,null,null,null,null,null,null,null,null,null,null,null,null,null,null,null,null,null,null,null,null,null,null,null,null,null,null,null,null,null,null,null,0,null,null,null,null,null,null,null,null,null,null,null,null,null,null,null,null,null,null,null,null,null,null,null,null,null,null,null,null,null,null,null,0,null,null,null,null,null,null,null,null,null,null,null,null,null,null,null,null,null,null,null,null,null,null,null,null,null,null,null,null,null,null,null,0,null,null,null,null,null,null,null,null,null,null,null,null,null,null,null,null,null,null,null,null,null,null,null,null,null,null,null,null,null,null,null,0,null,null,null,null,null,null,null,null,null,null,null,null,null,null,null,null,null,null,null,null,null,null,null,null,null,null,null,null,null,null,null,0,null,null,null,null,null,null,null,null,null,null,null,null,null,null,null,null,null,null,null,null,null,null,null,null,null,null,null,null,null,null,null,0,null,null,null,null,null,null,null,null,null,null,null,null,null,null,null,null,null,null,null,null,null,null,null,null,null,null,null,null,null,null,null,0]
[169,"Galal169","3B",2022536,"ح",null,null,null,null,null,null,null,null,"ح",null,null,null,null,null,null,"ح",null,null,null,null,null,null,null,null,null,null,null,null,"ح",null,0,null,null,"ح",null,null,null,null,null,"ح",null,null,null,null,null,null,null,"ح",null,null,null,null,null,null,null,null,null,null,null,null,null,null,0,null,null,null,null,null,null,null,null,null,null,null,null,null,null,null,null,null,null,null,null,null,null,null,null,null,null,null,null,null,null,null,0,null,null,null,null,null,null,null,null,null,null,null,null,null,null,null,null,null,null,null,null,null,null,null,null,null,null,null,null,null,null,null,0,null,null,null,null,null,null,null,null,null,null,null,null,null,null,null,null,null,null,null,null,null,null,null,null,null,null,null,null,null,null,null,0,null,null,null,null,null,null,null,null,null,null,null,null,null,null,null,null,null,null,null,null,null,null,null,null,null,null,null,null,null,null,null,0,null,null,null,null,null,null,null,null,null,null,null,null,null,null,null,null,null,null,null,null,null,null,null,null,null,null,null,null,null,null,null,0,null,null,null,null,null,null,null,null,null,null,null,null,null,null,null,null,null,null,null,null,null,null,null,null,null,null,null,null,null,null,null,0,null,null,null,null,null,null,null,null,null,null,null,null,null,null,null,null,null,null,null,null,null,null,null,null,null,null,null,null,null,null,null,0]
[170,"Galal170","3B",2022537,"ح",null,null,null,null,null,null,null,null,"ح",null,null,null,null,null,null,"ح",null,null,null,null,null,null,null,null,null,null,null,null,"ح",null,0,null,null,"ح",null,null,null,null,null,"ح",null,null,null,null,null,null,null,"ح",null,null,null,null,null,null,null,null,null,null,null,null,null,null,0,null,null,null,null,null,null,null,null,null,null,null,null,null,null,null,null,null,null,null,null,null,null,null,null,null,null,null,null,null,null,null,0,null,null,null,null,null,null,null,null,null,null,null,null,null,null,null,null,null,null,null,null,null,null,null,null,null,null,null,null,null,null,null,0,null,null,null,null,null,null,null,null,null,null,null,null,null,null,null,null,null,null,null,null,null,null,null,null,null,null,null,null,null,null,null,0,null,null,null,null,null,null,null,null,null,null,null,null,null,null,null,null,null,null,null,null,null,null,null,null,null,null,null,null,null,null,null,0,null,null,null,null,null,null,null,null,null,null,null,null,null,null,null,null,null,null,null,null,null,null,null,null,null,null,null,null,null,null,null,0,null,null,null,null,null,null,null,null,null,null,null,null,null,null,null,null,null,null,null,null,null,null,null,null,null,null,null,null,null,null,null,0,null,null,null,null,null,null,null,null,null,null,null,null,null,null,null,null,null,null,null,null,null,null,null,null,null,null,null,null,null,null,null,0]
[171,"Galal171","3B",2022538,"ح",null,null,null,null,null,null,null,null,"ح",null,null,null,null,null,null,"ح",null,null,null,null,null,null,null,null,null,null,null,null,"ح",null,0,null,null,"ح",null,null,null,null,null,"ح",null,null,null,null,null,null,null,"ح",null,null,null,null,null,null,null,null,null,null,null,null,null,null,0,null,null,null,null,null,null,null,null,null,null,null,null,null,null,null,null,null,null,null,null,null,null,null,null,null,null,null,null,null,null,null,0,null,null,null,null,null,null,null,null,null,null,null,null,null,null,null,null,null,null,null,null,null,null,null,null,null,null,null,null,null,null,null,0,null,null,null,null,null,null,null,null,null,null,null,null,null,null,null,null,null,null,null,null,null,null,null,null,null,null,null,null,null,null,null,0,null,null,null,null,null,null,null,null,null,null,null,null,null,null,null,null,null,null,null,null,null,null,null,null,null,null,null,null,null,null,null,0,null,null,null,null,null,null,null,null,null,null,null,null,null,null,null,null,null,null,null,null,null,null,null,null,null,null,null,null,null,null,null,0,null,null,null,null,null,null,null,null,null,null,null,null,null,null,null,null,null,null,null,null,null,null,null,null,null,null,null,null,null,null,null,0,null,null,null,null,null,null,null,null,null,null,null,null,null,null,null,null,null,null,null,null,null,null,null,null,null,null,null,null,null,null,null,0]
[172,"Galal172","3A",2022539,"ح",null,null,null,null,null,null,null,null,"ح",null,null,null,null,null,null,"ح",null,null,null,null,null,null,null,null,null,null,null,null,"ح",null,0,null,null,"ح",null,null,null,null,null,"ح",null,null,null,null,null,null,null,"ح",null,null,null,null,null,null,null,null,null,null,null,null,null,null,0,null,null,null,null,null,null,null,null,null,null,null,null,null,null,null,null,null,null,null,null,null,null,null,null,null,null,null,null,null,null,null,0,null,null,null,null,null,null,null,null,null,null,null,null,null,null,null,null,null,null,null,null,null,null,null,null,null,null,null,null,null,null,null,0,null,null,null,null,null,null,null,null,null,null,null,null,null,null,null,null,null,null,null,null,null,null,null,null,null,null,null,null,null,null,null,0,null,null,null,null,null,null,null,null,null,null,null,null,null,null,null,null,null,null,null,null,null,null,null,null,null,null,null,null,null,null,null,0,null,null,null,null,null,null,null,null,null,null,null,null,null,null,null,null,null,null,null,null,null,null,null,null,null,null,null,null,null,null,null,0,null,null,null,null,null,null,null,null,null,null,null,null,null,null,null,null,null,null,null,null,null,null,null,null,null,null,null,null,null,null,null,0,null,null,null,null,null,null,null,null,null,null,null,null,null,null,null,null,null,null,null,null,null,null,null,null,null,null,null,null,null,null,null,0]
[173,"Galal173","3B",2022540,"ح",null,null,null,null,null,null,null,null,"ح",null,null,null,null,null,null,"ح",null,null,null,null,null,null,null,null,null,null,null,null,"ح",null,0,null,null,"ح",null,null,null,null,null,"ح",null,null,null,null,null,null,null,"ح",null,null,null,null,null,null,null,null,null,null,null,null,null,null,0,null,null,null,null,null,null,null,null,null,null,null,null,null,null,null,null,null,null,null,null,null,null,null,null,null,null,null,null,null,null,null,0,null,null,null,null,null,null,null,null,null,null,null,null,null,null,null,null,null,null,null,null,null,null,null,null,null,null,null,null,null,null,null,0,null,null,null,null,null,null,null,null,null,null,null,null,null,null,null,null,null,null,null,null,null,null,null,null,null,null,null,null,null,null,null,0,null,null,null,null,null,null,null,null,null,null,null,null,null,null,null,null,null,null,null,null,null,null,null,null,null,null,null,null,null,null,null,0,null,null,null,null,null,null,null,null,null,null,null,null,null,null,null,null,null,null,null,null,null,null,null,null,null,null,null,null,null,null,null,0,null,null,null,null,null,null,null,null,null,null,null,null,null,null,null,null,null,null,null,null,null,null,null,null,null,null,null,null,null,null,null,0,null,null,null,null,null,null,null,null,null,null,null,null,null,null,null,null,null,null,null,null,null,null,null,null,null,null,null,null,null,null,null,0]
[174,"Galal174","3B",2022541,"ح",null,null,null,null,null,null,null,null,"ح",null,null,null,null,null,null,"ح",null,null,null,null,null,null,null,null,null,null,null,null,"ح",null,0,null,null,"ح",null,null,null,null,null,"ح",null,null,null,null,null,null,null,"ح",null,null,null,null,null,null,null,null,null,null,null,null,null,null,0,null,null,null,null,null,null,null,null,null,null,null,null,null,null,null,null,null,null,null,null,null,null,null,null,null,null,null,null,null,null,null,0,null,null,null,null,null,null,null,null,null,null,null,null,null,null,null,null,null,null,null,null,null,null,null,null,null,null,null,null,null,null,null,0,null,null,null,null,null,null,null,null,null,null,null,null,null,null,null,null,null,null,null,null,null,null,null,null,null,null,null,null,null,null,null,0,null,null,null,null,null,null,null,null,null,null,null,null,null,null,null,null,null,null,null,null,null,null,null,null,null,null,null,null,null,null,null,0,null,null,null,null,null,null,null,null,null,null,null,null,null,null,null,null,null,null,null,null,null,null,null,null,null,null,null,null,null,null,null,0,null,null,null,null,null,null,null,null,null,null,null,null,null,null,null,null,null,null,null,null,null,null,null,null,null,null,null,null,null,null,null,0,null,null,null,null,null,null,null,null,null,null,null,null,null,null,null,null,null,null,null,null,null,null,null,null,null,null,null,null,null,null,null,0]
[175,"Galal175","3B",2022542,"ح",null,null,null,null,null,null,null,null,"ح",null,null,null,null,null,null,"ح",null,null,null,null,null,null,null,null,null,null,null,null,"ح",null,0,null,null,"ح",null,null,null,null,null,"ح",null,null,null,null,null,null,null,"ح",null,null,null,null,null,null,null,null,null,null,null,null,null,null,0,null,null,null,null,null,null,null,null,null,null,null,null,null,null,null,null,null,null,null,null,null,null,null,null,null,null,null,null,null,null,null,0,null,null,null,null,null,null,null,null,null,null,null,null,null,null,null,null,null,null,null,null,null,null,null,null,null,null,null,null,null,null,null,0,null,null,null,null,null,null,null,null,null,null,null,null,null,null,null,null,null,null,null,null,null,null,null,null,null,null,null,null,null,null,null,0,null,null,null,null,null,null,null,null,null,null,null,null,null,null,null,null,null,null,null,null,null,null,null,null,null,null,null,null,null,null,null,0,null,null,null,null,null,null,null,null,null,null,null,null,null,null,null,null,null,null,null,null,null,null,null,null,null,null,null,null,null,null,null,0,null,null,null,null,null,null,null,null,null,null,null,null,null,null,null,null,null,null,null,null,null,null,null,null,null,null,null,null,null,null,null,0,null,null,null,null,null,null,null,null,null,null,null,null,null,null,null,null,null,null,null,null,null,null,null,null,null,null,null,null,null,null,null,0]
[176,"Galal176","3B",2022543,"ح",null,null,null,null,null,null,null,null,"ح",null,null,null,null,null,null,"ح",null,null,null,null,null,null,null,null,null,null,null,null,"ح",null,0,null,null,"ح",null,null,null,null,null,"ح",null,null,null,null,null,null,null,"ح",null,null,null,null,null,null,null,null,null,null,null,null,null,null,0,null,null,null,null,null,null,null,null,null,null,null,null,null,null,null,null,null,null,null,null,null,null,null,null,null,null,null,null,null,null,null,0,null,null,null,null,null,null,null,null,null,null,null,null,null,null,null,null,null,null,null,null,null,null,null,null,null,null,null,null,null,null,null,0,null,null,null,null,null,null,null,null,null,null,null,null,null,null,null,null,null,null,null,null,null,null,null,null,null,null,null,null,null,null,null,0,null,null,null,null,null,null,null,null,null,null,null,null,null,null,null,null,null,null,null,null,null,null,null,null,null,null,null,null,null,null,null,0,null,null,null,null,null,null,null,null,null,null,null,null,null,null,null,null,null,null,null,null,null,null,null,null,null,null,null,null,null,null,null,0,null,null,null,null,null,null,null,null,null,null,null,null,null,null,null,null,null,null,null,null,null,null,null,null,null,null,null,null,null,null,null,0,null,null,null,null,null,null,null,null,null,null,null,null,null,null,null,null,null,null,null,null,null,null,null,null,null,null,null,null,null,null,null,0]
[177,"Galal177","3B",2022544,"ح",null,null,null,null,null,null,null,null,"ح",null,null,null,null,null,null,"ح",null,null,null,null,null,null,null,null,null,null,null,null,"ح",null,0,null,null,"ح",null,null,null,null,null,"ح",null,null,null,null,null,null,null,"ح",null,null,null,null,null,null,null,null,null,null,null,null,null,null,0,null,null,null,null,null,null,null,null,null,null,null,null,null,null,null,null,null,null,null,null,null,null,null,null,null,null,null,null,null,null,null,0,null,null,null,null,null,null,null,null,null,null,null,null,null,null,null,null,null,null,null,null,null,null,null,null,null,null,null,null,null,null,null,0,null,null,null,null,null,null,null,null,null,null,null,null,null,null,null,null,null,null,null,null,null,null,null,null,null,null,null,null,null,null,null,0,null,null,null,null,null,null,null,null,null,null,null,null,null,null,null,null,null,null,null,null,null,null,null,null,null,null,null,null,null,null,null,0,null,null,null,null,null,null,null,null,null,null,null,null,null,null,null,null,null,null,null,null,null,null,null,null,null,null,null,null,null,null,null,0,null,null,null,null,null,null,null,null,null,null,null,null,null,null,null,null,null,null,null,null,null,null,null,null,null,null,null,null,null,null,null,0,null,null,null,null,null,null,null,null,null,null,null,null,null,null,null,null,null,null,null,null,null,null,null,null,null,null,null,null,null,null,null,0]
[178,"Galal178","3B",2022545,"ح",null,null,null,null,null,null,null,null,"ح",null,null,null,null,null,null,"ح",null,null,null,null,null,null,null,null,null,null,null,null,"ح",null,0,null,null,"ح",null,null,null,null,null,"ح",null,null,null,null,null,null,null,"ح",null,null,null,null,null,null,null,null,null,null,null,null,null,null,0,null,null,null,null,null,null,null,null,null,null,null,null,null,null,null,null,null,null,null,null,null,null,null,null,null,null,null,null,null,null,null,0,null,null,null,null,null,null,null,null,null,null,null,null,null,null,null,null,null,null,null,null,null,null,null,null,null,null,null,null,null,null,null,0,null,null,null,null,null,null,null,null,null,null,null,null,null,null,null,null,null,null,null,null,null,null,null,null,null,null,null,null,null,null,null,0,null,null,null,null,null,null,null,null,null,null,null,null,null,null,null,null,null,null,null,null,null,null,null,null,null,null,null,null,null,null,null,0,null,null,null,null,null,null,null,null,null,null,null,null,null,null,null,null,null,null,null,null,null,null,null,null,null,null,null,null,null,null,null,0,null,null,null,null,null,null,null,null,null,null,null,null,null,null,null,null,null,null,null,null,null,null,null,null,null,null,null,null,null,null,null,0,null,null,null,null,null,null,null,null,null,null,null,null,null,null,null,null,null,null,null,null,null,null,null,null,null,null,null,null,null,null,null,0]
[179,"Galal179","3B",2022546,"ح",null,null,null,null,null,null,null,null,"ح",null,null,null,null,null,null,"ح",null,null,null,null,null,null,null,null,null,null,null,null,"ح",null,0,null,null,"ح",null,null,null,null,null,"ح",null,null,null,null,null,null,null,"ح",null,null,null,null,null,null,null,null,null,null,null,null,null,null,0,null,null,null,null,null,null,null,null,null,null,null,null,null,null,null,null,null,null,null,null,null,null,null,null,null,null,null,null,null,null,null,0,null,null,null,null,null,null,null,null,null,null,null,null,null,null,null,null,null,null,null,null,null,null,null,null,null,null,null,null,null,null,null,0,null,null,null,null,null,null,null,null,null,null,null,null,null,null,null,null,null,null,null,null,null,null,null,null,null,null,null,null,null,null,null,0,null,null,null,null,null,null,null,null,null,null,null,null,null,null,null,null,null,null,null,null,null,null,null,null,null,null,null,null,null,null,null,0,null,null,null,null,null,null,null,null,null,null,null,null,null,null,null,null,null,null,null,null,null,null,null,null,null,null,null,null,null,null,null,0,null,null,null,null,null,null,null,null,null,null,null,null,null,null,null,null,null,null,null,null,null,null,null,null,null,null,null,null,null,null,null,0,null,null,null,null,null,null,null,null,null,null,null,null,null,null,null,null,null,null,null,null,null,null,null,null,null,null,null,null,null,null,null,0]
[180,"Galal180","3B",2022547,"ح",null,null,null,null,null,null,null,null,"ح",null,null,null,null,null,null,"ح",null,null,null,null,null,null,null,null,null,null,null,null,"ح",null,0,null,null,"ح",null,null,null,null,null,"ح",null,null,null,null,null,null,null,"ح",null,null,null,null,null,null,null,null,null,null,null,null,null,null,0,null,null,null,null,null,null,null,null,null,null,null,null,null,null,null,null,null,null,null,null,null,null,null,null,null,null,null,null,null,null,null,0,null,null,null,null,null,null,null,null,null,null,null,null,null,null,null,null,null,null,null,null,null,null,null,null,null,null,null,null,null,null,null,0,null,null,null,null,null,null,null,null,null,null,null,null,null,null,null,null,null,null,null,null,null,null,null,null,null,null,null,null,null,null,null,0,null,null,null,null,null,null,null,null,null,null,null,null,null,null,null,null,null,null,null,null,null,null,null,null,null,null,null,null,null,null,null,0,null,null,null,null,null,null,null,null,null,null,null,null,null,null,null,null,null,null,null,null,null,null,null,null,null,null,null,null,null,null,null,0,null,null,null,null,null,null,null,null,null,null,null,null,null,null,null,null,null,null,null,null,null,null,null,null,null,null,null,null,null,null,null,0,null,null,null,null,null,null,null,null,null,null,null,null,null,null,null,null,null,null,null,null,null,null,null,null,null,null,null,null,null,null,null,0]
[181,"Galal181","3B",2022548,"ح",null,null,null,null,null,null,null,null,"ح",null,null,null,null,null,null,"ح",null,null,null,null,null,null,null,null,null,null,null,null,"ح",null,0,null,null,"ح",null,null,null,null,null,"ح",null,null,null,null,null,null,null,"ح",null,null,null,null,null,null,null,null,null,null,null,null,null,null,0,null,null,null,null,null,null,null,null,null,null,null,null,null,null,null,null,null,null,null,null,null,null,null,null,null,null,null,null,null,null,null,0,null,null,null,null,null,null,null,null,null,null,null,null,null,null,null,null,null,null,null,null,null,null,null,null,null,null,null,null,null,null,null,0,null,null,null,null,null,null,null,null,null,null,null,null,null,null,null,null,null,null,null,null,null,null,null,null,null,null,null,null,null,null,null,0,null,null,null,null,null,null,null,null,null,null,null,null,null,null,null,null,null,null,null,null,null,null,null,null,null,null,null,null,null,null,null,0,null,null,null,null,null,null,null,null,null,null,null,null,null,null,null,null,null,null,null,null,null,null,null,null,null,null,null,null,null,null,null,0,null,null,null,null,null,null,null,null,null,null,null,null,null,null,null,null,null,null,null,null,null,null,null,null,null,null,null,null,null,null,null,0,null,null,null,null,null,null,null,null,null,null,null,null,null,null,null,null,null,null,null,null,null,null,null,null,null,null,null,null,null,null,null,0]
[182,"Galal182","3B",2022549,"ح",null,null,null,null,null,null,null,null,"ح",null,null,null,null,null,null,"ح",null,null,null,null,null,null,null,null,null,null,null,null,"ح",null,0,null,null,"ح",null,null,null,null,null,"ح",null,null,null,null,null,null,null,"ح",null,null,null,null,null,null,null,null,null,null,null,null,null,null,0,null,null,null,null,null,null,null,null,null,null,null,null,null,null,null,null,null,null,null,null,null,null,null,null,null,null,null,null,null,null,null,0,null,null,null,null,null,null,null,null,null,null,null,null,null,null,null,null,null,null,null,null,null,null,null,null,null,null,null,null,null,null,null,0,null,null,null,null,null,null,null,null,null,null,null,null,null,null,null,null,null,null,null,null,null,null,null,null,null,null,null,null,null,null,null,0,null,null,null,null,null,null,null,null,null,null,null,null,null,null,null,null,null,null,null,null,null,null,null,null,null,null,null,null,null,null,null,0,null,null,null,null,null,null,null,null,null,null,null,null,null,null,null,null,null,null,null,null,null,null,null,null,null,null,null,null,null,null,null,0,null,null,null,null,null,null,null,null,null,null,null,null,null,null,null,null,null,null,null,null,null,null,null,null,null,null,null,null,null,null,null,0,null,null,null,null,null,null,null,null,null,null,null,null,null,null,null,null,null,null,null,null,null,null,null,null,null,null,null,null,null,null,null,0]
[183,"Galal183","3B",2022550,"ح",null,null,null,null,null,null,null,null,"ح",null,null,null,null,null,null,"ح",null,null,null,null,null,null,null,null,null,null,null,null,"ح",null,null,null,null,"ح",null,null,null,null,null,"ح",null,null,null,null,null,null,null,"ح"]